Department Family,Entity,Date,Expense Type,Expense Area,Supplier,Transaction Number,Amount,Vat No
Department of Health,CT Revenue Funds,03/11/2016,Absorbents Non X Ray Detectable,Community Childrens Nurses,MIDMEDS LTD,162820,78.75,
Department of Health,CT Revenue Funds,03/11/2016,Absorbents Non X Ray Detectable,Community Childrens Nurses,MIDMEDS LTD,162820,15.75,
Department of Health,CT Revenue Funds,03/11/2016,Accomodation Insurance,Charlesworth Court Unit B,RYMINSTER LTD,CWC/0179,18.62,
Department of Health,CT Revenue Funds,03/11/2016,Accomodation Insurance,Charlesworth Court Unit B,RYMINSTER LTD,CWC/0179,3.73,
Department of Health,CT Revenue Funds,03/11/2016,Additions - Assets Under Construction IT Replacement Hardware,Balance Sheet Suspense,DELL COMPUTER CORPORATION,7402321880,139.18,635 8235 28
Department of Health,CT Revenue Funds,03/11/2016,Additions - Assets Under Construction IT Replacement Hardware,Balance Sheet Suspense,DELL COMPUTER CORPORATION,7402321880,695.92,635 8235 28
Department of Health,CT Revenue Funds,03/11/2016,Additions - Assets Under Construction IT Replacement Hardware,Balance Sheet Suspense,DELL COMPUTER CORPORATION,7402321886,139.18,635 8235 28
Department of Health,CT Revenue Funds,03/11/2016,Additions - Assets Under Construction IT Replacement Hardware,Balance Sheet Suspense,DELL COMPUTER CORPORATION,7402321886,695.92,635 8235 28
Department of Health,CT Revenue Funds,03/11/2016,Additions - Assets Under Construction IT Replacement Hardware,Balance Sheet Suspense,DELL COMPUTER CORPORATION,7402322283,695.92,635 8235 28
Department of Health,CT Revenue Funds,03/11/2016,Additions - Assets Under Construction IT Replacement Hardware,Balance Sheet Suspense,DELL COMPUTER CORPORATION,7402322283,139.18,635 8235 28
Department of Health,CT Revenue Funds,03/11/2016,Agency Admin & Clerical,MSK Management & Admin,PERTEMPS,P727397,143.1,844 2788 00
Department of Health,CT Revenue Funds,03/11/2016,Agency Admin & Clerical,MSK Management & Admin,PERTEMPS,P727397,28.62,844 2788 00
Department of Health,CT Revenue Funds,03/11/2016,Agency Admin & Clerical,MSK Management & Admin,PERTEMPS,P727398,405.75,844 2788 00
Department of Health,CT Revenue Funds,03/11/2016,Agency Admin & Clerical,MSK Management & Admin,PERTEMPS,P727398,81.15,844 2788 00
Department of Health,CT Revenue Funds,03/11/2016,Agency Admin & Clerical,MSK Management & Admin,PERTEMPS,P727399,66.53,844 2788 00
Department of Health,CT Revenue Funds,03/11/2016,Agency Admin & Clerical,MSK Management & Admin,PERTEMPS,P727399,332.64,844 2788 00
Department of Health,CT Revenue Funds,03/11/2016,Agency Admin & Clerical,CAMHS Learning Disabilities,PERTEMPS,P727408,382.8,844 2788 00
Department of Health,CT Revenue Funds,03/11/2016,Agency Admin & Clerical,CAMHS Learning Disabilities,PERTEMPS,P727408,76.56,844 2788 00
Department of Health,CT Revenue Funds,03/11/2016,Agency Admin & Clerical,Community Eating Disorder Service,PERTEMPS,P727409,69.36,844 2788 00
Department of Health,CT Revenue Funds,03/11/2016,Agency Admin & Clerical,Community Eating Disorder Service,PERTEMPS,P727409,13.87,844 2788 00
Department of Health,CT Revenue Funds,03/11/2016,Agency Admin & Clerical,CAMHS Admin,PERTEMPS,P727410,61.36,844 2788 00
Department of Health,CT Revenue Funds,03/11/2016,Agency Admin & Clerical,CAMHS Admin,PERTEMPS,P727410,306.8,844 2788 00
Department of Health,CT Revenue Funds,03/11/2016,Agency Admin & Clerical,CAMHS Admin,PERTEMPS,P727411,23.5,844 2788 00
Department of Health,CT Revenue Funds,03/11/2016,Agency Admin & Clerical,CAMHS Admin,PERTEMPS,P727411,117.48,844 2788 00
Department of Health,CT Revenue Funds,03/11/2016,Agency Consultants,Shropshire Community Paediatric Medical Staff,HEALTHMEDIX LTD,4641,30.02,
Department of Health,CT Revenue Funds,03/11/2016,Agency Consultants,Shropshire Community Paediatric Medical Staff,HEALTHMEDIX LTD,4641,6,
Department of Health,CT Revenue Funds,03/11/2016,Agency Consultants,Shropshire Child Psychiatry,PSYCHIATRY PEOPLE,PP146865,3571.24,
Department of Health,CT Revenue Funds,03/11/2016,Agency Consultants,Shropshire Child Psychiatry,PSYCHIATRY PEOPLE,PP146865,714.25,
Department of Health,CT Revenue Funds,03/11/2016,Agency Consultants,Shropshire Child Psychiatry,PSYCHIATRY PEOPLE,PP146866,6795.29,
Department of Health,CT Revenue Funds,03/11/2016,Agency Consultants,Shropshire Child Psychiatry,PSYCHIATRY PEOPLE,PP146866,1359.06,
Department of Health,CT Revenue Funds,03/11/2016,Agency Hlthcare Assistants & Support Staff,Bridgnorth Hospital Inpatient Ward,THORNBURY NURSING SERVICES LTD,3682153,427.16,676 2854 93
Department of Health,CT Revenue Funds,03/11/2016,Agency Hlthcare Assistants & Support Staff,Stoke Heath Prison Healthcare,ID MEDICAL,476334,753.81,733 7385 18
Department of Health,CT Revenue Funds,03/11/2016,Agency Hlthcare Assistants & Support Staff,Stoke Heath Prison Healthcare,ID MEDICAL,476335,531.9,733 7385 18
Department of Health,CT Revenue Funds,03/11/2016,Agency Hlthcare Assistants & Support Staff,Stoke Heath Prison Healthcare,ID MEDICAL,476336,461.48,733 7385 18
Department of Health,CT Revenue Funds,03/11/2016,Agency Hlthcare Assistants & Support Staff,Stoke Heath Prison Healthcare,ID MEDICAL,476337,384.48,733 7385 18
Department of Health,CT Revenue Funds,03/11/2016,Agency Hlthcare Assistants & Support Staff,Stoke Heath Prison Healthcare,ID MEDICAL,476338,461.48,733 7385 18
Department of Health,CT Revenue Funds,03/11/2016,Agency Hlthcare Assistants & Support Staff,Stoke Heath Prison Healthcare,ID MEDICAL,476339,830.53,733 7385 18
Department of Health,CT Revenue Funds,03/11/2016,Agency Hlthcare Assistants & Support Staff,Stoke Heath Prison Healthcare,ID MEDICAL,476340,461.48,733 7385 18
Department of Health,CT Revenue Funds,03/11/2016,Agency Hlthcare Assistants & Support Staff,Stoke Heath Prison Healthcare,ID MEDICAL,476341,830.53,733 7385 18
Department of Health,CT Revenue Funds,03/11/2016,Agency Nursing,Whitchurch Hospital Inpatient Ward,ACTONBANKS HEALTHCARE RECRUITMENT SPECIALISTS,00106354,348.75,909 8550 90
Department of Health,CT Revenue Funds,03/11/2016,Agency Nursing,Bishops Castle Hospital Inpatient Ward,ACTONBANKS HEALTHCARE RECRUITMENT SPECIALISTS,00106355,581.25,909 8550 90
Department of Health,CT Revenue Funds,03/11/2016,Agency Nursing,Stoke Heath Prison Healthcare,AMG NURSING & CARE SERVICES,10001821,1241.67,909 7863 74
Department of Health,CT Revenue Funds,03/11/2016,Agency Nursing,Whitchurch Hospital Inpatient Ward,ID MEDICAL,1192916,-302.52,733 7385 18
Department of Health,CT Revenue Funds,03/11/2016,Agency Nursing,Oswestry Minor Injuries Unit,MSI RECRUITMENT LTD,201064,1557.87,933 2976 04
Department of Health,CT Revenue Funds,03/11/2016,Agency Nursing,Oswestry Minor Injuries Unit,MSI RECRUITMENT LTD,208527,493.04,933 2976 04
Department of Health,CT Revenue Funds,03/11/2016,Agency Nursing,Oswestry Minor Injuries Unit,MSI RECRUITMENT LTD,208528,1653.87,933 2976 04
Department of Health,CT Revenue Funds,03/11/2016,Agency Nursing,Oswestry Minor Injuries Unit,MSI RECRUITMENT LTD,208925,418.7,933 2976 04
Department of Health,CT Revenue Funds,03/11/2016,Agency Nursing,Oswestry Minor Injuries Unit,MSI RECRUITMENT LTD,208926,418.7,933 2976 04
Department of Health,CT Revenue Funds,03/11/2016,Agency Nursing,Whitchurch Hospital Inpatient Ward,JANE LEWIS HEALTH AND SOCIAL CARE,217311,156.7,
Department of Health,CT Revenue Funds,03/11/2016,Agency Nursing,Whitchurch Hospital Inpatient Ward,JANE LEWIS HEALTH AND SOCIAL CARE,217311,783.51,
Department of Health,CT Revenue Funds,03/11/2016,Agency Nursing,Stoke Heath Prison Healthcare,ID MEDICAL,476333,1395.01,733 7385 18
Department of Health,CT Revenue Funds,03/11/2016,Agency Nursing,Bridgnorth Hospital Minor Injuries Unit,MEDACS HEALTHCARE SERVICES PLC,604-957373,229.12,745 7310 30
Department of Health,CT Revenue Funds,03/11/2016,Agency Nursing,CAMHS Team (T&W),HCL SOCIAL CARE,HSOC5607363,6.7,
Department of Health,CT Revenue Funds,03/11/2016,Agency Nursing,CAMHS Team (T&W),HCL SOCIAL CARE,HSOC5607363,1.34,
Department of Health,CT Revenue Funds,03/11/2016,Agency Nursing,Shropshire CAMHS Team,HCL SOCIAL CARE,HSOC5608038,1059.52,
Department of Health,CT Revenue Funds,03/11/2016,Agency Nursing,CAMHS Team (T&W),HCL SOCIAL CARE,HSOC5609418,743.09,
Department of Health,CT Revenue Funds,03/11/2016,Agency Nursing,CAMHS Team (T&W),HCL SOCIAL CARE,HSOC5609418,148.62,
Department of Health,CT Revenue Funds,03/11/2016,Agency Nursing,CAMHS Team (T&W),HCL SOCIAL CARE,HSOC5609419,0.54,
Department of Health,CT Revenue Funds,03/11/2016,Agency Nursing,CAMHS Team (T&W),HCL SOCIAL CARE,HSOC5609419,2.68,
Department of Health,CT Revenue Funds,03/11/2016,Agency Nursing,Shropshire CAMHS Team,HCL SOCIAL CARE,HSOC5609420,1419,
Department of Health,CT Revenue Funds,03/11/2016,Agency Nursing,Shropshire CAMHS Team,HCL SOCIAL CARE,HSOC5609421,27.34,
Department of Health,CT Revenue Funds,03/11/2016,Agency Nursing,Shropshire CAMHS Team,HCL SOCIAL CARE,HSOC5609421,5.47,
Department of Health,CT Revenue Funds,03/11/2016,Agency Nursing,Shropshire Primary CAMHS Service,HCL SOCIAL CARE,HSOC5609422,1494.38,
Department of Health,CT Revenue Funds,03/11/2016,Agency Nursing,Shropshire Primary CAMHS Service,HCL SOCIAL CARE,HSOC5609422,298.88,
Department of Health,CT Revenue Funds,03/11/2016,Agency Nursing,Stoke Heath Prison Healthcare,IMPERIAL MEDICAL STAFFING LTD,IMP144616,579.56,810 3150 89
Department of Health,CT Revenue Funds,03/11/2016,Agency Nursing,Stoke Heath Prison Healthcare,IMPERIAL MEDICAL STAFFING LTD,IMP144617,558.09,810 3150 89
Department of Health,CT Revenue Funds,03/11/2016,Agency Nursing,Stoke Heath Prison Healthcare,IMPERIAL MEDICAL STAFFING LTD,IMP144618,579.56,810 3150 89
Department of Health,CT Revenue Funds,03/11/2016,Agency Nursing,Stoke Heath Prison Healthcare,IMPERIAL MEDICAL STAFFING LTD,IMP146831,579.56,810 3150 89
Department of Health,CT Revenue Funds,03/11/2016,Agency Nursing,Stoke Heath Prison Healthcare,IMPERIAL MEDICAL STAFFING LTD,IMP146832,579.56,810 3150 89
Department of Health,CT Revenue Funds,03/11/2016,Agency Nursing,Stoke Heath Prison Healthcare,IMPERIAL MEDICAL STAFFING LTD,IMP146833,579.56,810 3150 89
Department of Health,CT Revenue Funds,03/11/2016,Agency Nursing,Shropshire CAMHS Team,JCJ LTD,SWP5608058,1500,
Department of Health,CT Revenue Funds,03/11/2016,Agency Nursing,Shropshire CAMHS Team,JCJ LTD,SWP5608058,300,
Department of Health,CT Revenue Funds,03/11/2016,Agency Nursing,Shropshire CAMHS Team,JCJ LTD,SWP5609450,300,
Department of Health,CT Revenue Funds,03/11/2016,Agency Nursing,Shropshire CAMHS Team,JCJ LTD,SWP5609450,1500,
Department of Health,CT Revenue Funds,03/11/2016,Agency PAMs,Shropshire CAMHS Team,PULSE,3672208,272.23,676 2854 93
Department of Health,CT Revenue Funds,03/11/2016,Agency PAMs,Shropshire CAMHS Team,PULSE,3672208,1361.16,676 2854 93
Department of Health,CT Revenue Funds,03/11/2016,Agency PAMs,Community Neuro Rehabilitation Team (CNRT),PULSE,3676153,148.4,676 2854 93
Department of Health,CT Revenue Funds,03/11/2016,Agency PAMs,Community Neuro Rehabilitation Team (CNRT),PULSE,3676153,741.98,676 2854 93
Department of Health,CT Revenue Funds,03/11/2016,Agency PAMs,Community Neuro Rehabilitation Team (CNRT),PULSE,3679687,741.98,676 2854 93
Department of Health,CT Revenue Funds,03/11/2016,Agency PAMs,Community Neuro Rehabilitation Team (CNRT),PULSE,3679687,148.4,676 2854 93
Department of Health,CT Revenue Funds,03/11/2016,Agency PAMs,ICS South West,RIG MEDICAL RECRUIT LTD,5102647,221.06,928 2047 24
Department of Health,CT Revenue Funds,03/11/2016,Agency PAMs,ICS South West,RIG MEDICAL RECRUIT LTD,5102647,1105.3,928 2047 24
Department of Health,CT Revenue Funds,03/11/2016,Agency PAMs,Community Neuro Rehabilitation Team (CNRT),VISS SIGN LANGUAGE INTERPRETING SERVICE,5938,-118.75,875 9280 71
Department of Health,CT Revenue Funds,03/11/2016,Agency PAMs,Community Neuro Rehabilitation Team (CNRT),VISS SIGN LANGUAGE INTERPRETING SERVICE,5938,118.75,875 9280 71
Department of Health,CT Revenue Funds,03/11/2016,Agency PAMs,ICS Central,YOUR WORLD RECRUITMENT LTD,YWR31310,524.1,
Department of Health,CT Revenue Funds,03/11/2016,Agency PAMs,ICS Central,YOUR WORLD RECRUITMENT LTD,YWR31310,104.82,
Department of Health,CT Revenue Funds,03/11/2016,Agency PAMs,ICS North West,YOUR WORLD RECRUITMENT LTD,YWR31312,418.5,
Department of Health,CT Revenue Funds,03/11/2016,Agency PAMs,ICS North West,YOUR WORLD RECRUITMENT LTD,YWR31312,83.7,
Department of Health,CT Revenue Funds,03/11/2016,Bed Accessories,Community Equipment Stores,OTS LTD,0000016472,155.94,
Department of Health,CT Revenue Funds,03/11/2016,Bed Accessories,Community Equipment Stores,OTS LTD,0000016472,779.7,
Department of Health,CT Revenue Funds,03/11/2016,Bed Accessories,Community Equipment Stores,C&S SEATING (SURREY),10161,90.75,
Department of Health,CT Revenue Funds,03/11/2016,Bed Accessories,Community Equipment Stores,C&S SEATING (SURREY),10161,18.15,
Department of Health,CT Revenue Funds,03/11/2016,Bed Accessories,Community Equipment Stores,C&S SEATING (SURREY),10162,18.15,
Department of Health,CT Revenue Funds,03/11/2016,Bed Accessories,Community Equipment Stores,C&S SEATING (SURREY),10162,21.56,
Department of Health,CT Revenue Funds,03/11/2016,Bed Accessories,Community Equipment Stores,C&S SEATING (SURREY),10162,8,
Department of Health,CT Revenue Funds,03/11/2016,Bed Accessories,Community Equipment Stores,C&S SEATING (SURREY),10162,1.6,
Department of Health,CT Revenue Funds,03/11/2016,Bed Accessories,Community Equipment Stores,C&S SEATING (SURREY),10162,107.8,
Department of Health,CT Revenue Funds,03/11/2016,Bed Accessories,Community Equipment Stores,C&S SEATING (SURREY),10162,90.75,
Department of Health,CT Revenue Funds,03/11/2016,Bed Accessories,Community Equipment Stores,FRONTIER THERAPEUTICS,429715,149.55,700 8536 57
Department of Health,CT Revenue Funds,03/11/2016,Bed Accessories,Community Equipment Stores,FRONTIER THERAPEUTICS,429715,747.75,700 8536 57
Department of Health,CT Revenue Funds,03/11/2016,Bed Accessories,Community Equipment Stores,PARNELL PRODUCTS LTD,PP3467,175,
Department of Health,CT Revenue Funds,03/11/2016,Bed Accessories,Community Equipment Stores,PARNELL PRODUCTS LTD,PP3467,875,
Department of Health,CT Revenue Funds,03/11/2016,Bed Accessories,Community Equipment Stores,HANDICARE LTD,SIN489466,112.48,
Department of Health,CT Revenue Funds,03/11/2016,Bed Accessories,Community Equipment Stores,HANDICARE LTD,SIN489466,562.4,
Department of Health,CT Revenue Funds,03/11/2016,Bed Accessories,Community Equipment Stores,HANDICARE LTD,SIN489466,562.4,
Department of Health,CT Revenue Funds,03/11/2016,Bed Accessories,Community Equipment Stores,HANDICARE LTD,SIN489466,112.48,
Department of Health,CT Revenue Funds,03/11/2016,Bedding & Linen : Non-Disposable,Shrewsbury and Atcham Physiotherapy Clinics,TELFORD LAUNDRY,INV-85114,10,
Department of Health,CT Revenue Funds,03/11/2016,Bedding & Linen : Non-Disposable,Shrewsbury and Atcham Physiotherapy Clinics,TELFORD LAUNDRY,INV-85721,22.26,
Department of Health,CT Revenue Funds,03/11/2016,Beds,Community Equipment Stores,HOSPITAL DIRECT (MARKETING) LTD,59678,65,752 7823 12
Department of Health,CT Revenue Funds,03/11/2016,Beds,Community Equipment Stores,HOSPITAL DIRECT (MARKETING) LTD,59678,13,752 7823 12
Department of Health,CT Revenue Funds,03/11/2016,Car Parking,Community Matrons Telford,SHREWSBURY AND TELFORD HOSPITAL NHS TRUST,V BEDDOES BN55NKS,45,
Department of Health,CT Revenue Funds,03/11/2016,Catering Provisions,Bridgnorth Hospital Catering,BIDVEST FOODSERVICE,69700666,54.4,643 9946 92
Department of Health,CT Revenue Funds,03/11/2016,Catering Provisions,Bridgnorth Hospital Catering,BIDVEST FOODSERVICE,69700666,680.85,643 9946 92
Department of Health,CT Revenue Funds,03/11/2016,Catering Provisions,Bridgnorth Hospital Catering,BIDVEST FOODSERVICE,69700666,10.88,643 9946 92
Department of Health,CT Revenue Funds,03/11/2016,Catering Provisions,Bridgnorth Hospital Catering,BIDVEST FOODSERVICE,69798078,603.3,643 9946 92
Department of Health,CT Revenue Funds,03/11/2016,Catering Provisions,Bridgnorth Hospital Catering,BIDVEST FOODSERVICE,69798078,13.9,643 9946 92
Department of Health,CT Revenue Funds,03/11/2016,Catering Provisions,Bridgnorth Hospital Catering,BIDVEST FOODSERVICE,69798078,69.5,643 9946 92
Department of Health,CT Revenue Funds,03/11/2016,Catering Provisions,Ludlow Hospital Catering,BIDVEST FOODSERVICE,69798330,109,643 9946 92
Department of Health,CT Revenue Funds,03/11/2016,Catering Provisions,Ludlow Hospital Catering,BIDVEST FOODSERVICE,69798330,21.8,643 9946 92
Department of Health,CT Revenue Funds,03/11/2016,Catering Provisions,Whitchurch Hospital Catering,BIDVEST FOODSERVICE,69833667,-30.38,643 9946 92
Department of Health,CT Revenue Funds,03/11/2016,Catering Provisions,Whitchurch Hospital Catering,BIDVEST FOODSERVICE,69833667,414.65,643 9946 92
Department of Health,CT Revenue Funds,03/11/2016,Catering Provisions,Whitchurch Hospital Catering,BIDVEST FOODSERVICE,69833667,30.36,643 9946 92
Department of Health,CT Revenue Funds,03/11/2016,Catering Provisions,Whitchurch Hospital Catering,BIDVEST FOODSERVICE,69833667,151.82,643 9946 92
Department of Health,CT Revenue Funds,03/11/2016,Catering Provisions,Whitchurch Hospital Catering,BIDVEST FOODSERVICE,69833667,151.9,643 9946 92
Department of Health,CT Revenue Funds,03/11/2016,Catering Provisions,Whitchurch Hospital Catering,BIDVEST FOODSERVICE,69833667,30.38,643 9946 92
Department of Health,CT Revenue Funds,03/11/2016,Catering Provisions,Whitchurch Hospital Catering,BIDVEST FOODSERVICE,69833667,-151.9,643 9946 92
Department of Health,CT Revenue Funds,03/11/2016,Catering Provisions,Ludlow Hospital Catering,BIDVEST FOODSERVICE,69833818,236.94,643 9946 92
Department of Health,CT Revenue Funds,03/11/2016,Catering Provisions,Bridgnorth Hospital Catering,JOHAL DAIRIES LTD,805961,98.99,101 3075 37
Department of Health,CT Revenue Funds,03/11/2016,Catering Provisions,Bridgnorth Hospital Catering,JOHAL DAIRIES LTD,809339,109.11,101 3075 37
Department of Health,CT Revenue Funds,03/11/2016,Catering Provisions,Whitchurch Hospital Catering,JOHAL DAIRIES LTD,809340,82.68,101 3075 37
Department of Health,CT Revenue Funds,03/11/2016,Catering Provisions,Ludlow Hospital Catering,JOHN SHEPPARD BUTCHERS LTD,SCRN013302,-35.64,
Department of Health,CT Revenue Funds,03/11/2016,Catering Provisions,Ludlow Hospital Catering,JOHN SHEPPARD BUTCHERS LTD,SINV517283,120.13,
Department of Health,CT Revenue Funds,03/11/2016,Catering Provisions,Bridgnorth Hospital Catering,JOHN SHEPPARD BUTCHERS LTD,SINV523672,13.98,
Department of Health,CT Revenue Funds,03/11/2016,Catering Provisions,Bridgnorth Hospital Catering,JOHN SHEPPARD BUTCHERS LTD,SINV524788,69.66,
Department of Health,CT Revenue Funds,03/11/2016,Catering Provisions,Bridgnorth Hospital Catering,JOHN SHEPPARD BUTCHERS LTD,SINV527192,137.5,
Department of Health,CT Revenue Funds,03/11/2016,Charity Donations,Payables,CHARITIES TRUST,OCT16,30,
Department of Health,CT Revenue Funds,03/11/2016,Chirpody Services,Stoke Heath Prison Healthcare,FOOTWORK'S CHIROPODY SERVICES,177,398,
Department of Health,CT Revenue Funds,03/11/2016,Cleaning Materials,Stoke Heath Prison Healthcare,HALLS SMS,14394,99.32,
Department of Health,CT Revenue Funds,03/11/2016,Cleaning Materials,Stoke Heath Prison Healthcare,HALLS SMS,14394,496.58,
Department of Health,CT Revenue Funds,03/11/2016,Computer Consumables,Community Childrens Nurses,MISCO COMPUTER SUPPLIES LTD,11134249,42.55,494 1756 15
Department of Health,CT Revenue Funds,03/11/2016,Computer Consumables,Community Childrens Nurses,MISCO COMPUTER SUPPLIES LTD,11134249,8.51,494 1756 15
Department of Health,CT Revenue Funds,03/11/2016,Computer Consumables,Community Childrens Nurses,MISCO COMPUTER SUPPLIES LTD,11134249,-0.34,494 1756 15
Department of Health,CT Revenue Funds,03/11/2016,Computer Consumables,Community Childrens Nurses,MISCO COMPUTER SUPPLIES LTD,11134249,-1.68,494 1756 15
Department of Health,CT Revenue Funds,03/11/2016,Computer Hardware & Software,North West Shropshire Interdisciplinary Teams,MISCO COMPUTER SUPPLIES LTD,11124931,82.06,494 1756 15
Department of Health,CT Revenue Funds,03/11/2016,Computer Hardware & Software,North West Shropshire Interdisciplinary Teams,MISCO COMPUTER SUPPLIES LTD,11124931,-0.06,494 1756 15
Department of Health,CT Revenue Funds,03/11/2016,Computer Hardware & Software,North West Shropshire Interdisciplinary Teams,MISCO COMPUTER SUPPLIES LTD,11124931,16.41,494 1756 15
Department of Health,CT Revenue Funds,03/11/2016,Computer Hardware & Software,North West Shropshire Interdisciplinary Teams,MISCO COMPUTER SUPPLIES LTD,11124931,-0.28,494 1756 15
Department of Health,CT Revenue Funds,03/11/2016,Computer Hardware & Software,Bridgnorth Hospital Administration,DELL COMPUTER CORPORATION,7402321571,10.78,635 8235 28
Department of Health,CT Revenue Funds,03/11/2016,Computer Hardware & Software,Bridgnorth Hospital Administration,DELL COMPUTER CORPORATION,7402321571,2.16,635 8235 28
Department of Health,CT Revenue Funds,03/11/2016,Computer Hardware & Software,Telford North Community Nursing,DELL COMPUTER CORPORATION,7402321807,137.17,635 8235 28
Department of Health,CT Revenue Funds,03/11/2016,Computer Hardware & Software,Telford North Community Nursing,DELL COMPUTER CORPORATION,7402321807,685.84,635 8235 28
Department of Health,CT Revenue Funds,03/11/2016,Computer Hardware & Software,Governance and Strategy Management,DELL COMPUTER CORPORATION,7402321883,139.18,635 8235 28
Department of Health,CT Revenue Funds,03/11/2016,Computer Hardware & Software,Governance and Strategy Management,DELL COMPUTER CORPORATION,7402321883,695.92,635 8235 28
Department of Health,CT Revenue Funds,03/11/2016,Computer Hardware & Software,Bridgnorth Hospital Management,DELL COMPUTER CORPORATION,7402322111,685.84,635 8235 28
Department of Health,CT Revenue Funds,03/11/2016,Computer Hardware & Software,Bridgnorth Hospital Management,DELL COMPUTER CORPORATION,7402322111,137.17,635 8235 28
Department of Health,CT Revenue Funds,03/11/2016,Computer Hardware & Software,Bridgnorth Hospital Management,DELL COMPUTER CORPORATION,7402322111,84.8,635 8235 28
Department of Health,CT Revenue Funds,03/11/2016,Computer Hardware & Software,Bridgnorth Hospital Management,DELL COMPUTER CORPORATION,7402322111,16.96,635 8235 28
Department of Health,CT Revenue Funds,03/11/2016,Computer Hardware & Software,Shropshire CAMHS Team,DELL COMPUTER CORPORATION,7402322130,1773.51,635 8235 28
Department of Health,CT Revenue Funds,03/11/2016,Computer Hardware & Software,Shropshire CAMHS Team,DELL COMPUTER CORPORATION,7402322130,354.7,635 8235 28
Department of Health,CT Revenue Funds,03/11/2016,Computer Network Costs,Halesfield Premises,WT COMMUNICATIONS LTD,2600,26,
Department of Health,CT Revenue Funds,03/11/2016,Computer Network Costs,Halesfield Premises,WT COMMUNICATIONS LTD,2600,130,
Department of Health,CT Revenue Funds,03/11/2016,Conferences And Seminars,Emergency Planning,SHROPSHIRE COUNCIL,XEP000045,30,162 3474 72
Department of Health,CT Revenue Funds,03/11/2016,Conferences And Seminars,Operations Directorate Management,SHROPSHIRE COUNCIL,XEP000048,30,162 3474 72
Department of Health,CT Revenue Funds,03/11/2016,Confidential Waste Collection,Oswestry Primary CC,DATA SOLUTIONS,64331047,44.52,
Department of Health,CT Revenue Funds,03/11/2016,Confidential Waste Collection,Longbow Unit B,DATA SOLUTIONS,64339072,9.24,
Department of Health,CT Revenue Funds,03/11/2016,Confidential Waste Collection,Wem Professional Centre,DATA SOLUTIONS,64339709,40.18,
Department of Health,CT Revenue Funds,03/11/2016,Confidential Waste Collection,Oswestry Primary CC,DATA SOLUTIONS,64343821,29.18,
Department of Health,CT Revenue Funds,03/11/2016,Confidential Waste Collection,Longbow Unit B,DATA SOLUTIONS,64350656,92.75,
Department of Health,CT Revenue Funds,03/11/2016,Confidential Waste Collection,Ludlow Hospital,DATA SOLUTIONS,64350657,26,
Department of Health,CT Revenue Funds,03/11/2016,Confidential Waste Collection,Ludlow Hospital,DATA SOLUTIONS,64350657,5.2,
Department of Health,CT Revenue Funds,03/11/2016,Confidential Waste Collection,Bridgnorth Health Centre,DATA SOLUTIONS,64351595,18.36,
Department of Health,CT Revenue Funds,03/11/2016,Consultant - Psychiatry,Community Neuro Rehabilitation Team (CNRT),DR RICHARD WARBURG,954,296,
Department of Health,CT Revenue Funds,03/11/2016,Contract : Grounds & Gardens,Dale Acre Way,SPACECARE (SHROPSHIRE),1016023,135,790 8831 89
Department of Health,CT Revenue Funds,03/11/2016,Contract : Photocopying Rental & Charges,Occupational Health Stoke,KONICA BUSINESS MACHINES (UK) LTD,1127237297,98.65,974 9607 63
Department of Health,CT Revenue Funds,03/11/2016,Contract : Photocopying Rental & Charges,Special Care and Access,XEROX UK,1606154924,17.54,232 3646 82
Department of Health,CT Revenue Funds,03/11/2016,Contract : Photocopying Rental & Charges,APCS Administration,XEROX UK,1606158467,-23.91,232 3646 82
Department of Health,CT Revenue Funds,03/11/2016,Contract : Photocopying Rental & Charges,APCS Administration,XEROX UK,1606162541,11.46,232 3646 82
Department of Health,CT Revenue Funds,03/11/2016,Contract : Photocopying Rental & Charges,APCS Administration,XEROX UK,1606162542,4.96,232 3646 82
Department of Health,CT Revenue Funds,03/11/2016,Contract : Photocopying Rental & Charges,APCS Administration,XEROX UK,1606162543,-162.48,232 3646 82
Department of Health,CT Revenue Funds,03/11/2016,Contract : Photocopying Rental & Charges,Glebe Centre Premises,XEROX UK,1606168522,949.86,232 3646 82
Department of Health,CT Revenue Funds,03/11/2016,Contract : Photocopying Rental & Charges,Bishops Castle Hospital Inpatient Ward,XEROX UK,1606182770,32.14,232 3646 82
Department of Health,CT Revenue Funds,03/11/2016,Contract : Photocopying Rental & Charges,Ludlow Hospital Inpatient Wards,XEROX UK,1606183430,-47.05,232 3646 82
Department of Health,CT Revenue Funds,03/11/2016,Contract : Photocopying Rental & Charges,Ludlow Hospital Inpatient Wards,XEROX UK,1606183432,-21.82,232 3646 82
Department of Health,CT Revenue Funds,03/11/2016,Contract : Photocopying Rental & Charges,Ludlow Hospital Inpatient Wards,XEROX UK,1606183433,-9.99,232 3646 82
Department of Health,CT Revenue Funds,03/11/2016,Contract : Photocopying Rental & Charges,Ludlow Hospital Inpatient Wards,XEROX UK,1606183440,0.71,232 3646 82
Department of Health,CT Revenue Funds,03/11/2016,Contract : Photocopying Rental & Charges,Ludlow Hospital Inpatient Wards,XEROX UK,1606183441,0.71,232 3646 82
Department of Health,CT Revenue Funds,03/11/2016,Contract : Photocopying Rental & Charges,Ludlow Hospital Inpatient Wards,XEROX UK,1606183442,0.71,232 3646 82
Department of Health,CT Revenue Funds,03/11/2016,Course Fees,Learning Beyond Registration,PHYSIO IMPULSE LTD,A GREGORY 18-19.3.17 BATH,199,
Department of Health,CT Revenue Funds,03/11/2016,Cycle to Work Salary Sacrifice,Payables,SME HCI LTD,124900 PAYMENT 12 & 13,33.37,
Department of Health,CT Revenue Funds,03/11/2016,Cycle to Work Salary Sacrifice,Payables,SME HCI LTD,124900 PAYMENT 12 & 13,48,
Department of Health,CT Revenue Funds,03/11/2016,Cycle to Work Salary Sacrifice,Payables,SME HCI LTD,125256 PAYMENT 8,18.09,
Department of Health,CT Revenue Funds,03/11/2016,Cycle to Work Salary Sacrifice,Payables,SME HCI LTD,125469 PAYMENT 6,237.47,
Department of Health,CT Revenue Funds,03/11/2016,Cycle to Work Salary Sacrifice,Payables,SME HCI LTD,125572 PAYMENT 5,48.32,
Department of Health,CT Revenue Funds,03/11/2016,Cycle to Work Salary Sacrifice,Payables,SME HCI LTD,125658 PAYMENT 4,33.69,
Department of Health,CT Revenue Funds,03/11/2016,Data Lines,William Farr House,BT PLC,0790192829,12501.37,245 7193 48
Department of Health,CT Revenue Funds,03/11/2016,Debt Recovery & Credit Control,Ludlow Hospital Catering,CCI CREDIT MANAGEMENT LTD,SCH8 INV011874,8,
Department of Health,CT Revenue Funds,03/11/2016,Dental Surgery Equipment,M Drayton Dental Practice,ISOPHARM SENTRY LTD,INV65230,114.95,
Department of Health,CT Revenue Funds,03/11/2016,Dental Surgery Equipment,M Drayton Dental Practice,ISOPHARM SENTRY LTD,INV65230,22.99,
Department of Health,CT Revenue Funds,03/11/2016,Dental Surgery Equipment,Special Care and Access,RA MEDICAL SERVICES,L16/1608,4,651810355
Department of Health,CT Revenue Funds,03/11/2016,Dental Surgery Equipment,Special Care and Access,RA MEDICAL SERVICES,L16/1608,20,651810355
Department of Health,CT Revenue Funds,03/11/2016,Dental Surgery Sundries,Special Care and Access,OSWESTRY DENTAL LAB,1474-OCT16,48.32,
Department of Health,CT Revenue Funds,03/11/2016,Dental Surgery Sundries,Special Care and Access,OSWESTRY DENTAL LAB,510-OCT16,96.1,
Department of Health,CT Revenue Funds,03/11/2016,Dental Surgery Sundries,Special Care and Access,S4 DENTAL LABORATORY,BELL01-OCT16,286.32,
Department of Health,CT Revenue Funds,03/11/2016,Dental Surgery Sundries,Special Care and Access,S4 DENTAL LABORATORY,MARSH-OCT16,241,
Department of Health,CT Revenue Funds,03/11/2016,Dental Surgery Sundries,Special Care and Access,HENRY SCHEIN MINERVA - CONSUMABLES,RI66223724,0.05,573 7789 79
Department of Health,CT Revenue Funds,03/11/2016,Dental Surgery Sundries,Special Care and Access,HENRY SCHEIN MINERVA - CONSUMABLES,RI66223724,2.68,573 7789 79
Department of Health,CT Revenue Funds,03/11/2016,Dental Surgery Sundries,Special Care and Access,HENRY SCHEIN MINERVA - CONSUMABLES,RI66223724,0.27,573 7789 79
Department of Health,CT Revenue Funds,03/11/2016,Dental Surgery Sundries,Special Care and Access,HENRY SCHEIN MINERVA - CONSUMABLES,RI66223724,13.39,573 7789 79
Department of Health,CT Revenue Funds,03/11/2016,Dental Surgery Sundries,Special Care and Access,S4 DENTAL LABORATORY,SEAGDAWLEY-OCT16,113,
Department of Health,CT Revenue Funds,03/11/2016,Dental Surgery Sundries,Special Care and Access,S4 DENTAL LABORATORY,SHR01-OCT16,18,
Department of Health,CT Revenue Funds,03/11/2016,Drugs,Dudley School Nurses,MURRAYS HEALTHCARE,19087,67.27,
Department of Health,CT Revenue Funds,03/11/2016,Drugs,Dudley School Nurses,MURRAYS HEALTHCARE,19087,336.37,
Department of Health,CT Revenue Funds,03/11/2016,Drugs,Oswestry Minor Injuries Unit,AAH PHARMACEUTICALS,48497913H,4.4,546 5733 22
Department of Health,CT Revenue Funds,03/11/2016,Drugs,Oswestry Minor Injuries Unit,AAH PHARMACEUTICALS,48497913H,21.98,546 5733 22
Department of Health,CT Revenue Funds,03/11/2016,Drugs,Occupational Health Shropshire,SANOFI PASTEUR MSD,6060754585,189.6,247 9665 11
Department of Health,CT Revenue Funds,03/11/2016,Drugs,Occupational Health Shropshire,SANOFI PASTEUR MSD,6060754585,948,247 9665 11
Department of Health,CT Revenue Funds,03/11/2016,Drugs,Occupational Health Shropshire,SANOFI PASTEUR MSD,6060758529,189.6,247 9665 11
Department of Health,CT Revenue Funds,03/11/2016,Drugs,Occupational Health Shropshire,SANOFI PASTEUR MSD,6060758529,948,247 9665 11
Department of Health,CT Revenue Funds,03/11/2016,Drugs,Stoke Heath Prison Healthcare,LUNTS PHARMACY,636,8960.98,163 1453 84
Department of Health,CT Revenue Funds,03/11/2016,Drugs,Stoke Heath Prison Healthcare,LUNTS PHARMACY,636,719.57,163 1453 84
Department of Health,CT Revenue Funds,03/11/2016,Drugs,Stoke Heath Prison Healthcare,LUNTS PHARMACY,636,3597.85,163 1453 84
Department of Health,CT Revenue Funds,03/11/2016,Drugs,Oswestry Minor Injuries Unit,AAH PHARMACEUTICALS,81363896E,1.89,546 5733 22
Department of Health,CT Revenue Funds,03/11/2016,Drugs,Oswestry Minor Injuries Unit,AAH PHARMACEUTICALS,81363896E,9.45,546 5733 22
Department of Health,CT Revenue Funds,03/11/2016,Drugs,Stoke Heath Prison Healthcare,AAH PHARMACEUTICALS,82069314Q,259.84,546 5733 22
Department of Health,CT Revenue Funds,03/11/2016,Drugs,Stoke Heath Prison Healthcare,AAH PHARMACEUTICALS,82069314Q,1299.2,546 5733 22
Department of Health,CT Revenue Funds,03/11/2016,Drugs,Oswestry Minor Injuries Unit,AAH PHARMACEUTICALS,82402032G,65,546 5733 22
Department of Health,CT Revenue Funds,03/11/2016,Drugs,Oswestry Minor Injuries Unit,AAH PHARMACEUTICALS,82402032G,13,546 5733 22
Department of Health,CT Revenue Funds,03/11/2016,Drugs,Stoke Heath Prison Healthcare,NPA SERVICES LTD,KW0710201652514,99.9,
Department of Health,CT Revenue Funds,03/11/2016,Drugs,Stoke Heath Prison Healthcare,NPA SERVICES LTD,KW0710201652514,19.98,
Department of Health,CT Revenue Funds,03/11/2016,Drugs,Shrewsbury and Atcham DAART,ALLOGA UK LTD,SIN101793172,811.76,684 0905 20
Department of Health,CT Revenue Funds,03/11/2016,Drugs,Shrewsbury and Atcham DAART,ALLOGA UK LTD,SIN101793172,162.35,684 0905 20
Department of Health,CT Revenue Funds,03/11/2016,Drugs,Oswestry Minor Injuries Unit,LEXON UK LTD,SO10954012,8.04,661 2658 33
Department of Health,CT Revenue Funds,03/11/2016,Drugs,Oswestry Minor Injuries Unit,LEXON UK LTD,SO10954012,40.2,661 2658 33
Department of Health,CT Revenue Funds,03/11/2016,Drugs,Stoke Heath Prison Healthcare,LEXON UK LTD,SO11075502,4.8,661 2658 33
Department of Health,CT Revenue Funds,03/11/2016,Drugs,Stoke Heath Prison Healthcare,LEXON UK LTD,SO11075502,24,661 2658 33
Department of Health,CT Revenue Funds,03/11/2016,Drugs,Stoke Heath Prison Healthcare,LEXON UK LTD,SO11086439,52.5,661 2658 33
Department of Health,CT Revenue Funds,03/11/2016,Drugs,Stoke Heath Prison Healthcare,LEXON UK LTD,SO11086439,10.5,661 2658 33
Department of Health,CT Revenue Funds,03/11/2016,Drugs,Stoke Heath Prison Healthcare,LEXON UK LTD,SO11086493,194,661 2658 33
Department of Health,CT Revenue Funds,03/11/2016,Drugs,Stoke Heath Prison Healthcare,LEXON UK LTD,SO11086493,38.8,661 2658 33
Department of Health,CT Revenue Funds,03/11/2016,Drugs,Stoke Heath Prison Healthcare,LEXON UK LTD,SO11093841,104.6,661 2658 33
Department of Health,CT Revenue Funds,03/11/2016,Drugs,Stoke Heath Prison Healthcare,LEXON UK LTD,SO11093841,20.92,661 2658 33
Department of Health,CT Revenue Funds,03/11/2016,DWP Direct Earnings Attachment,Payables,POWYS COUNTY COUNCIL,9001645279-OCT16,294.23,
Department of Health,CT Revenue Funds,03/11/2016,DWP Direct Earnings Attachment,Payables,CAPS,A0QP6246 - OCT16,25,
Department of Health,CT Revenue Funds,03/11/2016,DWP Direct Earnings Attachment,Payables,CHILD SUPPORT AGENCY,NA832670D - OCT16,329.14,
Department of Health,CT Revenue Funds,03/11/2016,DWP Direct Earnings Attachment,Payables,DEPARTMENT FOR WORK AND PENSIONS,NP042517C/YY434806B-OCT16,65.73,
Department of Health,CT Revenue Funds,03/11/2016,DWP Direct Earnings Attachment,Payables,CHESHIRE WEST & CHESHIRE COUNCIL,OCT16,53.68,
Department of Health,CT Revenue Funds,03/11/2016,DWP Direct Earnings Attachment,Payables,SHROPSHIRE COUNCIL,OCT16,712.7,162 3474 72
Department of Health,CT Revenue Funds,03/11/2016,Electricity,Lady Forrester Much Wenlock,BRITISH GAS BUSINESS,952194815-974150085,83.9,684 9667 62
Department of Health,CT Revenue Funds,03/11/2016,Electricity,Lady Forrester Much Wenlock,BRITISH GAS BUSINESS,952194815-974150085,4.2,684 9667 62
Department of Health,CT Revenue Funds,03/11/2016,Electricity,Castle Foregate 71,BRITISH GAS BUSINESS,952194815-974150086,407.8,684 9667 62
Department of Health,CT Revenue Funds,03/11/2016,Electricity,Castle Foregate 71,BRITISH GAS BUSINESS,952194815-974150086,81.56,684 9667 62
Department of Health,CT Revenue Funds,03/11/2016,Electricity,Hadley GP Premises,BRITISH GAS BUSINESS,952194815-974150088,0.93,684 9667 62
Department of Health,CT Revenue Funds,03/11/2016,Electricity,Hadley GP Premises,BRITISH GAS BUSINESS,952194815-974150088,18.63,684 9667 62
Department of Health,CT Revenue Funds,03/11/2016,Electricity,Oakengates GPs Premises,BRITISH GAS BUSINESS,952194815-974150089,29.09,684 9667 62
Department of Health,CT Revenue Funds,03/11/2016,Electricity,Oakengates GPs Premises,BRITISH GAS BUSINESS,952194815-974150089,145.43,684 9667 62
Department of Health,CT Revenue Funds,03/11/2016,Electricity,Madeley GP Premises,BRITISH GAS BUSINESS,952194815-974150090,87.81,684 9667 62
Department of Health,CT Revenue Funds,03/11/2016,Electricity,Madeley GP Premises,BRITISH GAS BUSINESS,952194815-974150090,4.39,684 9667 62
Department of Health,CT Revenue Funds,03/11/2016,Electricity,Sutton Hill GP Premises,BRITISH GAS BUSINESS,952194815-974150091,32.78,684 9667 62
Department of Health,CT Revenue Funds,03/11/2016,Electricity,Sutton Hill GP Premises,BRITISH GAS BUSINESS,952194815-974150091,1.64,684 9667 62
Department of Health,CT Revenue Funds,03/11/2016,External Consultancy Fees,Finance Directorate Management,MERIDIAN PRODUCTIVITY LTD,HEC-Z156-1837-12,9575.62,
Department of Health,CT Revenue Funds,03/11/2016,External Contracts : Domestics,Dale Acre Way,CLEVELAND CLEANING LIMITED,04/10309,569.67,
Department of Health,CT Revenue Funds,03/11/2016,External Contracts : Domestics,Charlesworth Court Unit B,RYMINSTER LTD,CWC/0179,19.04,
Department of Health,CT Revenue Funds,03/11/2016,External Contracts : Domestics,Charlesworth Court Unit B,RYMINSTER LTD,CWC/0179,95.17,
Department of Health,CT Revenue Funds,03/11/2016,External Contracts : Domestics,Tissue Viability Nurses (T&W),FRESH HOUSE PROFESSIONAL OFFICE & DOMESTIC CLEANING,FH000306,24,
Department of Health,CT Revenue Funds,03/11/2016,External Contracts : Domestics,Tissue Viability Nurses (T&W),FRESH HOUSE PROFESSIONAL OFFICE & DOMESTIC CLEANING,FH000314,24,
Department of Health,CT Revenue Funds,03/11/2016,Fair Share Credit Union,Payables,FAIRSHARE CREDIT UNION LTD,OCT16,540,
Department of Health,CT Revenue Funds,03/11/2016,Furniture & Fittings,Telford North Community Nursing,ARGOS,01467330,-0.58,145 8990 25
Department of Health,CT Revenue Funds,03/11/2016,Furniture & Fittings,Telford North Community Nursing,ARGOS,01467330,-52.48,145 8990 25
Department of Health,CT Revenue Funds,03/11/2016,Furniture & Fittings,Telford North Community Nursing,ARGOS,01467330,-10.5,145 8990 25
Department of Health,CT Revenue Funds,03/11/2016,Furniture & Fittings,Telford North Community Nursing,ARGOS,01467330,-2.92,145 8990 25
Department of Health,CT Revenue Funds,03/11/2016,Furniture & Fittings,Dudley School Nurses,ARGOS,01468625,19.78,145 8990 25
Department of Health,CT Revenue Funds,03/11/2016,Furniture & Fittings,Dudley School Nurses,ARGOS,01468625,3.96,145 8990 25
Department of Health,CT Revenue Funds,03/11/2016,Furniture & Fittings,Dudley School Nurses,ARGOS,01468625,-0.01,145 8990 25
Department of Health,CT Revenue Funds,03/11/2016,Furniture & Fittings,Falls Prevention,EMERGENT CROWN OFFICE,125428,2.46,516 1639 55
Department of Health,CT Revenue Funds,03/11/2016,Furniture & Fittings,Falls Prevention,EMERGENT CROWN OFFICE,125428,19.68,516 1639 55
Department of Health,CT Revenue Funds,03/11/2016,Furniture & Fittings,Falls Prevention,EMERGENT CROWN OFFICE,125428,12.3,516 1639 55
Department of Health,CT Revenue Funds,03/11/2016,Furniture & Fittings,Falls Prevention,EMERGENT CROWN OFFICE,125428,98.4,516 1639 55
Department of Health,CT Revenue Funds,03/11/2016,General Practitioner Sessions / Staff Fund,Whitchurch Hospital Inpatient Ward,RICHMOND HOUSE SURGERY,WCH191016,640,
Department of Health,CT Charitable Funds,03/11/2016,Grants re Patients Welfare,SCW1 Whitchurch Hospital Patient Welfare,ARGOS,01462199,0.66,145 8990 25
Department of Health,CT Charitable Funds,03/11/2016,Grants re Patients Welfare,SCW1 Whitchurch Hospital Patient Welfare,ARGOS,01462199,1,145 8990 25
Department of Health,CT Charitable Funds,03/11/2016,Grants re Patients Welfare,SCW1 Whitchurch Hospital Patient Welfare,ARGOS,01462199,-0.66,145 8990 25
Department of Health,CT Charitable Funds,03/11/2016,Grants re Patients Welfare,SCW1 Whitchurch Hospital Patient Welfare,ARGOS,01462199,3.3,145 8990 25
Department of Health,CT Charitable Funds,03/11/2016,Grants re Patients Welfare,SCW1 Whitchurch Hospital Patient Welfare,ARGOS,01462199,0.66,145 8990 25
Department of Health,CT Charitable Funds,03/11/2016,Grants re Patients Welfare,SCW1 Whitchurch Hospital Patient Welfare,ARGOS,01462199,1,145 8990 25
Department of Health,CT Charitable Funds,03/11/2016,Grants re Patients Welfare,SCW1 Whitchurch Hospital Patient Welfare,ARGOS,01462199,-3.75,145 8990 25
Department of Health,CT Charitable Funds,03/11/2016,Grants re Patients Welfare,SCW1 Whitchurch Hospital Patient Welfare,ARGOS,01462199,3.75,145 8990 25
Department of Health,CT Charitable Funds,03/11/2016,Grants re Patients Welfare,SCW1 Whitchurch Hospital Patient Welfare,ARGOS,01462199,0.65,145 8990 25
Department of Health,CT Charitable Funds,03/11/2016,Grants re Patients Welfare,SCW1 Whitchurch Hospital Patient Welfare,ARGOS,01462199,-0.65,145 8990 25
Department of Health,CT Charitable Funds,03/11/2016,Grants re Patients Welfare,SCW1 Whitchurch Hospital Patient Welfare,ARGOS,01462199,-0.66,145 8990 25
Department of Health,CT Charitable Funds,03/11/2016,Grants re Patients Welfare,SCW1 Whitchurch Hospital Patient Welfare,ARGOS,01462199,3.75,145 8990 25
Department of Health,CT Charitable Funds,03/11/2016,Grants re Patients Welfare,SCW1 Whitchurch Hospital Patient Welfare,ARGOS,01462199,-0.01,145 8990 25
Department of Health,CT Charitable Funds,03/11/2016,Grants re Patients Welfare,SCW1 Whitchurch Hospital Patient Welfare,ARGOS,01462199,0.65,145 8990 25
Department of Health,CT Charitable Funds,03/11/2016,Grants re Patients Welfare,SCW1 Whitchurch Hospital Patient Welfare,ARGOS,01462199,18.74,145 8990 25
Department of Health,CT Charitable Funds,03/11/2016,Grants re Patients Welfare,SCW1 Whitchurch Hospital Patient Welfare,ARGOS,01462199,-1,145 8990 25
Department of Health,CT Charitable Funds,03/11/2016,Grants re Patients Welfare,SCW1 Whitchurch Hospital Patient Welfare,ARGOS,01462199,5,145 8990 25
Department of Health,CT Charitable Funds,03/11/2016,Grants re Patients Welfare,SCW1 Whitchurch Hospital Patient Welfare,FIND SIGNAGE,62311,214.2,
Department of Health,CT Charitable Funds,03/11/2016,Grants re Patients Welfare,SCW1 Whitchurch Hospital Patient Welfare,FIND SIGNAGE,62311,178.2,
Department of Health,CT Charitable Funds,03/11/2016,Grants re Patients Welfare,SCW1 Whitchurch Hospital Patient Welfare,FIND SIGNAGE,62311,16.56,
Department of Health,CT Charitable Funds,03/11/2016,Grants re Patients Welfare,SCW1 Whitchurch Hospital Patient Welfare,FIND SIGNAGE,62311,1.99,
Department of Health,CT Charitable Funds,03/11/2016,Grants re Patients Welfare,SCW1 Whitchurch Hospital Patient Welfare,FIND SIGNAGE,62311,42.84,
Department of Health,CT Charitable Funds,03/11/2016,Grants re Patients Welfare,SCW1 Whitchurch Hospital Patient Welfare,FIND SIGNAGE,62311,9.95,
Department of Health,CT Charitable Funds,03/11/2016,Grants re Patients Welfare,SCW1 Whitchurch Hospital Patient Welfare,FIND SIGNAGE,62311,94.8,
Department of Health,CT Charitable Funds,03/11/2016,Grants re Patients Welfare,SCW1 Whitchurch Hospital Patient Welfare,FIND SIGNAGE,62311,82.8,
Department of Health,CT Charitable Funds,03/11/2016,Grants re Patients Welfare,SCW1 Whitchurch Hospital Patient Welfare,FIND SIGNAGE,62311,18.96,
Department of Health,CT Charitable Funds,03/11/2016,Grants re Patients Welfare,SCW1 Whitchurch Hospital Patient Welfare,FIND SIGNAGE,62311,35.64,
Department of Health,CT Charitable Funds,03/11/2016,Grants re Staff Welfare,GEN3 Shropshire Comm Hlth NHST General,SHROPSHIRE TROPHY & BOWLING CENTRE,STAFF AWARD TROPHIES,119.92,
Department of Health,CT Revenue Funds,03/11/2016,Hardware Support,IM&T Support,BOMGAR CORPORATION,MINV0033868,475.86,
Department of Health,CT Revenue Funds,03/11/2016,Hardware Support,IM&T Support,BOMGAR CORPORATION,MINV0033868,-475.86,
Department of Health,CT Revenue Funds,03/11/2016,Hardware Support,IM&T Support,BOMGAR CORPORATION,MINV0033868,2379.3,
Department of Health,CT Revenue Funds,03/11/2016,Hearing Aids : Purchases,New Born Hearing Screening,GENESYS MEDICAL SOLUTIONS,IN034319,41,
Department of Health,CT Revenue Funds,03/11/2016,Hearing Aids : Purchases,New Born Hearing Screening,GENESYS MEDICAL SOLUTIONS,IN034319,205,
Department of Health,CT Revenue Funds,03/11/2016,Hoists/Slings,Community Equipment Stores,HILL ROM UK,3128117,40,487 1391 18
Department of Health,CT Revenue Funds,03/11/2016,Hoists/Slings,Community Equipment Stores,HILL ROM UK,3128117,7.65,487 1391 18
Department of Health,CT Revenue Funds,03/11/2016,Hoists/Slings,Community Equipment Stores,HILL ROM UK,3128117,200,487 1391 18
Department of Health,CT Revenue Funds,03/11/2016,Hoists/Slings,Community Equipment Stores,HILL ROM UK,3128117,38.24,487 1391 18
Department of Health,CT Revenue Funds,03/11/2016,Home Management daily Living Aids Miscellaneous Appliances,Shrewsbury and Atcham North Interdisciplinary Teams,PATTERSON MEDICAL LTD,5144198510,27.98,945 7652 83
Department of Health,CT Revenue Funds,03/11/2016,Home Management daily Living Aids Miscellaneous Appliances,Shrewsbury and Atcham North Interdisciplinary Teams,PATTERSON MEDICAL LTD,5144198510,5.6,945 7652 83
Department of Health,CT Revenue Funds,03/11/2016,Home Management daily Living Aids Miscellaneous Appliances,Whitchurch Hospital Minor Injuries Unit,FIND SIGNAGE,62326,-51.98,
Department of Health,CT Revenue Funds,03/11/2016,Home Management daily Living Aids Miscellaneous Appliances,Whitchurch Hospital Minor Injuries Unit,FIND SIGNAGE,62326,1.99,
Department of Health,CT Revenue Funds,03/11/2016,Home Management daily Living Aids Miscellaneous Appliances,Whitchurch Hospital Minor Injuries Unit,FIND SIGNAGE,62326,311.88,
Department of Health,CT Revenue Funds,03/11/2016,Home Management daily Living Aids Miscellaneous Appliances,Whitchurch Hospital Minor Injuries Unit,FIND SIGNAGE,62326,62.38,
Department of Health,CT Revenue Funds,03/11/2016,Home Management daily Living Aids Miscellaneous Appliances,Whitchurch Hospital Minor Injuries Unit,FIND SIGNAGE,62326,9.95,
Department of Health,CT Revenue Funds,03/11/2016,Home Management daily Living Aids Miscellaneous Appliances,Whitchurch Hospital Minor Injuries Unit,FIND SIGNAGE,62326,-10.4,
Department of Health,CT Revenue Funds,03/11/2016,Home Management daily Living Aids Miscellaneous Appliances,Whitchurch Hospital Inpatient Ward,ROCHE DIAGNOSTICS LTD,6570666110,92.24,684 4244 18
Department of Health,CT Revenue Funds,03/11/2016,Home Management daily Living Aids Miscellaneous Appliances,Whitchurch Hospital Inpatient Ward,ROCHE DIAGNOSTICS LTD,6570666110,461.18,684 4244 18
Department of Health,CT Revenue Funds,03/11/2016,Home Management daily Living Aids Miscellaneous Appliances,Community Equipment Stores,IKA MOBILITY,IN0986,185.61,971 5578 82
Department of Health,CT Revenue Funds,03/11/2016,Home Management daily Living Aids Miscellaneous Appliances,Community Equipment Stores,IKA MOBILITY,IN0986,37.12,971 5578 82
Department of Health,CT Revenue Funds,03/11/2016,Home Management daily Living Aids Miscellaneous Appliances,Community Equipment Stores,IKA MOBILITY,IN0986,-37.12,971 5578 82
Department of Health,CT Revenue Funds,03/11/2016,Home Management daily Living Aids Miscellaneous Appliances,Community Equipment Stores,KENWAY MOBILITY,KS0010233,154,
Department of Health,CT Revenue Funds,03/11/2016,Home Management daily Living Aids Miscellaneous Appliances,Community Equipment Stores,KENWAY MOBILITY,KS0010234,145,
Department of Health,CT Revenue Funds,03/11/2016,Home Management daily Living Aids Miscellaneous Appliances,Community Equipment Stores,KENWAY MOBILITY,KS0010235,180.5,
Department of Health,CT Revenue Funds,03/11/2016,Home Management daily Living Aids Miscellaneous Appliances,Community Equipment Stores,KENWAY MOBILITY,KS0010236,134.75,
Department of Health,CT Revenue Funds,03/11/2016,Home Management daily Living Aids Miscellaneous Appliances,Community Equipment Stores,KENWAY MOBILITY,KS0010237,96.25,
Department of Health,CT Revenue Funds,03/11/2016,Home Management daily Living Aids Miscellaneous Appliances,Community Equipment Stores,KENWAY MOBILITY,KS0010238,96.25,
Department of Health,CT Revenue Funds,03/11/2016,Home Management daily Living Aids Miscellaneous Appliances,Community Equipment Stores,KENWAY MOBILITY,KS0010239,227.95,
Department of Health,CT Revenue Funds,03/11/2016,Home Management daily Living Aids Miscellaneous Appliances,Community Equipment Stores,KENWAY MOBILITY,KS0010240,96.25,
Department of Health,CT Revenue Funds,03/11/2016,Hospital Saturday Fund,Payables,BIRMINGHAM HOSPITAL SATURDAY FUND,OCT16,132.45,
Department of Health,CT Revenue Funds,03/11/2016,Interpreting Services,Shropshire Child Comm Physiotherapy,ABSOLUTE INTERPRETING AND TRANSLATIONS LTD,127682,57.75,
Department of Health,CT Revenue Funds,03/11/2016,Interpreting Services,Telford North Cluster Health Visitors,ABSOLUTE INTERPRETING AND TRANSLATIONS LTD,127683,38.5,
Department of Health,CT Revenue Funds,03/11/2016,Interpreting Services,Monkmoor CDC,ABSOLUTE INTERPRETING AND TRANSLATIONS LTD,127684,57.75,
Department of Health,CT Revenue Funds,03/11/2016,Interpreting Services,Community Neuro Rehabilitation Team (CNRT),ABSOLUTE INTERPRETING AND TRANSLATIONS LTD,127685,48.12,
Department of Health,CT Revenue Funds,03/11/2016,Interpreting Services,Telford North Cluster Health Visitors,ABSOLUTE INTERPRETING AND TRANSLATIONS LTD,127686,57.75,
Department of Health,CT Revenue Funds,03/11/2016,Interpreting Services,Telford North Cluster Health Visitors,ABSOLUTE INTERPRETING AND TRANSLATIONS LTD,127688,48.12,
Department of Health,CT Revenue Funds,03/11/2016,Interpreting Services,Shrewsbury and Atcham Health Visitiors,ABSOLUTE INTERPRETING AND TRANSLATIONS LTD,127690,38.5,
Department of Health,CT Revenue Funds,03/11/2016,Interpreting Services,North Shropshire Health Visitors,ABSOLUTE INTERPRETING AND TRANSLATIONS LTD,127692,38.5,
Department of Health,CT Revenue Funds,03/11/2016,Interpreting Services,Shrewsbury and Atcham Health Visitiors,ABSOLUTE INTERPRETING AND TRANSLATIONS LTD,127693,38.5,
Department of Health,CT Revenue Funds,03/11/2016,Interpreting Services,Podiatry Services,VISS SIGN LANGUAGE INTERPRETING SERVICE,5937,118.75,875 9280 71
Department of Health,CT Revenue Funds,03/11/2016,Interpreting Services,Podiatry Services,VISS SIGN LANGUAGE INTERPRETING SERVICE,5938,118.75,875 9280 71
Department of Health,CT Revenue Funds,03/11/2016,Interpreting Services,MSK Rheumatology,VISS SIGN LANGUAGE INTERPRETING SERVICE,5940,118.75,875 9280 71
Department of Health,CT Revenue Funds,03/11/2016,Laboratory External Tests,Occupational Health Shropshire,MIDLAND PATHOLOGY SERVICES LIMITED,OHSA D 10 2016,657,
Department of Health,CT Revenue Funds,03/11/2016,Laboratory External Tests,Occupational Health Shropshire,MIDLAND PATHOLOGY SERVICES LIMITED,OHSA E 10 2016,588,
Department of Health,CT Revenue Funds,03/11/2016,Laboratory External Tests,Occupational Health Stoke,MIDLAND PATHOLOGY SERVICES LIMITED,SCHA D 10 2016,170.6,
Department of Health,CT Revenue Funds,03/11/2016,Laboratory External Tests,Occupational Health Stoke,MIDLAND PATHOLOGY SERVICES LIMITED,SCHA E 10 2016,95,
Department of Health,CT Revenue Funds,03/11/2016,Locum GP,Whitchurch Hospital Inpatient Ward,EVERGOOD GENERAL PRACTITIONERS,59435,1160.15,944 7347 94
Department of Health,CT Revenue Funds,03/11/2016,Locum GP,Whitchurch Hospital Inpatient Ward,EVERGOOD GENERAL PRACTITIONERS,59435,-5812.08,944 7347 94
Department of Health,CT Revenue Funds,03/11/2016,Locum GP,Whitchurch Hospital Inpatient Ward,EVERGOOD GENERAL PRACTITIONERS,59435,1162.42,944 7347 94
Department of Health,CT Revenue Funds,03/11/2016,Locum GP,Whitchurch Hospital Inpatient Ward,EVERGOOD GENERAL PRACTITIONERS,59435,5812.08,944 7347 94
Department of Health,CT Revenue Funds,03/11/2016,Locum GP,Whitchurch Hospital Inpatient Ward,EVERGOOD GENERAL PRACTITIONERS,59435,-1162.42,944 7347 94
Department of Health,CT Revenue Funds,03/11/2016,Locum GP,Whitchurch Hospital Inpatient Ward,EVERGOOD GENERAL PRACTITIONERS,59435,5800.75,944 7347 94
Department of Health,CT Revenue Funds,03/11/2016,Locum GP,Whitchurch Hospital Inpatient Ward,EVERGOOD GENERAL PRACTITIONERS,60711,5174,944 7347 94
Department of Health,CT Revenue Funds,03/11/2016,Locum GP,Whitchurch Hospital Inpatient Ward,EVERGOOD GENERAL PRACTITIONERS,60711,1034.8,944 7347 94
Department of Health,CT Revenue Funds,03/11/2016,Mattress Systems,Community Equipment Stores,ULTIMATE HEALTHCARE,234852,177,
Department of Health,CT Revenue Funds,03/11/2016,Mattress Systems,Community Equipment Stores,ULTIMATE HEALTHCARE,234852,35.4,
Department of Health,CT Revenue Funds,03/11/2016,Mattress Systems,Community Equipment Stores,ULTIMATE HEALTHCARE,234852,-1.42,
Department of Health,CT Revenue Funds,03/11/2016,Mattress Systems,Community Equipment Stores,ULTIMATE HEALTHCARE,234852,-7.08,
Department of Health,CT Revenue Funds,03/11/2016,Mattress Systems,Community Equipment Stores,ULTIMATE HEALTHCARE,234853,158.4,
Department of Health,CT Revenue Funds,03/11/2016,Mattress Systems,Community Equipment Stores,ULTIMATE HEALTHCARE,234853,31.68,
Department of Health,CT Revenue Funds,03/11/2016,Mattress Systems,Community Equipment Stores,FRONTIER THERAPEUTICS,429711,723.9,700 8536 57
Department of Health,CT Revenue Funds,03/11/2016,Mattress Systems,Community Equipment Stores,FRONTIER THERAPEUTICS,429711,144.78,700 8536 57
Department of Health,CT Revenue Funds,03/11/2016,Mattress Systems,Community Equipment Stores,FRONTIER THERAPEUTICS,429711,-14.5,700 8536 57
Department of Health,CT Revenue Funds,03/11/2016,Mattress Systems,Community Equipment Stores,FRONTIER THERAPEUTICS,429711,-2.9,700 8536 57
Department of Health,CT Revenue Funds,03/11/2016,Mattress Systems,Community Equipment Stores,FRONTIER THERAPEUTICS,429744,3518,700 8536 57
Department of Health,CT Revenue Funds,03/11/2016,Mattress Systems,Community Equipment Stores,FRONTIER THERAPEUTICS,429744,703.6,700 8536 57
Department of Health,CT Revenue Funds,03/11/2016,Mattress Systems,Community Equipment Stores,IKA MOBILITY,IN0987,714,971 5578 82
Department of Health,CT Revenue Funds,03/11/2016,Mattress Systems,Community Equipment Stores,IKA MOBILITY,IN0987,3570,971 5578 82
Department of Health,CT Revenue Funds,03/11/2016,Medical & Surgical Equipment Maintenance / Repairs & Components,Ludlow Hospital Minor Injuries Unit,PEAKS & DALES MEDICAL LTD,20672,3.1,
Department of Health,CT Revenue Funds,03/11/2016,Medical & Surgical Equipment Maintenance / Repairs & Components,Ludlow Hospital Minor Injuries Unit,PEAKS & DALES MEDICAL LTD,20672,15.5,
Department of Health,CT Revenue Funds,03/11/2016,Medical & Surgical Equipment Maintenance / Repairs & Components,Bridgnorth Hospital Theatre,CANTEL MEDICAL UK LTD,OP/I195248,21,
Department of Health,CT Revenue Funds,03/11/2016,Medical & Surgical Equipment Maintenance / Repairs & Components,Bridgnorth Hospital Theatre,CANTEL MEDICAL UK LTD,OP/I195248,105,
Department of Health,CT Revenue Funds,03/11/2016,Medical Consultant SLA From Other NHS Bodies. Urology,Whitchurch Hospital Inpatient Ward,EVERGOOD GENERAL PRACTITIONERS,60410,6427.55,944 7347 94
Department of Health,CT Revenue Funds,03/11/2016,Medical Consultant SLA From Other NHS Bodies. Urology,Whitchurch Hospital Inpatient Ward,EVERGOOD GENERAL PRACTITIONERS,60410,1285.51,944 7347 94
Department of Health,CT Revenue Funds,03/11/2016,Medical Examination Reports,Occupational Health Stoke,DR MARK MITCHYN,MM/WJ/30011963,50,
Department of Health,CT Revenue Funds,03/11/2016,Medical Gases,Special Care and Access,BOC LTD,3038328558,6.44,226 5565 55
Department of Health,CT Revenue Funds,03/11/2016,Medical Gases,Special Care and Access,BOC LTD,3038328558,32.17,226 5565 55
Department of Health,CT Revenue Funds,03/11/2016,Medical Gases,Special Care and Access,BOC LTD,3038342306,44.96,226 5565 55
Department of Health,CT Revenue Funds,03/11/2016,Medical Gases,Special Care and Access,BOC LTD,3038342306,8.99,226 5565 55
Department of Health,CT Revenue Funds,03/11/2016,Medical Gases,Stoke Heath Prison Healthcare,BOC LTD,3038387785,141.44,226 5565 55
Department of Health,CT Revenue Funds,03/11/2016,Medical Gases,Stoke Heath Prison Healthcare,BOC LTD,3038387785,28.29,226 5565 55
Department of Health,CT Revenue Funds,03/11/2016,Medical Gases,Special Care and Access,BOC LTD,3038389637,9.95,226 5565 55
Department of Health,CT Revenue Funds,03/11/2016,Medical Gases,Special Care and Access,BOC LTD,3038389637,1.99,226 5565 55
Department of Health,CT Revenue Funds,03/11/2016,Medical Gases,Special Care and Access,BOC LTD,3038389642,5.77,226 5565 55
Department of Health,CT Revenue Funds,03/11/2016,Medical Gases,Special Care and Access,BOC LTD,3038389642,28.83,226 5565 55
Department of Health,CT Revenue Funds,03/11/2016,Medical Gases,Bridgnorth Hospital Inpatient Ward,BOC LTD,3038389646,425.42,226 5565 55
Department of Health,CT Revenue Funds,03/11/2016,Medical Gases,Bridgnorth Hospital Inpatient Ward,BOC LTD,3038389646,85.08,226 5565 55
Department of Health,CT Revenue Funds,03/11/2016,Medical Gases,C Arms Dental Practice,BOC LTD,3038400460,3.57,226 5565 55
Department of Health,CT Revenue Funds,03/11/2016,Medical Gases,C Arms Dental Practice,BOC LTD,3038400460,17.83,226 5565 55
Department of Health,CT Revenue Funds,03/11/2016,Medical Gases,Special Care and Access,BOC LTD,3038459810,7.89,226 5565 55
Department of Health,CT Revenue Funds,03/11/2016,Medical Gases,Special Care and Access,BOC LTD,3038459810,39.47,226 5565 55
Department of Health,CT Revenue Funds,03/11/2016,Medical Gases,Bridgnorth Hospital Inpatient Ward,BOC LTD,3038477862,9.45,226 5565 55
Department of Health,CT Revenue Funds,03/11/2016,Medical Gases,Bridgnorth Hospital Inpatient Ward,BOC LTD,3038477862,47.23,226 5565 55
Department of Health,CT Revenue Funds,03/11/2016,Meeting Expenses/Room Hire,Telford Central Cluster Health Visitors,WOMBRIDGE PARISH CENTRE,11&20.10.16 ROOM HIRE,78,
Department of Health,CT Revenue Funds,03/11/2016,Meeting Expenses/Room Hire,Diabetes Specialist Nursing,MEETING POINT TRUST LTD,1606022,118.66,762 4326 34
Department of Health,CT Revenue Funds,03/11/2016,Meeting Expenses/Room Hire,Diabetes Specialist Nursing,MEETING POINT TRUST LTD,1606022,23.73,762 4326 34
Department of Health,CT Revenue Funds,03/11/2016,Meeting Expenses/Room Hire,Diabetes Specialist Nursing,MEETING POINT TRUST LTD,1606023,8.79,762 4326 34
Department of Health,CT Revenue Funds,03/11/2016,Meeting Expenses/Room Hire,Diabetes Specialist Nursing,MEETING POINT TRUST LTD,1606023,43.95,762 4326 34
Department of Health,CT Revenue Funds,03/11/2016,Meeting Expenses/Room Hire,Podiatry Services,RADBROOK GREEN SURGERY,332/CHIR/16,150,
Department of Health,CT Revenue Funds,03/11/2016,Meeting Expenses/Room Hire,Telford Central Cluster Health Visitors,PARK LANE CENTRE,5207,27,
Department of Health,CT Revenue Funds,03/11/2016,Meeting Expenses/Room Hire,Broseley Methodist Church,BROSELEY METHODIST CHURCH,BABY CLINIC JUL-SEP16,260,
Department of Health,CT Revenue Funds,03/11/2016,Minor Works,Monkmoor CDC,SHROPSHIRE COUNCIL,33470 31251,270.9,162 3474 72
Department of Health,CT Revenue Funds,03/11/2016,Miscellaneous Medical Tests,Stoke Heath Prison Healthcare,BROOMWELL HEALTHWATCH LIMITED,116915,20,
Department of Health,CT Revenue Funds,03/11/2016,Office/Building Removal Expenses,School Nursing Enuresis,STIRCHLEY TECHNICAL SERVICES LIMITED,105146,165,648 9995 49
Department of Health,CT Revenue Funds,03/11/2016,Office/Building Removal Expenses,Estates Management,GLYN UPTON REMOVALS,S/68556/1016,330,549 7895 65
Department of Health,CT Revenue Funds,03/11/2016,Office/Building Removal Expenses,Shropshire School Nurses,GLYN UPTON REMOVALS,S/68557/1016,125,549 7895 65
Department of Health,CT Revenue Funds,03/11/2016,Other Bought-In Clinical Services,MSK MDT Clinic,ALLIANCE MEDICAL LTD,AML-044488,12720,
Department of Health,CT Revenue Funds,03/11/2016,Other General Supplies & Services,Shropshire School Nurses,DARO UV SYSTEMS LTD,78328,31.6,
Department of Health,CT Revenue Funds,03/11/2016,Other General Supplies & Services,Shropshire School Nurses,DARO UV SYSTEMS LTD,78328,6.32,
Department of Health,CT Revenue Funds,03/11/2016,Other General Supplies & Services,Shropshire School Nurses,DARO UV SYSTEMS LTD,78328,-0.71,
Department of Health,CT Revenue Funds,03/11/2016,Other General Supplies & Services,Shropshire School Nurses,DARO UV SYSTEMS LTD,78328,-0.14,
Department of Health,CT Revenue Funds,03/11/2016,Other Paper Products,Community Equipment Stores,PROVAC CLEANING SUPPLIES LTD,49691,66.42,
Department of Health,CT Revenue Funds,03/11/2016,Other Paper Products,Community Equipment Stores,PROVAC CLEANING SUPPLIES LTD,49691,13.28,
Department of Health,CT Revenue Funds,03/11/2016,Packing & Storage,Bridgnorth Hospital Catering,HIRE THIS LIMITED,50638,50.4,
Department of Health,CT Revenue Funds,03/11/2016,Packing & Storage,Dudley School Nurses,GLYN UPTON REMOVALS,DC/68596/1016,101.28,549 7895 65
Department of Health,CT Revenue Funds,03/11/2016,Packing & Storage,Dudley School Nurses,GLYN UPTON REMOVALS,DC/68597/1016,60,549 7895 65
Department of Health,CT Revenue Funds,03/11/2016,Packing & Storage,Single Point of Referral,GLYN UPTON REMOVALS,SC/68339/0916,742.5,549 7895 65
Department of Health,CT Revenue Funds,03/11/2016,Packing & Storage,Single Point of Referral,GLYN UPTON REMOVALS,SC/68340/0916,146,549 7895 65
Department of Health,CT Revenue Funds,03/11/2016,Packing & Storage,Single Point of Referral,GLYN UPTON REMOVALS,SC/68343/0916,277.2,549 7895 65
Department of Health,CT Revenue Funds,03/11/2016,Packing & Storage,Single Point of Referral,GLYN UPTON REMOVALS,SC/68344/0916,42,549 7895 65
Department of Health,CT Revenue Funds,03/11/2016,Patient Aids/Appliances : Mobility,Community Equipment Stores,QUEST 88,82246,96.4,489 4541 95
Department of Health,CT Revenue Funds,03/11/2016,Patient Aids/Appliances : Mobility,Community Equipment Stores,QUEST 88,82246,482,489 4541 95
Department of Health,CT Revenue Funds,03/11/2016,Patients Aid,Payables,PAYCARE,OCT16,376.2,
Department of Health,CT Revenue Funds,03/11/2016,Patients Clothing,Shropshire School Nurses,PEDOMETERS INTERNATIONAL LTD,19016,35.7,
Department of Health,CT Revenue Funds,03/11/2016,Patients Clothing,Shropshire School Nurses,PEDOMETERS INTERNATIONAL LTD,19016,178.5,
Department of Health,CT Revenue Funds,03/11/2016,Pennies from Heaven,Payables,PENNIES FROM HEAVEN,OCT16,13.29,
Department of Health,CT Revenue Funds,03/11/2016,Podiatry Products,Ludlow Hospital Physiotherapy,THE TENS+ COMPANY LTD,23447,11.9,
Department of Health,CT Revenue Funds,03/11/2016,Podiatry Products,Ludlow Hospital Physiotherapy,THE TENS+ COMPANY LTD,23447,2.38,
Department of Health,CT Revenue Funds,03/11/2016,Postage & Carriage,Telford Child Development Centre,ARGOS,01468624,3.29,145 8990 25
Department of Health,CT Revenue Funds,03/11/2016,Postage & Carriage,Telford Child Development Centre,ARGOS,01468624,0.66,145 8990 25
Department of Health,CT Revenue Funds,03/11/2016,Postage & Carriage,Dudley School Nurses,ARGOS,01468625,3.29,145 8990 25
Department of Health,CT Revenue Funds,03/11/2016,Postage & Carriage,Dudley School Nurses,ARGOS,01468625,0.66,145 8990 25
Department of Health,CT Revenue Funds,03/11/2016,Postage & Carriage,Community Equipment Stores,C&S SEATING (SURREY),10161,8,
Department of Health,CT Revenue Funds,03/11/2016,Postage & Carriage,Community Equipment Stores,C&S SEATING (SURREY),10161,1.6,
Department of Health,CT Revenue Funds,03/11/2016,Postage & Carriage,North West Shropshire Interdisciplinary Teams,MISCO COMPUTER SUPPLIES LTD,11124931,4.99,494 1756 15
Department of Health,CT Revenue Funds,03/11/2016,Postage & Carriage,North West Shropshire Interdisciplinary Teams,MISCO COMPUTER SUPPLIES LTD,11124931,1,494 1756 15
Department of Health,CT Revenue Funds,03/11/2016,Postage & Carriage,Community Childrens Nurses,MISCO COMPUTER SUPPLIES LTD,11134249,1,494 1756 15
Department of Health,CT Revenue Funds,03/11/2016,Postage & Carriage,Community Childrens Nurses,MISCO COMPUTER SUPPLIES LTD,11134249,4.99,494 1756 15
Department of Health,CT Revenue Funds,03/11/2016,Postage & Carriage,Community Childrens Nurses,TNT UK LTD,1183435,-60.69,354 7150 57
Department of Health,CT Revenue Funds,03/11/2016,Postage & Carriage,Wheelchair Services,GEL OVATIONS EUROPE LTD,16170,1.5,
Department of Health,CT Revenue Funds,03/11/2016,Postage & Carriage,Wheelchair Services,GEL OVATIONS EUROPE LTD,16170,7.5,
Department of Health,CT Revenue Funds,03/11/2016,Postage & Carriage,Wheelchair Services,GEL OVATIONS EUROPE LTD,16171,7.5,
Department of Health,CT Revenue Funds,03/11/2016,Postage & Carriage,Wheelchair Services,GEL OVATIONS EUROPE LTD,16171,1.5,
Department of Health,CT Revenue Funds,03/11/2016,Postage & Carriage,Wheelchair Services,GEL OVATIONS EUROPE LTD,16172,7.5,
Department of Health,CT Revenue Funds,03/11/2016,Postage & Carriage,Wheelchair Services,GEL OVATIONS EUROPE LTD,16172,1.5,
Department of Health,CT Revenue Funds,03/11/2016,Postage & Carriage,Community Childrens Nurses,MIDMEDS LTD,162820,5.99,
Department of Health,CT Revenue Funds,03/11/2016,Postage & Carriage,Community Childrens Nurses,MIDMEDS LTD,162820,1.2,
Department of Health,CT Revenue Funds,03/11/2016,Postage & Carriage,Shropshire School Nurses,PEDOMETERS INTERNATIONAL LTD,19016,3,
Department of Health,CT Revenue Funds,03/11/2016,Postage & Carriage,Shropshire School Nurses,PEDOMETERS INTERNATIONAL LTD,19016,15,
Department of Health,CT Revenue Funds,03/11/2016,Postage & Carriage,Ludlow Hospital Minor Injuries Unit,PEAKS & DALES MEDICAL LTD,20672,1.3,
Department of Health,CT Revenue Funds,03/11/2016,Postage & Carriage,Ludlow Hospital Minor Injuries Unit,PEAKS & DALES MEDICAL LTD,20672,6.5,
Department of Health,CT Revenue Funds,03/11/2016,Postage & Carriage,Ludlow Hospital Physiotherapy,THE TENS+ COMPANY LTD,23447,2.95,
Department of Health,CT Revenue Funds,03/11/2016,Postage & Carriage,Ludlow Hospital Physiotherapy,THE TENS+ COMPANY LTD,23447,0.59,
Department of Health,CT Revenue Funds,03/11/2016,Postage & Carriage,Wheelchair Services,HELPING HAND COMPANY,281242,5,
Department of Health,CT Revenue Funds,03/11/2016,Postage & Carriage,Wheelchair Services,HELPING HAND COMPANY,281242,1,
Department of Health,CT Revenue Funds,03/11/2016,Postage & Carriage,Wheelchair Services,TNT UK LTD,3038141,9.7,354 7150 57
Department of Health,CT Revenue Funds,03/11/2016,Postage & Carriage,Wheelchair Services,TNT UK LTD,3171373,19.68,354 7150 57
Department of Health,CT Revenue Funds,03/11/2016,Postage & Carriage,Wheelchair Services,TNT UK LTD,3209843,9.82,354 7150 57
Department of Health,CT Revenue Funds,03/11/2016,Postage & Carriage,Wheelchair Services,TNT UK LTD,3229514,9.82,354 7150 57
Department of Health,CT Revenue Funds,03/11/2016,Postage & Carriage,Wheelchair Services,TNT UK LTD,3249017,9.82,354 7150 57
Department of Health,CT Revenue Funds,03/11/2016,Postage & Carriage,Wheelchair Services,TNT UK LTD,3268480,9.82,354 7150 57
Department of Health,CT Revenue Funds,03/11/2016,Postage & Carriage,Community Equipment Stores,HOSPITAL DIRECT (MARKETING) LTD,59678,7.5,752 7823 12
Department of Health,CT Revenue Funds,03/11/2016,Postage & Carriage,Community Equipment Stores,HOSPITAL DIRECT (MARKETING) LTD,59678,1.5,752 7823 12
Department of Health,CT Revenue Funds,03/11/2016,Postage & Carriage,New Born Hearing Screening,GENESYS MEDICAL SOLUTIONS,IN034319,4,
Department of Health,CT Revenue Funds,03/11/2016,Postage & Carriage,New Born Hearing Screening,GENESYS MEDICAL SOLUTIONS,IN034319,20,
Department of Health,CT Revenue Funds,03/11/2016,Postage & Carriage,Bridgnorth Hospital Theatre,JUDD MEDICAL LTD,INV073969,15,650 2675 46
Department of Health,CT Revenue Funds,03/11/2016,Postage & Carriage,Bridgnorth Hospital Theatre,JUDD MEDICAL LTD,INV073969,3,650 2675 46
Department of Health,CT Revenue Funds,03/11/2016,Postage & Carriage,Special Care and Access,RA MEDICAL SERVICES,L16/1608,7,651810355
Department of Health,CT Revenue Funds,03/11/2016,Postage & Carriage,Special Care and Access,RA MEDICAL SERVICES,L16/1608,1.4,651810355
Department of Health,CT Revenue Funds,03/11/2016,Postage & Carriage,Dudley School Nurses,STAMPS DIRECT LTD,LN252156,0.6,283 5042 63
Department of Health,CT Revenue Funds,03/11/2016,Postage & Carriage,Dudley School Nurses,STAMPS DIRECT LTD,LN252156,3,283 5042 63
Department of Health,CT Revenue Funds,03/11/2016,Postage Stamps Stock,Cash & Cash Equivalents,POST OFFICE LTD,WFH STAMPS 31/10/16,1920,
Department of Health,CT Revenue Funds,03/11/2016,Printing Costs,Immunisations and Vaccinations,LG DAVIS (STATIONERS) LTD,092585,186,110 6445 14
Department of Health,CT Revenue Funds,03/11/2016,Printing Costs,Single Point of Referral,MARKETING AT THE MILL,11217,175,
Department of Health,CT Revenue Funds,03/11/2016,Printing Costs,Dudley School Nurses,STAMPS DIRECT LTD,LN252156,5.1,283 5042 63
Department of Health,CT Revenue Funds,03/11/2016,Printing Costs,Dudley School Nurses,STAMPS DIRECT LTD,LN252156,1.02,283 5042 63
Department of Health,CT Revenue Funds,03/11/2016,Printing Costs,Dudley School Nurses,STAMPS DIRECT LTD,LN252156,1.02,283 5042 63
Department of Health,CT Revenue Funds,03/11/2016,Printing Costs,Dudley School Nurses,STAMPS DIRECT LTD,LN252156,1.02,283 5042 63
Department of Health,CT Revenue Funds,03/11/2016,Printing Costs,Dudley School Nurses,STAMPS DIRECT LTD,LN252156,5.1,283 5042 63
Department of Health,CT Revenue Funds,03/11/2016,Printing Costs,Dudley School Nurses,STAMPS DIRECT LTD,LN252156,5.1,283 5042 63
Department of Health,CT Revenue Funds,03/11/2016,Printing Costs,Telford School Nurses,SYNERTEC LTD,QS129102,0.37,
Department of Health,CT Revenue Funds,03/11/2016,Printing Costs,Coral House,SYNERTEC LTD,QS129416,10,
Department of Health,CT Revenue Funds,03/11/2016,Printing Costs,Coral House,SYNERTEC LTD,QS129416,50,
Department of Health,CT Revenue Funds,03/11/2016,Printing Costs,Estates Management,SYNERTEC LTD,QS129417,50,
Department of Health,CT Revenue Funds,03/11/2016,Printing Costs,Estates Management,SYNERTEC LTD,QS129417,10,
Department of Health,CT Revenue Funds,03/11/2016,Printing Costs,Coral House,SYNERTEC LTD,QS130370,113.18,
Department of Health,CT Revenue Funds,03/11/2016,Printing Costs,Coral House,SYNERTEC LTD,QS130371,1.42,
Department of Health,CT Revenue Funds,03/11/2016,Printing Costs,Immunisations and Vaccinations,SYNERTEC LTD,QS130372,63.37,
Department of Health,CT Revenue Funds,03/11/2016,Printing Costs,Coral House,SYNERTEC LTD,QS130373,124.29,
Department of Health,CT Revenue Funds,03/11/2016,Printing Costs,Coral House,SYNERTEC LTD,QS130374,71.17,
Department of Health,CT Revenue Funds,03/11/2016,Printing Costs,Coral House,SYNERTEC LTD,QS130375,181.35,
Department of Health,CT Revenue Funds,03/11/2016,Printing Costs,Estates Management,SYNERTEC LTD,QS130376,336.39,
Department of Health,CT Revenue Funds,03/11/2016,Radiotherapy Equipment,Whitchurch Hospital Inpatient Ward,ARMH LTD,5804,136,
Department of Health,CT Revenue Funds,03/11/2016,Radiotherapy Equipment,Whitchurch Hospital Inpatient Ward,ARMH LTD,5804,27.2,
Department of Health,CT Revenue Funds,03/11/2016,Radiotherapy Equipment,Whitchurch Hospital Inpatient Ward,ARMH LTD,5804,13,
Department of Health,CT Revenue Funds,03/11/2016,Radiotherapy Equipment,Whitchurch Hospital Inpatient Ward,ARMH LTD,5804,65,
Department of Health,CT Revenue Funds,03/11/2016,Radiotherapy Equipment,Whitchurch Hospital Inpatient Ward,ARMH LTD,5804,56.4,
Department of Health,CT Revenue Funds,03/11/2016,Radiotherapy Equipment,Whitchurch Hospital Inpatient Ward,ARMH LTD,5804,282,
Department of Health,CT Revenue Funds,03/11/2016,Rates,Bridgnorth Hospital,SHROPSHIRE COUNCIL,2209014650005-16/17,7256,162 3474 72
Department of Health,CT Revenue Funds,03/11/2016,Rates,The Gateway,SHROPSHIRE COUNCIL,2400572340006-16/17,1205,162 3474 72
Department of Health,CT Revenue Funds,03/11/2016,Rates,Mercian House,SHROPSHIRE COUNCIL,2500000180023-16/07,1255,162 3474 72
Department of Health,CT Revenue Funds,03/11/2016,Rates,Princess House,SHROPSHIRE COUNCIL,2500000184482-16/17,2684,162 3474 72
Department of Health,CT Revenue Funds,03/11/2016,Rates,Whitchurch Hospital,SHROPSHIRE COUNCIL,2900653200002-16/17,3976,162 3474 72
Department of Health,CT Revenue Funds,03/11/2016,Rent,Charlesworth Court Unit B,RYMINSTER LTD,CWC/0179,83.32,
Department of Health,CT Revenue Funds,03/11/2016,Rent,Charlesworth Court Unit B,RYMINSTER LTD,CWC/0179,416.68,
Department of Health,CT Revenue Funds,03/11/2016,Special Seating,Wheelchair Services,SPECIALISED ORTHOTIC SERVICES LTD,0000706511,50.62,616 9753 09
Department of Health,CT Revenue Funds,03/11/2016,Special Seating,Wheelchair Services,SPECIALISED ORTHOTIC SERVICES LTD,0000706511,60.24,616 9753 09
Department of Health,CT Revenue Funds,03/11/2016,Special Seating,Wheelchair Services,SPECIALISED ORTHOTIC SERVICES LTD,0000706511,10.12,616 9753 09
Department of Health,CT Revenue Funds,03/11/2016,Special Seating,Wheelchair Services,SPECIALISED ORTHOTIC SERVICES LTD,0000706511,109.53,616 9753 09
Department of Health,CT Revenue Funds,03/11/2016,Special Seating,Wheelchair Services,SPECIALISED ORTHOTIC SERVICES LTD,0000706511,12.05,616 9753 09
Department of Health,CT Revenue Funds,03/11/2016,Special Seating,Wheelchair Services,SPECIALISED ORTHOTIC SERVICES LTD,0000706511,547.63,616 9753 09
Department of Health,CT Revenue Funds,03/11/2016,Special Seating,Wheelchair Services,SPECIALISED ORTHOTIC SERVICES LTD,0000706511,120.69,616 9753 09
Department of Health,CT Revenue Funds,03/11/2016,Special Seating,Wheelchair Services,SPECIALISED ORTHOTIC SERVICES LTD,0000706511,1068.64,616 9753 09
Department of Health,CT Revenue Funds,03/11/2016,Special Seating,Wheelchair Services,SPECIALISED ORTHOTIC SERVICES LTD,0000706511,192,616 9753 09
Department of Health,CT Revenue Funds,03/11/2016,Special Seating,Wheelchair Services,SPECIALISED ORTHOTIC SERVICES LTD,0000706511,71.96,616 9753 09
Department of Health,CT Revenue Funds,03/11/2016,Special Seating,Wheelchair Services,SPECIALISED ORTHOTIC SERVICES LTD,0000706511,50.4,616 9753 09
Department of Health,CT Revenue Funds,03/11/2016,Special Seating,Wheelchair Services,SPECIALISED ORTHOTIC SERVICES LTD,0000706511,20.41,616 9753 09
Department of Health,CT Revenue Funds,03/11/2016,Special Seating,Wheelchair Services,SPECIALISED ORTHOTIC SERVICES LTD,0000706511,69.98,616 9753 09
Department of Health,CT Revenue Funds,03/11/2016,Special Seating,Wheelchair Services,SPECIALISED ORTHOTIC SERVICES LTD,0000706511,359.81,616 9753 09
Department of Health,CT Revenue Funds,03/11/2016,Special Seating,Wheelchair Services,SPECIALISED ORTHOTIC SERVICES LTD,0000706511,38.4,616 9753 09
Department of Health,CT Revenue Funds,03/11/2016,Special Seating,Wheelchair Services,SPECIALISED ORTHOTIC SERVICES LTD,0000706511,213.73,616 9753 09
Department of Health,CT Revenue Funds,03/11/2016,Special Seating,Wheelchair Services,SPECIALISED ORTHOTIC SERVICES LTD,0000706511,10.08,616 9753 09
Department of Health,CT Revenue Funds,03/11/2016,Special Seating,Wheelchair Services,SPECIALISED ORTHOTIC SERVICES LTD,0000706511,102.07,616 9753 09
Department of Health,CT Revenue Funds,03/11/2016,Special Seating,Wheelchair Services,SPECIALISED ORTHOTIC SERVICES LTD,0000706511,24.14,616 9753 09
Department of Health,CT Revenue Funds,03/11/2016,Special Seating,Wheelchair Services,SPECIALISED ORTHOTIC SERVICES LTD,0000706511,14,616 9753 09
Department of Health,CT Revenue Funds,03/11/2016,Special Seating,Community Equipment Stores,FRONTIER THERAPEUTICS,429711,-23.88,700 8536 57
Department of Health,CT Revenue Funds,03/11/2016,Special Seating,Community Equipment Stores,FRONTIER THERAPEUTICS,429711,-119.4,700 8536 57
Department of Health,CT Revenue Funds,03/11/2016,Special Seating,Community Equipment Stores,FRONTIER THERAPEUTICS,429711,596.72,700 8536 57
Department of Health,CT Revenue Funds,03/11/2016,Special Seating,Community Equipment Stores,FRONTIER THERAPEUTICS,429711,2983.6,700 8536 57
Department of Health,CT Revenue Funds,03/11/2016,Special Seating,Community Equipment Stores,FRONTIER THERAPEUTICS,429714,794.8,700 8536 57
Department of Health,CT Revenue Funds,03/11/2016,Special Seating,Community Equipment Stores,FRONTIER THERAPEUTICS,429714,158.96,700 8536 57
Department of Health,CT Revenue Funds,03/11/2016,Staff Uniforms & Clothing,Bridgnorth Hospital Inpatient Ward,SIMON JERSEY LTD,8038673,1.52,732 3615 53
Department of Health,CT Revenue Funds,03/11/2016,Staff Uniforms & Clothing,Bridgnorth Hospital Inpatient Ward,SIMON JERSEY LTD,8038673,-3.8,732 3615 53
Department of Health,CT Revenue Funds,03/11/2016,Staff Uniforms & Clothing,Bridgnorth Hospital Inpatient Ward,SIMON JERSEY LTD,8038673,7.6,732 3615 53
Department of Health,CT Revenue Funds,03/11/2016,Staff Uniforms & Clothing,Bridgnorth Hospital Inpatient Ward,SIMON JERSEY LTD,8038673,12.9,732 3615 53
Department of Health,CT Revenue Funds,03/11/2016,Staff Uniforms & Clothing,Bridgnorth Hospital Inpatient Ward,SIMON JERSEY LTD,8038673,-0.76,732 3615 53
Department of Health,CT Revenue Funds,03/11/2016,Staff Uniforms & Clothing,Bridgnorth Hospital Inpatient Ward,SIMON JERSEY LTD,8038673,2.58,732 3615 53
Department of Health,CT Revenue Funds,03/11/2016,Staff Uniforms & Clothing,ICS North West,SIMON JERSEY LTD,8041927,3.87,732 3615 53
Department of Health,CT Revenue Funds,03/11/2016,Staff Uniforms & Clothing,ICS North West,SIMON JERSEY LTD,8041927,11.4,732 3615 53
Department of Health,CT Revenue Funds,03/11/2016,Staff Uniforms & Clothing,ICS North West,SIMON JERSEY LTD,8041927,19.35,732 3615 53
Department of Health,CT Revenue Funds,03/11/2016,Staff Uniforms & Clothing,ICS North West,SIMON JERSEY LTD,8041927,2.28,732 3615 53
Department of Health,CT Revenue Funds,03/11/2016,Staff Uniforms & Clothing,Community Equipment Stores,SIMON JERSEY LTD,8042569,15.08,732 3615 53
Department of Health,CT Revenue Funds,03/11/2016,Staff Uniforms & Clothing,Community Equipment Stores,SIMON JERSEY LTD,8042569,3.02,732 3615 53
Department of Health,CT Revenue Funds,03/11/2016,Staff Uniforms & Clothing,South West Interdisciplinary Teams,SIMON JERSEY LTD,8042846,1.5,732 3615 53
Department of Health,CT Revenue Funds,03/11/2016,Staff Uniforms & Clothing,South West Interdisciplinary Teams,SIMON JERSEY LTD,8042846,7.5,732 3615 53
Department of Health,CT Revenue Funds,03/11/2016,Staff Uniforms & Clothing,Telford South Community Nursing,SIMON JERSEY LTD,8043241,19.35,732 3615 53
Department of Health,CT Revenue Funds,03/11/2016,Staff Uniforms & Clothing,Telford South Community Nursing,SIMON JERSEY LTD,8043241,3.87,732 3615 53
Department of Health,CT Revenue Funds,03/11/2016,Staff Uniforms & Clothing,Telford South Community Nursing,SIMON JERSEY LTD,8043241,11.4,732 3615 53
Department of Health,CT Revenue Funds,03/11/2016,Staff Uniforms & Clothing,Telford South Community Nursing,SIMON JERSEY LTD,8043241,2.28,732 3615 53
Department of Health,CT Revenue Funds,03/11/2016,Staff Uniforms & Clothing,Oswestry Primary Care Centre,SIMON JERSEY LTD,8044554,8.91,732 3615 53
Department of Health,CT Revenue Funds,03/11/2016,Staff Uniforms & Clothing,Oswestry Primary Care Centre,SIMON JERSEY LTD,8044554,7.2,732 3615 53
Department of Health,CT Revenue Funds,03/11/2016,Staff Uniforms & Clothing,Oswestry Primary Care Centre,SIMON JERSEY LTD,8044554,1.44,732 3615 53
Department of Health,CT Revenue Funds,03/11/2016,Staff Uniforms & Clothing,Oswestry Primary Care Centre,SIMON JERSEY LTD,8044554,44.55,732 3615 53
Department of Health,CT Revenue Funds,03/11/2016,Staff Uniforms & Clothing,Telford North Community Nursing,SIMON JERSEY LTD,8044586,1.29,732 3615 53
Department of Health,CT Revenue Funds,03/11/2016,Staff Uniforms & Clothing,Telford North Community Nursing,SIMON JERSEY LTD,8044586,6.45,732 3615 53
Department of Health,CT Revenue Funds,03/11/2016,Staff Uniforms & Clothing,North West Shropshire Interdisciplinary Teams,SIMON JERSEY LTD,8044623,2.39,732 3615 53
Department of Health,CT Revenue Funds,03/11/2016,Staff Uniforms & Clothing,North West Shropshire Interdisciplinary Teams,SIMON JERSEY LTD,8044623,11.95,732 3615 53
Department of Health,CT Revenue Funds,03/11/2016,Staff Uniforms & Clothing,North West Shropshire Interdisciplinary Teams,SIMON JERSEY LTD,8044652,7.32,732 3615 53
Department of Health,CT Revenue Funds,03/11/2016,Staff Uniforms & Clothing,North West Shropshire Interdisciplinary Teams,SIMON JERSEY LTD,8044652,1.29,732 3615 53
Department of Health,CT Revenue Funds,03/11/2016,Staff Uniforms & Clothing,North West Shropshire Interdisciplinary Teams,SIMON JERSEY LTD,8044652,6.45,732 3615 53
Department of Health,CT Revenue Funds,03/11/2016,Staff Uniforms & Clothing,North West Shropshire Interdisciplinary Teams,SIMON JERSEY LTD,8044652,2.39,732 3615 53
Department of Health,CT Revenue Funds,03/11/2016,Staff Uniforms & Clothing,North West Shropshire Interdisciplinary Teams,SIMON JERSEY LTD,8044652,1.5,732 3615 53
Department of Health,CT Revenue Funds,03/11/2016,Staff Uniforms & Clothing,North West Shropshire Interdisciplinary Teams,SIMON JERSEY LTD,8044652,7.5,732 3615 53
Department of Health,CT Revenue Funds,03/11/2016,Staff Uniforms & Clothing,North West Shropshire Interdisciplinary Teams,SIMON JERSEY LTD,8044652,11.95,732 3615 53
Department of Health,CT Revenue Funds,03/11/2016,Staff Uniforms & Clothing,North West Shropshire Interdisciplinary Teams,SIMON JERSEY LTD,8044652,1.46,732 3615 53
Department of Health,CT Revenue Funds,03/11/2016,Staff Uniforms & Clothing,Bishops Castle Hospital Inpatient Ward,SIMON JERSEY LTD,8044673,7.6,732 3615 53
Department of Health,CT Revenue Funds,03/11/2016,Staff Uniforms & Clothing,Bishops Castle Hospital Inpatient Ward,SIMON JERSEY LTD,8044673,2.58,732 3615 53
Department of Health,CT Revenue Funds,03/11/2016,Staff Uniforms & Clothing,Bishops Castle Hospital Inpatient Ward,SIMON JERSEY LTD,8044673,1.52,732 3615 53
Department of Health,CT Revenue Funds,03/11/2016,Staff Uniforms & Clothing,Bishops Castle Hospital Inpatient Ward,SIMON JERSEY LTD,8044673,12.9,732 3615 53
Department of Health,CT Revenue Funds,03/11/2016,Staff Uniforms & Clothing,Falls Prevention,SIMON JERSEY LTD,8044882,3.02,732 3615 53
Department of Health,CT Revenue Funds,03/11/2016,Staff Uniforms & Clothing,Falls Prevention,SIMON JERSEY LTD,8044882,15.2,732 3615 53
Department of Health,CT Revenue Funds,03/11/2016,Staff Uniforms & Clothing,Falls Prevention,SIMON JERSEY LTD,8044882,3.04,732 3615 53
Department of Health,CT Revenue Funds,03/11/2016,Staff Uniforms & Clothing,Falls Prevention,SIMON JERSEY LTD,8044882,15.08,732 3615 53
Department of Health,CT Revenue Funds,03/11/2016,Staff Uniforms & Clothing,Falls Prevention,SIMON JERSEY LTD,8044885,7.54,732 3615 53
Department of Health,CT Revenue Funds,03/11/2016,Staff Uniforms & Clothing,Falls Prevention,SIMON JERSEY LTD,8044885,1.51,732 3615 53
Department of Health,CT Revenue Funds,03/11/2016,Staff Uniforms & Clothing,Falls Prevention,SIMON JERSEY LTD,8044885,7.6,732 3615 53
Department of Health,CT Revenue Funds,03/11/2016,Staff Uniforms & Clothing,Falls Prevention,SIMON JERSEY LTD,8044885,1.52,732 3615 53
Department of Health,CT Revenue Funds,03/11/2016,Staff Uniforms & Clothing,Bridgnorth Hospital Inpatient Ward,SIMON JERSEY LTD,8044898,-5.5,732 3615 53
Department of Health,CT Revenue Funds,03/11/2016,Staff Uniforms & Clothing,Bridgnorth Hospital Inpatient Ward,SIMON JERSEY LTD,8044898,9.79,732 3615 53
Department of Health,CT Revenue Funds,03/11/2016,Staff Uniforms & Clothing,Bridgnorth Hospital Inpatient Ward,SIMON JERSEY LTD,8044898,48.96,732 3615 53
Department of Health,CT Revenue Funds,03/11/2016,Staff Uniforms & Clothing,Bridgnorth Hospital Inpatient Ward,SIMON JERSEY LTD,8044898,1.29,732 3615 53
Department of Health,CT Revenue Funds,03/11/2016,Staff Uniforms & Clothing,Bridgnorth Hospital Inpatient Ward,SIMON JERSEY LTD,8044898,-1.1,732 3615 53
Department of Health,CT Revenue Funds,03/11/2016,Staff Uniforms & Clothing,Bridgnorth Hospital Inpatient Ward,SIMON JERSEY LTD,8044898,6.45,732 3615 53
Department of Health,CT Revenue Funds,03/11/2016,Staff Uniforms & Clothing,Bridgnorth Hospital Inpatient Ward,SIMON JERSEY LTD,8044898,19,732 3615 53
Department of Health,CT Revenue Funds,03/11/2016,Staff Uniforms & Clothing,Bridgnorth Hospital Inpatient Ward,SIMON JERSEY LTD,8044898,3.8,732 3615 53
Department of Health,CT Revenue Funds,03/11/2016,Staff Uniforms & Clothing,Bishops Castle Hospital Inpatient Ward,SIMON JERSEY LTD,8044902,-1.1,732 3615 53
Department of Health,CT Revenue Funds,03/11/2016,Staff Uniforms & Clothing,Bishops Castle Hospital Inpatient Ward,SIMON JERSEY LTD,8044902,6.45,732 3615 53
Department of Health,CT Revenue Funds,03/11/2016,Staff Uniforms & Clothing,Bishops Castle Hospital Inpatient Ward,SIMON JERSEY LTD,8044902,0.76,732 3615 53
Department of Health,CT Revenue Funds,03/11/2016,Staff Uniforms & Clothing,Bishops Castle Hospital Inpatient Ward,SIMON JERSEY LTD,8044902,1.29,732 3615 53
Department of Health,CT Revenue Funds,03/11/2016,Staff Uniforms & Clothing,Bishops Castle Hospital Inpatient Ward,SIMON JERSEY LTD,8044902,3.8,732 3615 53
Department of Health,CT Revenue Funds,03/11/2016,Staff Uniforms & Clothing,Bishops Castle Hospital Inpatient Ward,SIMON JERSEY LTD,8044902,-0.22,732 3615 53
Department of Health,CT Revenue Funds,03/11/2016,Staff Uniforms & Clothing,North West Shropshire Interdisciplinary Teams,SIMON JERSEY LTD,8044908,21.96,732 3615 53
Department of Health,CT Revenue Funds,03/11/2016,Staff Uniforms & Clothing,North West Shropshire Interdisciplinary Teams,SIMON JERSEY LTD,8044908,4.39,732 3615 53
Department of Health,CT Revenue Funds,03/11/2016,Staff Uniforms & Clothing,Dudley School Nurses,SIMON JERSEY LTD,8044982,2.58,732 3615 53
Department of Health,CT Revenue Funds,03/11/2016,Staff Uniforms & Clothing,Dudley School Nurses,SIMON JERSEY LTD,8044982,2.28,732 3615 53
Department of Health,CT Revenue Funds,03/11/2016,Staff Uniforms & Clothing,Dudley School Nurses,SIMON JERSEY LTD,8044982,1.59,732 3615 53
Department of Health,CT Revenue Funds,03/11/2016,Staff Uniforms & Clothing,Dudley School Nurses,SIMON JERSEY LTD,8044982,11.4,732 3615 53
Department of Health,CT Revenue Funds,03/11/2016,Staff Uniforms & Clothing,Dudley School Nurses,SIMON JERSEY LTD,8044982,7.95,732 3615 53
Department of Health,CT Revenue Funds,03/11/2016,Staff Uniforms & Clothing,Dudley School Nurses,SIMON JERSEY LTD,8044982,12.9,732 3615 53
Department of Health,CT Revenue Funds,03/11/2016,Staff Uniforms & Clothing,Telford School Nurses,SIMON JERSEY LTD,8044987,7.24,732 3615 53
Department of Health,CT Revenue Funds,03/11/2016,Staff Uniforms & Clothing,Telford School Nurses,SIMON JERSEY LTD,8044987,36.2,732 3615 53
Department of Health,CT Revenue Funds,03/11/2016,Staff Uniforms & Clothing,Shrewsbury and Atcham North Interdisciplinary Teams,SIMON JERSEY LTD,8045382,48.96,732 3615 53
Department of Health,CT Revenue Funds,03/11/2016,Staff Uniforms & Clothing,Shrewsbury and Atcham North Interdisciplinary Teams,SIMON JERSEY LTD,8045382,1.29,732 3615 53
Department of Health,CT Revenue Funds,03/11/2016,Staff Uniforms & Clothing,Shrewsbury and Atcham North Interdisciplinary Teams,SIMON JERSEY LTD,8045382,7.32,732 3615 53
Department of Health,CT Revenue Funds,03/11/2016,Staff Uniforms & Clothing,Shrewsbury and Atcham North Interdisciplinary Teams,SIMON JERSEY LTD,8045382,2.2,732 3615 53
Department of Health,CT Revenue Funds,03/11/2016,Staff Uniforms & Clothing,Shrewsbury and Atcham North Interdisciplinary Teams,SIMON JERSEY LTD,8045382,1.46,732 3615 53
Department of Health,CT Revenue Funds,03/11/2016,Staff Uniforms & Clothing,Shrewsbury and Atcham North Interdisciplinary Teams,SIMON JERSEY LTD,8045382,6.45,732 3615 53
Department of Health,CT Revenue Funds,03/11/2016,Staff Uniforms & Clothing,Shrewsbury and Atcham North Interdisciplinary Teams,SIMON JERSEY LTD,8045382,-2.2,732 3615 53
Department of Health,CT Revenue Funds,03/11/2016,Staff Uniforms & Clothing,Shrewsbury and Atcham North Interdisciplinary Teams,SIMON JERSEY LTD,8045382,9.79,732 3615 53
Department of Health,CT Revenue Funds,03/11/2016,Staff Uniforms & Clothing,Shrewsbury and Atcham North Interdisciplinary Teams,SIMON JERSEY LTD,8045382,19,732 3615 53
Department of Health,CT Revenue Funds,03/11/2016,Staff Uniforms & Clothing,Shrewsbury and Atcham North Interdisciplinary Teams,SIMON JERSEY LTD,8045382,11,732 3615 53
Department of Health,CT Revenue Funds,03/11/2016,Staff Uniforms & Clothing,Shrewsbury and Atcham North Interdisciplinary Teams,SIMON JERSEY LTD,8045382,-11,732 3615 53
Department of Health,CT Revenue Funds,03/11/2016,Staff Uniforms & Clothing,Shrewsbury and Atcham North Interdisciplinary Teams,SIMON JERSEY LTD,8045382,3.8,732 3615 53
Department of Health,CT Revenue Funds,03/11/2016,Staff Uniforms & Clothing,Bridgnorth Hospital Inpatient Ward,SIMON JERSEY LTD,8045535,0.76,732 3615 53
Department of Health,CT Revenue Funds,03/11/2016,Staff Uniforms & Clothing,Bridgnorth Hospital Inpatient Ward,SIMON JERSEY LTD,8045535,3.8,732 3615 53
Department of Health,CT Revenue Funds,03/11/2016,Staff Uniforms & Clothing,Bridgnorth Hospital Inpatient Ward,SIMON JERSEY LTD,8045535,6.45,732 3615 53
Department of Health,CT Revenue Funds,03/11/2016,Staff Uniforms & Clothing,Bridgnorth Hospital Inpatient Ward,SIMON JERSEY LTD,8045535,1.29,732 3615 53
Department of Health,CT Revenue Funds,03/11/2016,Staff Uniforms & Clothing,Bridgnorth Hospital Inpatient Ward,SIMON JERSEY LTD,8045537,12.24,732 3615 53
Department of Health,CT Revenue Funds,03/11/2016,Staff Uniforms & Clothing,Bridgnorth Hospital Inpatient Ward,SIMON JERSEY LTD,8045537,11.4,732 3615 53
Department of Health,CT Revenue Funds,03/11/2016,Staff Uniforms & Clothing,Bridgnorth Hospital Inpatient Ward,SIMON JERSEY LTD,8045537,2.28,732 3615 53
Department of Health,CT Revenue Funds,03/11/2016,Staff Uniforms & Clothing,Bridgnorth Hospital Inpatient Ward,SIMON JERSEY LTD,8045537,2.45,732 3615 53
Department of Health,CT Revenue Funds,03/11/2016,Staff Uniforms & Clothing,Dudley School Nurses,SIMON JERSEY LTD,8047514,19.35,732 3615 53
Department of Health,CT Revenue Funds,03/11/2016,Staff Uniforms & Clothing,Dudley School Nurses,SIMON JERSEY LTD,8047514,3.87,732 3615 53
Department of Health,CT Revenue Funds,03/11/2016,Staff Uniforms & Clothing,Dudley School Nurses,SIMON JERSEY LTD,8047520,2.58,732 3615 53
Department of Health,CT Revenue Funds,03/11/2016,Staff Uniforms & Clothing,Dudley School Nurses,SIMON JERSEY LTD,8047520,12.9,732 3615 53
Department of Health,CT Revenue Funds,03/11/2016,Staff Uniforms & Clothing,Dudley School Nurses,SIMON JERSEY LTD,8047523,12.9,732 3615 53
Department of Health,CT Revenue Funds,03/11/2016,Staff Uniforms & Clothing,Dudley School Nurses,SIMON JERSEY LTD,8047523,2.58,732 3615 53
Department of Health,CT Revenue Funds,03/11/2016,Staff Uniforms & Clothing,ICS South West,SIMON JERSEY LTD,8047617,-2.4,732 3615 53
Department of Health,CT Revenue Funds,03/11/2016,Staff Uniforms & Clothing,ICS South West,SIMON JERSEY LTD,8047617,7.95,732 3615 53
Department of Health,CT Revenue Funds,03/11/2016,Staff Uniforms & Clothing,ICS South West,SIMON JERSEY LTD,8047617,15.2,732 3615 53
Department of Health,CT Revenue Funds,03/11/2016,Staff Uniforms & Clothing,ICS South West,SIMON JERSEY LTD,8047617,1.59,732 3615 53
Department of Health,CT Revenue Funds,03/11/2016,Staff Uniforms & Clothing,ICS South West,SIMON JERSEY LTD,8047617,-0.48,732 3615 53
Department of Health,CT Revenue Funds,03/11/2016,Staff Uniforms & Clothing,ICS South West,SIMON JERSEY LTD,8047617,19.35,732 3615 53
Department of Health,CT Revenue Funds,03/11/2016,Staff Uniforms & Clothing,ICS South West,SIMON JERSEY LTD,8047617,3.87,732 3615 53
Department of Health,CT Revenue Funds,03/11/2016,Staff Uniforms & Clothing,ICS South West,SIMON JERSEY LTD,8047617,3.04,732 3615 53
Department of Health,CT Revenue Funds,03/11/2016,Staff Uniforms & Clothing,ICS South West,SIMON JERSEY LTD,8047633,1.52,732 3615 53
Department of Health,CT Revenue Funds,03/11/2016,Staff Uniforms & Clothing,ICS South West,SIMON JERSEY LTD,8047633,-5.4,732 3615 53
Department of Health,CT Revenue Funds,03/11/2016,Staff Uniforms & Clothing,ICS South West,SIMON JERSEY LTD,8047633,7.6,732 3615 53
Department of Health,CT Revenue Funds,03/11/2016,Staff Uniforms & Clothing,ICS South West,SIMON JERSEY LTD,8047633,2.2,732 3615 53
Department of Health,CT Revenue Funds,03/11/2016,Staff Uniforms & Clothing,ICS South West,SIMON JERSEY LTD,8047633,4.5,732 3615 53
Department of Health,CT Revenue Funds,03/11/2016,Staff Uniforms & Clothing,ICS South West,SIMON JERSEY LTD,8047633,-1.08,732 3615 53
Department of Health,CT Revenue Funds,03/11/2016,Staff Uniforms & Clothing,ICS South West,SIMON JERSEY LTD,8047633,11,732 3615 53
Department of Health,CT Revenue Funds,03/11/2016,Staff Uniforms & Clothing,ICS South West,SIMON JERSEY LTD,8047633,-7.8,732 3615 53
Department of Health,CT Revenue Funds,03/11/2016,Staff Uniforms & Clothing,ICS South West,SIMON JERSEY LTD,8047633,-1.56,732 3615 53
Department of Health,CT Revenue Funds,03/11/2016,Staff Uniforms & Clothing,ICS South West,SIMON JERSEY LTD,8047633,22.48,732 3615 53
Department of Health,CT Revenue Funds,03/11/2016,Staff Uniforms & Clothing,North West Shropshire Interdisciplinary Teams,SIMON JERSEY LTD,8047691,3.04,732 3615 53
Department of Health,CT Revenue Funds,03/11/2016,Staff Uniforms & Clothing,North West Shropshire Interdisciplinary Teams,SIMON JERSEY LTD,8047691,25.8,732 3615 53
Department of Health,CT Revenue Funds,03/11/2016,Staff Uniforms & Clothing,North West Shropshire Interdisciplinary Teams,SIMON JERSEY LTD,8047691,15.2,732 3615 53
Department of Health,CT Revenue Funds,03/11/2016,Staff Uniforms & Clothing,North West Shropshire Interdisciplinary Teams,SIMON JERSEY LTD,8047691,5.16,732 3615 53
Department of Health,CT Revenue Funds,03/11/2016,Staff Uniforms & Clothing,Dudley School Nurses,SIMON JERSEY LTD,8047718,7.95,732 3615 53
Department of Health,CT Revenue Funds,03/11/2016,Staff Uniforms & Clothing,Dudley School Nurses,SIMON JERSEY LTD,8047718,1.59,732 3615 53
Department of Health,CT Revenue Funds,03/11/2016,Staff Uniforms & Clothing,Dudley School Nurses,SIMON JERSEY LTD,8047718,1.29,732 3615 53
Department of Health,CT Revenue Funds,03/11/2016,Staff Uniforms & Clothing,Dudley School Nurses,SIMON JERSEY LTD,8047718,6.45,732 3615 53
Department of Health,CT Revenue Funds,03/11/2016,Staff Uniforms & Clothing,Dudley School Nurses,SIMON JERSEY LTD,8047725,2.58,732 3615 53
Department of Health,CT Revenue Funds,03/11/2016,Staff Uniforms & Clothing,Dudley School Nurses,SIMON JERSEY LTD,8047725,12.9,732 3615 53
Department of Health,CT Revenue Funds,03/11/2016,Staff Uniforms & Clothing,Dudley School Nurses,SIMON JERSEY LTD,8047729,2.58,732 3615 53
Department of Health,CT Revenue Funds,03/11/2016,Staff Uniforms & Clothing,Dudley School Nurses,SIMON JERSEY LTD,8047729,12.9,732 3615 53
Department of Health,CT Revenue Funds,03/11/2016,Staff Uniforms & Clothing,Dudley School Nurses,SIMON JERSEY LTD,8047733,6.45,732 3615 53
Department of Health,CT Revenue Funds,03/11/2016,Staff Uniforms & Clothing,Dudley School Nurses,SIMON JERSEY LTD,8047733,1.52,732 3615 53
Department of Health,CT Revenue Funds,03/11/2016,Staff Uniforms & Clothing,Dudley School Nurses,SIMON JERSEY LTD,8047733,7.6,732 3615 53
Department of Health,CT Revenue Funds,03/11/2016,Staff Uniforms & Clothing,Dudley School Nurses,SIMON JERSEY LTD,8047733,1.29,732 3615 53
Department of Health,CT Revenue Funds,03/11/2016,Staff Uniforms & Clothing,Dudley School Nurses,SIMON JERSEY LTD,8047733,7.95,732 3615 53
Department of Health,CT Revenue Funds,03/11/2016,Staff Uniforms & Clothing,Dudley School Nurses,SIMON JERSEY LTD,8047733,1.59,732 3615 53
Department of Health,CT Revenue Funds,03/11/2016,Staff Uniforms & Clothing,Shropshire School Nurses,ALEXANDRA WORKWEAR,OLSINV/03757007,-2.37,927 1561 21
Department of Health,CT Revenue Funds,03/11/2016,Staff Uniforms & Clothing,Shropshire School Nurses,ALEXANDRA WORKWEAR,OLSINV/03757007,17.27,927 1561 21
Department of Health,CT Revenue Funds,03/11/2016,Staff Uniforms & Clothing,Shropshire School Nurses,ALEXANDRA WORKWEAR,OLSINV/03757007,3.45,927 1561 21
Department of Health,CT Revenue Funds,03/11/2016,Staff Uniforms & Clothing,Shropshire School Nurses,ALEXANDRA WORKWEAR,OLSINV/03757007,-0.47,927 1561 21
Department of Health,CT Revenue Funds,03/11/2016,Staff Uniforms & Clothing,Wheelchair Services,ALEXANDRA WORKWEAR,SCRDOL/00052054,-22.16,927 1561 21
Department of Health,CT Revenue Funds,03/11/2016,Staff Uniforms & Clothing,Wheelchair Services,ALEXANDRA WORKWEAR,SCRDOL/00052054,-4.43,927 1561 21
Department of Health,CT Revenue Funds,03/11/2016,Standard Life AVC's,Payables,STANDARD LIFE ASSURANCE COMPANY,OCT16,50,
Department of Health,CT Revenue Funds,03/11/2016,Stationery,Shropshire School Nurses,STAMPS DIRECT LTD,LN252155,35.7,283 5042 63
Department of Health,CT Revenue Funds,03/11/2016,Stationery,Shropshire School Nurses,STAMPS DIRECT LTD,LN252155,7.14,283 5042 63
Department of Health,CT Revenue Funds,03/11/2016,Subscriptions to Organisations,Finance Directorate Management,HEALTHCARE QUALITY IMPROVEMENT PARTNERSHIP LTD (HQIP),S05167,10000,
Department of Health,CT Revenue Funds,03/11/2016,Subscriptions to Organisations,Finance Directorate Management,HEALTHCARE QUALITY IMPROVEMENT PARTNERSHIP LTD (HQIP),S05167,2000,
Department of Health,CT Revenue Funds,03/11/2016,Surgical Instruments : General,Bridgnorth Hospital Theatre,JUDD MEDICAL LTD,INV073969,203.35,650 2675 46
Department of Health,CT Revenue Funds,03/11/2016,Surgical Instruments : General,Bridgnorth Hospital Theatre,JUDD MEDICAL LTD,INV073969,40.67,650 2675 46
Department of Health,CT Revenue Funds,03/11/2016,Telephone Rental & Call Charges,Continence Services,BT CONTRACT RENTALS,D060557411612,39.42,
Department of Health,CT Revenue Funds,03/11/2016,Telephone Rental & Call Charges,Wheelchair Services,BT CONTRACT RENTALS,D060557411612,7.89,
Department of Health,CT Revenue Funds,03/11/2016,Telephone Rental & Call Charges,Community Neuro Rehabilitation Team (CNRT),BT CONTRACT RENTALS,D060557411612,7.88,
Department of Health,CT Revenue Funds,03/11/2016,Telephone Rental & Call Charges,Continence Services,BT CONTRACT RENTALS,D060557411612,7.88,
Department of Health,CT Revenue Funds,03/11/2016,Telephone Rental & Call Charges,Wheelchair Services,BT CONTRACT RENTALS,D060557411612,39.4,
Department of Health,CT Revenue Funds,03/11/2016,Telephone Rental & Call Charges,Community Neuro Rehabilitation Team (CNRT),BT CONTRACT RENTALS,D060557411612,39.42,
Department of Health,CT Revenue Funds,03/11/2016,Textiles Materials,Telford Child Development Centre,ARGOS,01468624,5.2,145 8990 25
Department of Health,CT Revenue Funds,03/11/2016,Textiles Materials,Telford Child Development Centre,ARGOS,01468624,1.04,145 8990 25
Department of Health,CT Revenue Funds,03/11/2016,Textiles Materials,Telford Child Development Centre,ARGOS,01468624,0.01,145 8990 25
Department of Health,CT Revenue Funds,03/11/2016,Textiles Materials,Telford Child Development Centre,ARGOS,01468624,0.01,145 8990 25
Department of Health,CT Revenue Funds,03/11/2016,Therapy Equipment & Materials,Shropshire Child Comm Physiotherapy,SEVERNDALE SPECIALIST ACADEMY,5100315,8,
Department of Health,CT Revenue Funds,03/11/2016,Therapy Services From Non-NHS Bodies,MSK Therapy,THE MADDOCKS CLINIC,SEP16 PATIENTS,18675,
Department of Health,CT Revenue Funds,03/11/2016,Travel & Subsistence,Bridgnorth Hospital Management,PATIENTS TRAVEL PAYMENTS CT,22/9/16 TRAVEL,5.1,
Department of Health,CT Revenue Funds,03/11/2016,Travel & Subsistence,ICS Central,YOUR WORLD RECRUITMENT LTD,YWR30507,34.72,
Department of Health,CT Revenue Funds,03/11/2016,Travel & Subsistence,ICS Central,YOUR WORLD RECRUITMENT LTD,YWR30507,6.94,
Department of Health,CT Revenue Funds,03/11/2016,Travel & Subsistence,ICS Central,YOUR WORLD RECRUITMENT LTD,YWR31311,7.64,
Department of Health,CT Revenue Funds,03/11/2016,Travel & Subsistence,ICS Central,YOUR WORLD RECRUITMENT LTD,YWR31311,38.19,
Department of Health,CT Revenue Funds,03/11/2016,Travel & Subsistence,ICS North West,YOUR WORLD RECRUITMENT LTD,YWR31313,4.52,
Department of Health,CT Revenue Funds,03/11/2016,Travel & Subsistence,ICS North West,YOUR WORLD RECRUITMENT LTD,YWR31313,22.59,
Department of Health,CT Revenue Funds,03/11/2016,User Agreements/Running Costs,Charlesworth Court Unit B,RYMINSTER LTD,CWC/0179,21.38,
Department of Health,CT Revenue Funds,03/11/2016,User Agreements/Running Costs,Charlesworth Court Unit B,RYMINSTER LTD,CWC/0179,106.88,
Department of Health,CT Revenue Funds,03/11/2016,User Agreements/Running Costs,Shawbury Medical Practice,SHAWBURY MEDICAL PRACTICE,JC/RCPIS2610,630.85,
Department of Health,CT Revenue Funds,03/11/2016,Water Cooler Rental,Bridgnorth Hospital Catering,WENLOCK WATER COOLERS,274356,71.98,771 4918 08
Department of Health,CT Revenue Funds,03/11/2016,Water Cooler Rental,Bridgnorth Hospital Catering,WENLOCK WATER COOLERS,274356,359.92,771 4918 08
Department of Health,CT Revenue Funds,03/11/2016,Wheelchair Cushions,Wheelchair Services,QBITUS PRODUCTS,102347,-60,525 8646 22
Department of Health,CT Revenue Funds,03/11/2016,Wheelchair Cushions,Wheelchair Services,QBITUS PRODUCTS,102347,450,525 8646 22
Department of Health,CT Revenue Funds,03/11/2016,Wheelchair Cushions,Wheelchair Services,QBITUS PRODUCTS,102347,45,525 8646 22
Department of Health,CT Revenue Funds,03/11/2016,Wheelchair Cushions,Wheelchair Services,QBITUS PRODUCTS,102347,90,525 8646 22
Department of Health,CT Revenue Funds,03/11/2016,Wheelchair Cushions,Wheelchair Services,QBITUS PRODUCTS,102347,-12,525 8646 22
Department of Health,CT Revenue Funds,03/11/2016,Wheelchair Cushions,Wheelchair Services,QBITUS PRODUCTS,102347,-6,525 8646 22
Department of Health,CT Revenue Funds,03/11/2016,Wheelchair Cushions,Wheelchair Services,QBITUS PRODUCTS,102347,-12,525 8646 22
Department of Health,CT Revenue Funds,03/11/2016,Wheelchair Cushions,Wheelchair Services,QBITUS PRODUCTS,102347,1.59,525 8646 22
Department of Health,CT Revenue Funds,03/11/2016,Wheelchair Cushions,Wheelchair Services,QBITUS PRODUCTS,102347,-60,525 8646 22
Department of Health,CT Revenue Funds,03/11/2016,Wheelchair Cushions,Wheelchair Services,QBITUS PRODUCTS,102347,7.95,525 8646 22
Department of Health,CT Revenue Funds,03/11/2016,Wheelchair Cushions,Wheelchair Services,QBITUS PRODUCTS,102347,90,525 8646 22
Department of Health,CT Revenue Funds,03/11/2016,Wheelchair Cushions,Wheelchair Services,QBITUS PRODUCTS,102347,-30,525 8646 22
Department of Health,CT Revenue Funds,03/11/2016,Wheelchair Cushions,Wheelchair Services,QBITUS PRODUCTS,102347,225,525 8646 22
Department of Health,CT Revenue Funds,03/11/2016,Wheelchair Cushions,Wheelchair Services,QBITUS PRODUCTS,102347,450,525 8646 22
Department of Health,CT Revenue Funds,03/11/2016,Wheelchair Cushions,Wheelchair Services,SUNRISE MEDICAL,2508801,45,388 6068 02
Department of Health,CT Revenue Funds,03/11/2016,Wheelchair Cushions,Wheelchair Services,SUNRISE MEDICAL,2508801,189,388 6068 02
Department of Health,CT Revenue Funds,03/11/2016,Wheelchair Cushions,Wheelchair Services,SUNRISE MEDICAL,2508801,9,388 6068 02
Department of Health,CT Revenue Funds,03/11/2016,Wheelchair Cushions,Wheelchair Services,SUNRISE MEDICAL,2508801,37.8,388 6068 02
Department of Health,CT Revenue Funds,03/11/2016,Wheelchair Cushions,Wheelchair Services,SUNRISE MEDICAL,2508801,189,388 6068 02
Department of Health,CT Revenue Funds,03/11/2016,Wheelchair Cushions,Wheelchair Services,SUNRISE MEDICAL,2508801,8.4,388 6068 02
Department of Health,CT Revenue Funds,03/11/2016,Wheelchair Cushions,Wheelchair Services,SUNRISE MEDICAL,2508801,37.8,388 6068 02
Department of Health,CT Revenue Funds,03/11/2016,Wheelchair Cushions,Wheelchair Services,SUNRISE MEDICAL,2508801,45,388 6068 02
Department of Health,CT Revenue Funds,03/11/2016,Wheelchair Cushions,Wheelchair Services,SUNRISE MEDICAL,2508801,42,388 6068 02
Department of Health,CT Revenue Funds,03/11/2016,Wheelchair Cushions,Wheelchair Services,SUNRISE MEDICAL,2508801,9,388 6068 02
Department of Health,CT Revenue Funds,03/11/2016,Wheelchair Cushions,Wheelchair Services,SUNRISE MEDICAL,2508801,42,388 6068 02
Department of Health,CT Revenue Funds,03/11/2016,Wheelchair Cushions,Wheelchair Services,SUNRISE MEDICAL,2508801,8.4,388 6068 02
Department of Health,CT Revenue Funds,03/11/2016,Wheelchair Cushions,Wheelchair Services,SUNRISE MEDICAL,2515012,219,388 6068 02
Department of Health,CT Revenue Funds,03/11/2016,Wheelchair Cushions,Wheelchair Services,SUNRISE MEDICAL,2515012,43.8,388 6068 02
Department of Health,CT Revenue Funds,03/11/2016,Wheelchair Cushions,Wheelchair Services,SUNRISE MEDICAL,2515012,189,388 6068 02
Department of Health,CT Revenue Funds,03/11/2016,Wheelchair Cushions,Wheelchair Services,SUNRISE MEDICAL,2515012,37.8,388 6068 02
Department of Health,CT Revenue Funds,03/11/2016,Wheelchair Cushions,Wheelchair Services,SUNRISE MEDICAL,2515013,48.6,388 6068 02
Department of Health,CT Revenue Funds,03/11/2016,Wheelchair Cushions,Wheelchair Services,SUNRISE MEDICAL,2515013,243,388 6068 02
Department of Health,CT Revenue Funds,03/11/2016,Wheelchair Cushions,Wheelchair Services,HELPING HAND COMPANY,281242,12.1,
Department of Health,CT Revenue Funds,03/11/2016,Wheelchair Cushions,Wheelchair Services,HELPING HAND COMPANY,281242,60.48,
Department of Health,CT Revenue Funds,03/11/2016,Wheelchair Cushions,Wheelchair Services,SUMED INTERNATIONAL (UK) LTD,93156,55,903 0612 73
Department of Health,CT Revenue Funds,03/11/2016,Wheelchair Cushions,Wheelchair Services,SUMED INTERNATIONAL (UK) LTD,93156,11,903 0612 73
Department of Health,CT Revenue Funds,03/11/2016,Wheelchair Cushions,Wheelchair Services,DOMESTIC MOBILITY SOLUTIONS LTD,DMS-SHROP041016CM,30,
Department of Health,CT Revenue Funds,03/11/2016,Wheelchair Cushions,Wheelchair Services,DOMESTIC MOBILITY SOLUTIONS LTD,DMS-SHROP041016CM,6,
Department of Health,CT Revenue Funds,03/11/2016,Wheelchair Cushions,Wheelchair Services,DOMESTIC MOBILITY SOLUTIONS LTD,DMS-SHROP041016CM,445,
Department of Health,CT Revenue Funds,03/11/2016,Wheelchair Cushions,Wheelchair Services,DOMESTIC MOBILITY SOLUTIONS LTD,DMS-SHROP041016CM,89,
Department of Health,CT Revenue Funds,03/11/2016,Wheelchair Cushions,Wheelchair Services,DOMESTIC MOBILITY SOLUTIONS LTD,DMS-SHROPQ270916LLJ,30,
Department of Health,CT Revenue Funds,03/11/2016,Wheelchair Cushions,Wheelchair Services,DOMESTIC MOBILITY SOLUTIONS LTD,DMS-SHROPQ270916LLJ,410,
Department of Health,CT Revenue Funds,03/11/2016,Wheelchair Cushions,Wheelchair Services,DOMESTIC MOBILITY SOLUTIONS LTD,DMS-SHROPQ270916LLJ,6,
Department of Health,CT Revenue Funds,03/11/2016,Wheelchair Cushions,Wheelchair Services,DOMESTIC MOBILITY SOLUTIONS LTD,DMS-SHROPQ270916LLJ,82,
Department of Health,CT Revenue Funds,03/11/2016,Wheelchair Spares & Accessories,Wheelchair Services,SPECIALISED ORTHOTIC SERVICES LTD,0000706512,9.72,616 9753 09
Department of Health,CT Revenue Funds,03/11/2016,Wheelchair Spares & Accessories,Wheelchair Services,SPECIALISED ORTHOTIC SERVICES LTD,0000706512,48.6,616 9753 09
Department of Health,CT Revenue Funds,03/11/2016,Wheelchair Spares & Accessories,Wheelchair Services,GEL OVATIONS EUROPE LTD,16171,7.24,
Department of Health,CT Revenue Funds,03/11/2016,Wheelchair Spares & Accessories,Wheelchair Services,GEL OVATIONS EUROPE LTD,16171,-1.81,
Department of Health,CT Revenue Funds,03/11/2016,Wheelchair Spares & Accessories,Wheelchair Services,GEL OVATIONS EUROPE LTD,16171,-9.06,
Department of Health,CT Revenue Funds,03/11/2016,Wheelchair Spares & Accessories,Wheelchair Services,GEL OVATIONS EUROPE LTD,16171,36.23,
Department of Health,CT Revenue Funds,03/11/2016,Wheelchair Spares & Accessories,Wheelchair Services,GEL OVATIONS EUROPE LTD,16172,10.24,
Department of Health,CT Revenue Funds,03/11/2016,Wheelchair Spares & Accessories,Wheelchair Services,GEL OVATIONS EUROPE LTD,16172,58.67,
Department of Health,CT Revenue Funds,03/11/2016,Wheelchair Spares & Accessories,Wheelchair Services,GEL OVATIONS EUROPE LTD,16172,11.73,
Department of Health,CT Revenue Funds,03/11/2016,Wheelchair Spares & Accessories,Wheelchair Services,GEL OVATIONS EUROPE LTD,16172,51.19,
Department of Health,CT Revenue Funds,03/11/2016,Wheelchair Spares & Accessories,Wheelchair Services,INVACARE UK LTD,1621144589,17.6,840 9031 46
Department of Health,CT Revenue Funds,03/11/2016,Wheelchair Spares & Accessories,Wheelchair Services,INVACARE UK LTD,1621144589,88,840 9031 46
Department of Health,CT Revenue Funds,03/11/2016,Wheelchair Spares & Accessories,Wheelchair Services,INVACARE UK LTD,1621144590,59.05,840 9031 46
Department of Health,CT Revenue Funds,03/11/2016,Wheelchair Spares & Accessories,Wheelchair Services,INVACARE UK LTD,1621144590,0.02,840 9031 46
Department of Health,CT Revenue Funds,03/11/2016,Wheelchair Spares & Accessories,Wheelchair Services,INVACARE UK LTD,1621144590,295.27,840 9031 46
Department of Health,CT Revenue Funds,03/11/2016,Wheelchair Spares & Accessories,Wheelchair Services,INVACARE UK LTD,1621144591,54.3,840 9031 46
Department of Health,CT Revenue Funds,03/11/2016,Wheelchair Spares & Accessories,Wheelchair Services,INVACARE UK LTD,1621144591,271.52,840 9031 46
Department of Health,CT Revenue Funds,03/11/2016,Wheelchair Spares & Accessories,Wheelchair Services,INVACARE UK LTD,1621144591,0.02,840 9031 46
Department of Health,CT Revenue Funds,03/11/2016,Wheelchair Spares & Accessories,Wheelchair Services,INVACARE UK LTD,1621145183,9.62,840 9031 46
Department of Health,CT Revenue Funds,03/11/2016,Wheelchair Spares & Accessories,Wheelchair Services,INVACARE UK LTD,1621145183,48.08,840 9031 46
Department of Health,CT Revenue Funds,03/11/2016,Wheelchair Spares & Accessories,Wheelchair Services,INVACARE UK LTD,1621145338,53.75,840 9031 46
Department of Health,CT Revenue Funds,03/11/2016,Wheelchair Spares & Accessories,Wheelchair Services,INVACARE UK LTD,1621145338,0.02,840 9031 46
Department of Health,CT Revenue Funds,03/11/2016,Wheelchair Spares & Accessories,Wheelchair Services,INVACARE UK LTD,1621145338,268.76,840 9031 46
Department of Health,CT Revenue Funds,03/11/2016,Wheelchair Spares & Accessories,Wheelchair Services,INVACARE UK LTD,1621145745,4.89,840 9031 46
Department of Health,CT Revenue Funds,03/11/2016,Wheelchair Spares & Accessories,Wheelchair Services,INVACARE UK LTD,1621145745,0.49,840 9031 46
Department of Health,CT Revenue Funds,03/11/2016,Wheelchair Spares & Accessories,Wheelchair Services,INVACARE UK LTD,1621145745,0.1,840 9031 46
Department of Health,CT Revenue Funds,03/11/2016,Wheelchair Spares & Accessories,Wheelchair Services,INVACARE UK LTD,1621145745,24.47,840 9031 46
Department of Health,CT Revenue Funds,03/11/2016,Wheelchair Spares & Accessories,Wheelchair Services,INVACARE UK LTD,1621146540,-0.62,840 9031 46
Department of Health,CT Revenue Funds,03/11/2016,Wheelchair Spares & Accessories,Wheelchair Services,INVACARE UK LTD,1621146540,-3.1,840 9031 46
Department of Health,CT Revenue Funds,03/11/2016,Wheelchair Spares & Accessories,Wheelchair Services,INVACARE UK LTD,1621146540,16.11,840 9031 46
Department of Health,CT Revenue Funds,03/11/2016,Wheelchair Spares & Accessories,Wheelchair Services,INVACARE UK LTD,1621146540,80.55,840 9031 46
Department of Health,CT Revenue Funds,03/11/2016,Wheelchair Spares & Accessories,Wheelchair Services,INVACARE UK LTD,1621146541,1.68,840 9031 46
Department of Health,CT Revenue Funds,03/11/2016,Wheelchair Spares & Accessories,Wheelchair Services,INVACARE UK LTD,1621146541,52.35,840 9031 46
Department of Health,CT Revenue Funds,03/11/2016,Wheelchair Spares & Accessories,Wheelchair Services,INVACARE UK LTD,1621146541,26.94,840 9031 46
Department of Health,CT Revenue Funds,03/11/2016,Wheelchair Spares & Accessories,Wheelchair Services,INVACARE UK LTD,1621146541,52.35,840 9031 46
Department of Health,CT Revenue Funds,03/11/2016,Wheelchair Spares & Accessories,Wheelchair Services,INVACARE UK LTD,1621146541,8.4,840 9031 46
Department of Health,CT Revenue Funds,03/11/2016,Wheelchair Spares & Accessories,Wheelchair Services,INVACARE UK LTD,1621146541,5.39,840 9031 46
Department of Health,CT Revenue Funds,03/11/2016,Wheelchair Spares & Accessories,Wheelchair Services,INVACARE UK LTD,1621146541,10.38,840 9031 46
Department of Health,CT Revenue Funds,03/11/2016,Wheelchair Spares & Accessories,Wheelchair Services,INVACARE UK LTD,1621146541,10.47,840 9031 46
Department of Health,CT Revenue Funds,03/11/2016,Wheelchair Spares & Accessories,Wheelchair Services,INVACARE UK LTD,1621146541,10.47,840 9031 46
Department of Health,CT Revenue Funds,03/11/2016,Wheelchair Spares & Accessories,Wheelchair Services,INVACARE UK LTD,1621146541,3.13,840 9031 46
Department of Health,CT Revenue Funds,03/11/2016,Wheelchair Spares & Accessories,Wheelchair Services,INVACARE UK LTD,1621146541,51.89,840 9031 46
Department of Health,CT Revenue Funds,03/11/2016,Wheelchair Spares & Accessories,Wheelchair Services,INVACARE UK LTD,1621146541,15.67,840 9031 46
Department of Health,CT Revenue Funds,03/11/2016,Wheelchair Spares & Accessories,Wheelchair Services,INVACARE UK LTD,1621146542,103.94,840 9031 46
Department of Health,CT Revenue Funds,03/11/2016,Wheelchair Spares & Accessories,Wheelchair Services,INVACARE UK LTD,1621146542,1.12,840 9031 46
Department of Health,CT Revenue Funds,03/11/2016,Wheelchair Spares & Accessories,Wheelchair Services,INVACARE UK LTD,1621146542,8.4,840 9031 46
Department of Health,CT Revenue Funds,03/11/2016,Wheelchair Spares & Accessories,Wheelchair Services,INVACARE UK LTD,1621146542,20.79,840 9031 46
Department of Health,CT Revenue Funds,03/11/2016,Wheelchair Spares & Accessories,Wheelchair Services,INVACARE UK LTD,1621146542,52.35,840 9031 46
Department of Health,CT Revenue Funds,03/11/2016,Wheelchair Spares & Accessories,Wheelchair Services,INVACARE UK LTD,1621146542,4.28,840 9031 46
Department of Health,CT Revenue Funds,03/11/2016,Wheelchair Spares & Accessories,Wheelchair Services,INVACARE UK LTD,1621146542,5.61,840 9031 46
Department of Health,CT Revenue Funds,03/11/2016,Wheelchair Spares & Accessories,Wheelchair Services,INVACARE UK LTD,1621146542,104.7,840 9031 46
Department of Health,CT Revenue Funds,03/11/2016,Wheelchair Spares & Accessories,Wheelchair Services,INVACARE UK LTD,1621146542,20.94,840 9031 46
Department of Health,CT Revenue Funds,03/11/2016,Wheelchair Spares & Accessories,Wheelchair Services,INVACARE UK LTD,1621146542,21.42,840 9031 46
Department of Health,CT Revenue Funds,03/11/2016,Wheelchair Spares & Accessories,Wheelchair Services,INVACARE UK LTD,1621146542,1.68,840 9031 46
Department of Health,CT Revenue Funds,03/11/2016,Wheelchair Spares & Accessories,Wheelchair Services,INVACARE UK LTD,1621146542,10.47,840 9031 46
Department of Health,CT Revenue Funds,03/11/2016,Wheelchair Spares & Accessories,Wheelchair Services,MANBAT BATTERIES,1712085,-120.24,
Department of Health,CT Revenue Funds,03/11/2016,Wheelchair Spares & Accessories,Wheelchair Services,MANBAT BATTERIES,1712085,-24.05,
Department of Health,CT Revenue Funds,03/11/2016,Wheelchair Spares & Accessories,Wheelchair Services,MANBAT BATTERIES,1717362,55.5,
Department of Health,CT Revenue Funds,03/11/2016,Wheelchair Spares & Accessories,Wheelchair Services,MANBAT BATTERIES,1717362,-0.01,
Department of Health,CT Revenue Funds,03/11/2016,Wheelchair Spares & Accessories,Wheelchair Services,MANBAT BATTERIES,1717362,363.8,
Department of Health,CT Revenue Funds,03/11/2016,Wheelchair Spares & Accessories,Wheelchair Services,MANBAT BATTERIES,1717362,72.76,
Department of Health,CT Revenue Funds,03/11/2016,Wheelchair Spares & Accessories,Wheelchair Services,MANBAT BATTERIES,1717362,149.22,
Department of Health,CT Revenue Funds,03/11/2016,Wheelchair Spares & Accessories,Wheelchair Services,MANBAT BATTERIES,1717362,277.48,
Department of Health,CT Revenue Funds,03/11/2016,Wheelchair Spares & Accessories,Wheelchair Services,MANBAT BATTERIES,1717362,0.01,
Department of Health,CT Revenue Funds,03/11/2016,Wheelchair Spares & Accessories,Wheelchair Services,MANBAT BATTERIES,1717362,29.84,
Department of Health,CT Revenue Funds,03/11/2016,Wheelchair Spares & Accessories,Wheelchair Services,SUNRISE MEDICAL,2514290,9.82,388 6068 02
Department of Health,CT Revenue Funds,03/11/2016,Wheelchair Spares & Accessories,Wheelchair Services,SUNRISE MEDICAL,2514290,49.08,388 6068 02
Department of Health,CT Revenue Funds,03/11/2016,Wheelchair Spares & Accessories,Wheelchair Services,SUNRISE MEDICAL,2514291,18.74,388 6068 02
Department of Health,CT Revenue Funds,03/11/2016,Wheelchair Spares & Accessories,Wheelchair Services,SUNRISE MEDICAL,2514291,3.75,388 6068 02
Department of Health,CT Revenue Funds,03/11/2016,Wheelchair Spares & Accessories,Wheelchair Services,SUNRISE MEDICAL,2514291,18.74,388 6068 02
Department of Health,CT Revenue Funds,03/11/2016,Wheelchair Spares & Accessories,Wheelchair Services,SUNRISE MEDICAL,2514291,3.75,388 6068 02
Department of Health,CT Revenue Funds,03/11/2016,Wheelchair Spares & Accessories,Wheelchair Services,SUNRISE MEDICAL,2514574,46.4,388 6068 02
Department of Health,CT Revenue Funds,03/11/2016,Wheelchair Spares & Accessories,Wheelchair Services,SUNRISE MEDICAL,2514574,232,388 6068 02
Department of Health,CT Revenue Funds,03/11/2016,Wheelchair Spares & Accessories,Wheelchair Services,SUNRISE MEDICAL,2514574,5.73,388 6068 02
Department of Health,CT Revenue Funds,03/11/2016,Wheelchair Spares & Accessories,Wheelchair Services,SUNRISE MEDICAL,2514574,-7.67,388 6068 02
Department of Health,CT Revenue Funds,03/11/2016,Wheelchair Spares & Accessories,Wheelchair Services,SUNRISE MEDICAL,2514574,-1.53,388 6068 02
Department of Health,CT Revenue Funds,03/11/2016,Wheelchair Spares & Accessories,Wheelchair Services,SUNRISE MEDICAL,2514574,28.67,388 6068 02
Department of Health,CT Revenue Funds,03/11/2016,Wheelchair Spares & Accessories,Wheelchair Services,SUNRISE MEDICAL,2515012,6.4,388 6068 02
Department of Health,CT Revenue Funds,03/11/2016,Wheelchair Spares & Accessories,Wheelchair Services,SUNRISE MEDICAL,2515012,6.4,388 6068 02
Department of Health,CT Revenue Funds,03/11/2016,Wheelchair Spares & Accessories,Wheelchair Services,SUNRISE MEDICAL,2515012,32,388 6068 02
Department of Health,CT Revenue Funds,03/11/2016,Wheelchair Spares & Accessories,Wheelchair Services,SUNRISE MEDICAL,2515012,6.4,388 6068 02
Department of Health,CT Revenue Funds,03/11/2016,Wheelchair Spares & Accessories,Wheelchair Services,SUNRISE MEDICAL,2515012,32,388 6068 02
Department of Health,CT Revenue Funds,03/11/2016,Wheelchair Spares & Accessories,Wheelchair Services,SUNRISE MEDICAL,2515012,32,388 6068 02
Department of Health,CT Revenue Funds,03/11/2016,Wheelchair Spares & Accessories,Wheelchair Services,SUNRISE MEDICAL,2515014,45.95,388 6068 02
Department of Health,CT Revenue Funds,03/11/2016,Wheelchair Spares & Accessories,Wheelchair Services,SUNRISE MEDICAL,2515014,229.76,388 6068 02
Department of Health,CT Revenue Funds,03/11/2016,Wheelchair Spares & Accessories,Wheelchair Services,BML-HAYLEY,589587-00,23.38,434 0683 63
Department of Health,CT Revenue Funds,03/11/2016,Wheelchair Spares & Accessories,Wheelchair Services,BML-HAYLEY,589587-00,4.68,434 0683 63
Department of Health,CT Revenue Funds,03/11/2016,Wheelchair Spares & Accessories,Wheelchair Services,OTTO BOCK HEALTHCARE PLC,911485773,73.7,228 4212 81
Department of Health,CT Revenue Funds,03/11/2016,Wheelchair Spares & Accessories,Wheelchair Services,OTTO BOCK HEALTHCARE PLC,911485773,7,228 4212 81
Department of Health,CT Revenue Funds,03/11/2016,Wheelchair Spares & Accessories,Wheelchair Services,OTTO BOCK HEALTHCARE PLC,911485773,73.7,228 4212 81
Department of Health,CT Revenue Funds,03/11/2016,Wheelchair Spares & Accessories,Wheelchair Services,OTTO BOCK HEALTHCARE PLC,911485773,1.4,228 4212 81
Department of Health,CT Revenue Funds,03/11/2016,Wheelchair Spares & Accessories,Wheelchair Services,OTTO BOCK HEALTHCARE PLC,911485773,14.74,228 4212 81
Department of Health,CT Revenue Funds,03/11/2016,Wheelchair Spares & Accessories,Wheelchair Services,OTTO BOCK HEALTHCARE PLC,911485773,14.74,228 4212 81
Department of Health,CT Revenue Funds,03/11/2016,Wheelchair Spares & Accessories,Wheelchair Services,OTTO BOCK HEALTHCARE PLC,911487286,29.32,228 4212 81
Department of Health,CT Revenue Funds,03/11/2016,Wheelchair Spares & Accessories,Wheelchair Services,OTTO BOCK HEALTHCARE PLC,911487286,146.58,228 4212 81
Department of Health,CT Revenue Funds,03/11/2016,Wheelchair Spares & Accessories,Wheelchair Services,OTTO BOCK HEALTHCARE PLC,911487415,5.71,228 4212 81
Department of Health,CT Revenue Funds,03/11/2016,Wheelchair Spares & Accessories,Wheelchair Services,OTTO BOCK HEALTHCARE PLC,911487415,19.64,228 4212 81
Department of Health,CT Revenue Funds,03/11/2016,Wheelchair Spares & Accessories,Wheelchair Services,OTTO BOCK HEALTHCARE PLC,911487415,98.21,228 4212 81
Department of Health,CT Revenue Funds,03/11/2016,Wheelchair Spares & Accessories,Wheelchair Services,OTTO BOCK HEALTHCARE PLC,911487415,124.18,228 4212 81
Department of Health,CT Revenue Funds,03/11/2016,Wheelchair Spares & Accessories,Wheelchair Services,OTTO BOCK HEALTHCARE PLC,911487415,-5.71,228 4212 81
Department of Health,CT Revenue Funds,03/11/2016,Wheelchair Spares & Accessories,Wheelchair Services,OTTO BOCK HEALTHCARE PLC,911487415,5.71,228 4212 81
Department of Health,CT Revenue Funds,03/11/2016,Wheelchair Spares & Accessories,Wheelchair Services,OTTO BOCK HEALTHCARE PLC,911487415,24.83,228 4212 81
Department of Health,CT Revenue Funds,03/11/2016,Wheelchair Spares & Accessories,Wheelchair Services,OTTO BOCK HEALTHCARE PLC,911487415,28.55,228 4212 81
Department of Health,CT Revenue Funds,03/11/2016,Wheelchair Spares & Accessories,Wheelchair Services,OTTO BOCK HEALTHCARE PLC,911487415,5.71,228 4212 81
Department of Health,CT Revenue Funds,03/11/2016,Wheelchair Spares & Accessories,Wheelchair Services,OTTO BOCK HEALTHCARE PLC,911487415,24.53,228 4212 81
Department of Health,CT Revenue Funds,03/11/2016,Wheelchair Spares & Accessories,Wheelchair Services,OTTO BOCK HEALTHCARE PLC,911487415,28.55,228 4212 81
Department of Health,CT Revenue Funds,03/11/2016,Wheelchair Spares & Accessories,Wheelchair Services,OTTO BOCK HEALTHCARE PLC,911487415,122.68,228 4212 81
Department of Health,CT Revenue Funds,03/11/2016,Wheelchair Spares & Accessories,Wheelchair Services,OTTO BOCK HEALTHCARE PLC,911487415,0.01,228 4212 81
Department of Health,CT Revenue Funds,03/11/2016,Wheelchair Spares & Accessories,Wheelchair Services,ALEXANDRA WORKWEAR,OLSINV/03705698,16.16,927 1561 21
Department of Health,CT Revenue Funds,03/11/2016,Wheelchair Spares & Accessories,Wheelchair Services,ALEXANDRA WORKWEAR,OLSINV/03705698,3.23,927 1561 21
Department of Health,CT Revenue Funds,03/11/2016,Wheelchair Spares & Accessories,Wheelchair Services,ALEXANDRA WORKWEAR,OLSINV/03705698,1.2,927 1561 21
Department of Health,CT Revenue Funds,03/11/2016,Wheelchair Spares & Accessories,Wheelchair Services,ALEXANDRA WORKWEAR,OLSINV/03705698,6,927 1561 21
Department of Health,CT Revenue Funds,03/11/2016,Wheelchair Spares & Accessories,Wheelchair Services,ALEXANDRA WORKWEAR,OLSINV/03705698,27.8,927 1561 21
Department of Health,CT Revenue Funds,03/11/2016,Wheelchair Spares & Accessories,Wheelchair Services,ALEXANDRA WORKWEAR,OLSINV/03705698,20,927 1561 21
Department of Health,CT Revenue Funds,03/11/2016,Wheelchair Spares & Accessories,Wheelchair Services,ALEXANDRA WORKWEAR,OLSINV/03705698,5.56,927 1561 21
Department of Health,CT Revenue Funds,03/11/2016,Wheelchair Spares & Accessories,Wheelchair Services,ALEXANDRA WORKWEAR,OLSINV/03705698,99.98,927 1561 21
Department of Health,CT Revenue Funds,03/11/2016,Wheelchair Spares & Accessories,Wheelchair Services,REHABILITATION MANUFACTURING SERVICIES LTD,SIN078505,9,304 4547 80
Department of Health,CT Revenue Funds,03/11/2016,Wheelchair Spares & Accessories,Wheelchair Services,REHABILITATION MANUFACTURING SERVICIES LTD,SIN078505,1.8,304 4547 80
Department of Health,CT Revenue Funds,03/11/2016,Wheelchair Spares & Accessories,Wheelchair Services,REHABILITATION MANUFACTURING SERVICIES LTD,SIN078568,29.6,304 4547 80
Department of Health,CT Revenue Funds,03/11/2016,Wheelchair Spares & Accessories,Wheelchair Services,REHABILITATION MANUFACTURING SERVICIES LTD,SIN078568,148,304 4547 80
Department of Health,CT Revenue Funds,03/11/2016,Wheelchairs,Wheelchair Services,SPECIALISED ORTHOTIC SERVICES LTD,0000706514,2.45,616 9753 09
Department of Health,CT Revenue Funds,03/11/2016,Wheelchairs,Wheelchair Services,SPECIALISED ORTHOTIC SERVICES LTD,0000706514,12.26,616 9753 09
Department of Health,CT Revenue Funds,03/11/2016,Wheelchairs,Wheelchair Services,GEL OVATIONS EUROPE LTD,16170,14.8,
Department of Health,CT Revenue Funds,03/11/2016,Wheelchairs,Wheelchair Services,GEL OVATIONS EUROPE LTD,16170,74.03,
Department of Health,CT Revenue Funds,03/11/2016,Wheelchairs,Wheelchair Services,GEL OVATIONS EUROPE LTD,16170,-15.36,
Department of Health,CT Revenue Funds,03/11/2016,Wheelchairs,Wheelchair Services,GEL OVATIONS EUROPE LTD,16170,-3.07,
Department of Health,CT Revenue Funds,03/11/2016,Wheelchairs,Wheelchair Services,INVACARE UK LTD,1621136285,270,840 9031 46
Department of Health,CT Revenue Funds,03/11/2016,Wheelchairs,Wheelchair Services,INVACARE UK LTD,1621136285,54,840 9031 46
Department of Health,CT Revenue Funds,03/11/2016,Wheelchairs,Wheelchair Services,INVACARE UK LTD,1621136285,387.8,840 9031 46
Department of Health,CT Revenue Funds,03/11/2016,Wheelchairs,Wheelchair Services,INVACARE UK LTD,1621136285,1939,840 9031 46
Department of Health,CT Revenue Funds,03/11/2016,Wheelchairs,Wheelchair Services,SUNRISE MEDICAL,2511023,186,388 6068 02
Department of Health,CT Revenue Funds,03/11/2016,Wheelchairs,Wheelchair Services,SUNRISE MEDICAL,2511023,930,388 6068 02
Department of Health,CT Revenue Funds,03/11/2016,Wheelchairs,Wheelchair Services,SUNRISE MEDICAL,2511024,930,388 6068 02
Department of Health,CT Revenue Funds,03/11/2016,Wheelchairs,Wheelchair Services,SUNRISE MEDICAL,2511024,186,388 6068 02
Department of Health,CT Revenue Funds,03/11/2016,Wheelchairs,Wheelchair Services,SUNRISE MEDICAL,2511025,186,388 6068 02
Department of Health,CT Revenue Funds,03/11/2016,Wheelchairs,Wheelchair Services,SUNRISE MEDICAL,2511025,930,388 6068 02
Department of Health,CT Revenue Funds,03/11/2016,Wheelchairs,Wheelchair Services,SUNRISE MEDICAL,2511026,186,388 6068 02
Department of Health,CT Revenue Funds,03/11/2016,Wheelchairs,Wheelchair Services,SUNRISE MEDICAL,2511026,930,388 6068 02
Department of Health,CT Revenue Funds,03/11/2016,Wheelchairs,Wheelchair Services,KARMA MOBILITY LTD,81106,8.8,
Department of Health,CT Revenue Funds,03/11/2016,Wheelchairs,Wheelchair Services,KARMA MOBILITY LTD,81106,4.2,
Department of Health,CT Revenue Funds,03/11/2016,Wheelchairs,Wheelchair Services,KARMA MOBILITY LTD,81106,44,
Department of Health,CT Revenue Funds,03/11/2016,Wheelchairs,Wheelchair Services,KARMA MOBILITY LTD,81106,21,
Department of Health,CT Revenue Funds,09/11/2016,Absorbents Non X Ray Detectable,Whitchurch Hospital Minor Injuries Unit,NHS SUPPLY CHAIN,1017150409,0.38,654 4347 29
Department of Health,CT Revenue Funds,09/11/2016,Absorbents Non X Ray Detectable,Telford North Community Nursing,NHS SUPPLY CHAIN,1017150409,0.49,654 4347 29
Department of Health,CT Revenue Funds,09/11/2016,Absorbents Non X Ray Detectable,Telford North Community Nursing,NHS SUPPLY CHAIN,1017150409,-0.01,654 4347 29
Department of Health,CT Revenue Funds,09/11/2016,Absorbents Non X Ray Detectable,Bridgnorth Hospital Theatre,NHS SUPPLY CHAIN,1017150409,13.77,654 4347 29
Department of Health,CT Revenue Funds,09/11/2016,Absorbents Non X Ray Detectable,Community Childrens Nurses,NHS SUPPLY CHAIN,1017150409,13.92,654 4347 29
Department of Health,CT Revenue Funds,09/11/2016,Absorbents Non X Ray Detectable,Bridgnorth Hospital Theatre,NHS SUPPLY CHAIN,1017150409,0.03,654 4347 29
Department of Health,CT Revenue Funds,09/11/2016,Absorbents Non X Ray Detectable,Community Childrens Nurses,NHS SUPPLY CHAIN,1017150409,-0.02,654 4347 29
Department of Health,CT Revenue Funds,09/11/2016,Absorbents Non X Ray Detectable,Telford North Community Nursing,NHS SUPPLY CHAIN,1017150409,2.46,654 4347 29
Department of Health,CT Revenue Funds,09/11/2016,Absorbents Non X Ray Detectable,Stoke Heath Prison Healthcare,NHS SUPPLY CHAIN,1017150409,10.9,654 4347 29
Department of Health,CT Revenue Funds,09/11/2016,Absorbents Non X Ray Detectable,Community Childrens Nurses,NHS SUPPLY CHAIN,1017150409,2.78,654 4347 29
Department of Health,CT Revenue Funds,09/11/2016,Absorbents Non X Ray Detectable,Ludlow Hospital Physiotherapy,NHS SUPPLY CHAIN,1017150409,0.2,654 4347 29
Department of Health,CT Revenue Funds,09/11/2016,Absorbents Non X Ray Detectable,Stoke Heath Prison Healthcare,NHS SUPPLY CHAIN,1017150409,2.18,654 4347 29
Department of Health,CT Revenue Funds,09/11/2016,Absorbents Non X Ray Detectable,Ludlow Hospital Minor Injuries Unit,NHS SUPPLY CHAIN,1017150409,0.01,654 4347 29
Department of Health,CT Revenue Funds,09/11/2016,Absorbents Non X Ray Detectable,Bridgnorth Hospital Inpatient Ward,NHS SUPPLY CHAIN,1017150409,1,654 4347 29
Department of Health,CT Revenue Funds,09/11/2016,Absorbents Non X Ray Detectable,Ludlow Hospital Physiotherapy,NHS SUPPLY CHAIN,1017150409,1,654 4347 29
Department of Health,CT Revenue Funds,09/11/2016,Absorbents Non X Ray Detectable,Bridgnorth Hospital Theatre,NHS SUPPLY CHAIN,1017150409,2.75,654 4347 29
Department of Health,CT Revenue Funds,09/11/2016,Absorbents Non X Ray Detectable,Podiatry Services,NHS SUPPLY CHAIN,1017150409,0.74,654 4347 29
Department of Health,CT Revenue Funds,09/11/2016,Absorbents Non X Ray Detectable,Ludlow Hospital Minor Injuries Unit,NHS SUPPLY CHAIN,1017150409,0.94,654 4347 29
Department of Health,CT Revenue Funds,09/11/2016,Absorbents Non X Ray Detectable,Ludlow Hospital Minor Injuries Unit,NHS SUPPLY CHAIN,1017150409,1.16,654 4347 29
Department of Health,CT Revenue Funds,09/11/2016,Absorbents Non X Ray Detectable,Whitchurch Hospital Minor Injuries Unit,NHS SUPPLY CHAIN,1017150409,1.88,654 4347 29
Department of Health,CT Revenue Funds,09/11/2016,Absorbents Non X Ray Detectable,Bridgnorth Hospital Theatre,NHS SUPPLY CHAIN,1017150409,0.01,654 4347 29
Department of Health,CT Revenue Funds,09/11/2016,Absorbents Non X Ray Detectable,Stoke Heath Prison Healthcare,NHS SUPPLY CHAIN,1017150409,0.02,654 4347 29
Department of Health,CT Revenue Funds,09/11/2016,Absorbents Non X Ray Detectable,Ludlow Hospital Inpatient Wards,NHS SUPPLY CHAIN,1017150409,5.43,654 4347 29
Department of Health,CT Revenue Funds,09/11/2016,Absorbents Non X Ray Detectable,Ludlow Hospital Minor Injuries Unit,NHS SUPPLY CHAIN,1017150409,0.23,654 4347 29
Department of Health,CT Revenue Funds,09/11/2016,Absorbents Non X Ray Detectable,Ludlow Hospital Minor Injuries Unit,NHS SUPPLY CHAIN,1017150409,4.68,654 4347 29
Department of Health,CT Revenue Funds,09/11/2016,Absorbents Non X Ray Detectable,Whitchurch Hospital Minor Injuries Unit,NHS SUPPLY CHAIN,1017150409,6.24,654 4347 29
Department of Health,CT Revenue Funds,09/11/2016,Absorbents Non X Ray Detectable,Podiatry Services,NHS SUPPLY CHAIN,1017150409,3.69,654 4347 29
Department of Health,CT Revenue Funds,09/11/2016,Absorbents Non X Ray Detectable,Ludlow Hospital Inpatient Wards,NHS SUPPLY CHAIN,1017150409,1.09,654 4347 29
Department of Health,CT Revenue Funds,09/11/2016,Absorbents Non X Ray Detectable,Bridgnorth Hospital Inpatient Ward,NHS SUPPLY CHAIN,1017150409,0.2,654 4347 29
Department of Health,CT Revenue Funds,09/11/2016,Absorbents Non X Ray Detectable,Whitchurch Hospital Minor Injuries Unit,NHS SUPPLY CHAIN,1017150409,1.25,654 4347 29
Department of Health,CT Revenue Funds,09/11/2016,Absorbents Non X Ray Detectable,Whitchurch Hospital Minor Injuries Unit,NHS SUPPLY CHAIN,1017150409,-0.01,654 4347 29
Department of Health,CT Revenue Funds,09/11/2016,Absorbents X Ray Detectable,Stoke Heath Prison Healthcare,NHS SUPPLY CHAIN,1017150409,2.99,654 4347 29
Department of Health,CT Revenue Funds,09/11/2016,Absorbents X Ray Detectable,Stoke Heath Prison Healthcare,NHS SUPPLY CHAIN,1017150409,14.96,654 4347 29
Department of Health,CT Revenue Funds,09/11/2016,Adhesive Wound Dressings,Bridgnorth Hospital Minor Injuries Unit,NHS SUPPLY CHAIN,1017150409,1.37,654 4347 29
Department of Health,CT Revenue Funds,09/11/2016,Adhesive Wound Dressings,North West Shropshire Interdisciplinary Teams,NHS SUPPLY CHAIN,1017150409,4.93,654 4347 29
Department of Health,CT Revenue Funds,09/11/2016,Adhesive Wound Dressings,APCS Dermatology,NHS SUPPLY CHAIN,1017150409,16.81,654 4347 29
Department of Health,CT Revenue Funds,09/11/2016,Adhesive Wound Dressings,Stoke Heath Prison Healthcare,NHS SUPPLY CHAIN,1017150409,3.19,654 4347 29
Department of Health,CT Revenue Funds,09/11/2016,Adhesive Wound Dressings,Whitchurch Hospital Minor Injuries Unit,NHS SUPPLY CHAIN,1017150409,2.83,654 4347 29
Department of Health,CT Revenue Funds,09/11/2016,Adhesive Wound Dressings,Whitchurch Hospital Minor Injuries Unit,NHS SUPPLY CHAIN,1017150409,2.28,654 4347 29
Department of Health,CT Revenue Funds,09/11/2016,Adhesive Wound Dressings,APCS Dermatology,NHS SUPPLY CHAIN,1017150409,3.36,654 4347 29
Department of Health,CT Revenue Funds,09/11/2016,Adhesive Wound Dressings,Bridgnorth Hospital Minor Injuries Unit,NHS SUPPLY CHAIN,1017150409,6.84,654 4347 29
Department of Health,CT Revenue Funds,09/11/2016,Adhesive Wound Dressings,Stoke Heath Prison Healthcare,NHS SUPPLY CHAIN,1017150409,-0.01,654 4347 29
Department of Health,CT Revenue Funds,09/11/2016,Adhesive Wound Dressings,Whitchurch Hospital Minor Injuries Unit,NHS SUPPLY CHAIN,1017150409,0.57,654 4347 29
Department of Health,CT Revenue Funds,09/11/2016,Adhesive Wound Dressings,Special Care and Access,NHS SUPPLY CHAIN,1017150409,1.95,654 4347 29
Department of Health,CT Revenue Funds,09/11/2016,Adhesive Wound Dressings,Ludlow Hospital Minor Injuries Unit,NHS SUPPLY CHAIN,1017150409,2.02,654 4347 29
Department of Health,CT Revenue Funds,09/11/2016,Adhesive Wound Dressings,North West Shropshire Interdisciplinary Teams,NHS SUPPLY CHAIN,1017150409,0.99,654 4347 29
Department of Health,CT Revenue Funds,09/11/2016,Adhesive Wound Dressings,Ludlow Hospital Minor Injuries Unit,NHS SUPPLY CHAIN,1017150409,10.08,654 4347 29
Department of Health,CT Revenue Funds,09/11/2016,Adhesive Wound Dressings,Whitchurch Hospital Minor Injuries Unit,NHS SUPPLY CHAIN,1017150409,0.46,654 4347 29
Department of Health,CT Revenue Funds,09/11/2016,Adhesive Wound Dressings,Stoke Heath Prison Healthcare,NHS SUPPLY CHAIN,1017150409,15.94,654 4347 29
Department of Health,CT Revenue Funds,09/11/2016,Adhesive Wound Dressings,Bridgnorth Hospital Minor Injuries Unit,NHS SUPPLY CHAIN,1017150409,0.01,654 4347 29
Department of Health,CT Revenue Funds,09/11/2016,Adhesive Wound Dressings,Special Care and Access,NHS SUPPLY CHAIN,1017150409,0.39,654 4347 29
Department of Health,CT Revenue Funds,09/11/2016,Adhesive Wound Dressings,Telford North Community Nursing,NHS SUPPLY CHAIN,1017150409,0.28,654 4347 29
Department of Health,CT Revenue Funds,09/11/2016,Adhesive Wound Dressings,Telford North Community Nursing,NHS SUPPLY CHAIN,1017150409,1.4,654 4347 29
Department of Health,CT Revenue Funds,09/11/2016,ANAES : Accessories & Equipment,Whitchurch Hospital Minor Injuries Unit,NHS SUPPLY CHAIN,1017150409,3.3,654 4347 29
Department of Health,CT Revenue Funds,09/11/2016,ANAES : Accessories & Equipment,Community Childrens Nurses,NHS SUPPLY CHAIN,1017150409,6.36,654 4347 29
Department of Health,CT Revenue Funds,09/11/2016,ANAES : Accessories & Equipment,Community Childrens Nurses,NHS SUPPLY CHAIN,1017150409,94.46,654 4347 29
Department of Health,CT Revenue Funds,09/11/2016,ANAES : Accessories & Equipment,Community Childrens Nurses,NHS SUPPLY CHAIN,1017150409,-0.01,654 4347 29
Department of Health,CT Revenue Funds,09/11/2016,ANAES : Accessories & Equipment,Whitchurch Hospital Inpatient Ward,NHS SUPPLY CHAIN,1017150409,6.96,654 4347 29
Department of Health,CT Revenue Funds,09/11/2016,ANAES : Accessories & Equipment,Community Childrens Nurses,NHS SUPPLY CHAIN,1017150409,57.78,654 4347 29
Department of Health,CT Revenue Funds,09/11/2016,ANAES : Accessories & Equipment,Community Childrens Nurses,NHS SUPPLY CHAIN,1017150409,0.04,654 4347 29
Department of Health,CT Revenue Funds,09/11/2016,ANAES : Accessories & Equipment,Community Childrens Nurses,NHS SUPPLY CHAIN,1017150409,1.75,654 4347 29
Department of Health,CT Revenue Funds,09/11/2016,ANAES : Accessories & Equipment,Community Childrens Nurses,NHS SUPPLY CHAIN,1017150409,4.44,654 4347 29
Department of Health,CT Revenue Funds,09/11/2016,ANAES : Accessories & Equipment,Community Childrens Nurses,NHS SUPPLY CHAIN,1017150409,11.56,654 4347 29
Department of Health,CT Revenue Funds,09/11/2016,ANAES : Accessories & Equipment,Community Childrens Nurses,NHS SUPPLY CHAIN,1017150409,48.72,654 4347 29
Department of Health,CT Revenue Funds,09/11/2016,ANAES : Accessories & Equipment,Community Childrens Nurses,NHS SUPPLY CHAIN,1017150409,0.08,654 4347 29
Department of Health,CT Revenue Funds,09/11/2016,ANAES : Accessories & Equipment,Community Childrens Nurses,NHS SUPPLY CHAIN,1017150409,22.22,654 4347 29
Department of Health,CT Revenue Funds,09/11/2016,ANAES : Accessories & Equipment,Community Childrens Nurses,NHS SUPPLY CHAIN,1017150409,31.82,654 4347 29
Department of Health,CT Revenue Funds,09/11/2016,ANAES : Accessories & Equipment,Community Childrens Nurses,NHS SUPPLY CHAIN,1017150409,66.78,654 4347 29
Department of Health,CT Revenue Funds,09/11/2016,ANAES : Accessories & Equipment,Community Childrens Nurses,NHS SUPPLY CHAIN,1017150409,0.42,654 4347 29
Department of Health,CT Revenue Funds,09/11/2016,ANAES : Accessories & Equipment,Whitchurch Hospital Minor Injuries Unit,NHS SUPPLY CHAIN,1017150409,0.66,654 4347 29
Department of Health,CT Revenue Funds,09/11/2016,ANAES : Accessories & Equipment,Whitchurch Hospital Minor Injuries Unit,NHS SUPPLY CHAIN,1017150409,3.35,654 4347 29
Department of Health,CT Revenue Funds,09/11/2016,ANAES : Accessories & Equipment,Whitchurch Hospital Minor Injuries Unit,NHS SUPPLY CHAIN,1017150409,0.67,654 4347 29
Department of Health,CT Revenue Funds,09/11/2016,ANAES : Accessories & Equipment,Whitchurch Hospital Minor Injuries Unit,NHS SUPPLY CHAIN,1017150409,4.2,654 4347 29
Department of Health,CT Revenue Funds,09/11/2016,ANAES : Accessories & Equipment,Whitchurch Hospital Minor Injuries Unit,NHS SUPPLY CHAIN,1017150409,3.57,654 4347 29
Department of Health,CT Revenue Funds,09/11/2016,ANAES : Accessories & Equipment,Community Childrens Nurses,NHS SUPPLY CHAIN,1017150409,243.6,654 4347 29
Department of Health,CT Revenue Funds,09/11/2016,ANAES : Accessories & Equipment,APCS Respiratory,NHS SUPPLY CHAIN,1017150409,-0.02,654 4347 29
Department of Health,CT Revenue Funds,09/11/2016,ANAES : Accessories & Equipment,Community Childrens Nurses,NHS SUPPLY CHAIN,1017150409,2.01,654 4347 29
Department of Health,CT Revenue Funds,09/11/2016,ANAES : Accessories & Equipment,Community Childrens Nurses,NHS SUPPLY CHAIN,1017150409,18.89,654 4347 29
Department of Health,CT Revenue Funds,09/11/2016,ANAES : Accessories & Equipment,Community Childrens Nurses,NHS SUPPLY CHAIN,1017150409,8.76,654 4347 29
Department of Health,CT Revenue Funds,09/11/2016,ANAES : Accessories & Equipment,Community Childrens Nurses,NHS SUPPLY CHAIN,1017150409,10.06,654 4347 29
Department of Health,CT Revenue Funds,09/11/2016,ANAES : Accessories & Equipment,Community Childrens Nurses,NHS SUPPLY CHAIN,1017150409,89.76,654 4347 29
Department of Health,CT Revenue Funds,09/11/2016,ANAES : Accessories & Equipment,Whitchurch Hospital Inpatient Ward,NHS SUPPLY CHAIN,1017150409,0.01,654 4347 29
Department of Health,CT Revenue Funds,09/11/2016,ANAES : Accessories & Equipment,Whitchurch Hospital Inpatient Ward,NHS SUPPLY CHAIN,1017150409,1.39,654 4347 29
Department of Health,CT Revenue Funds,09/11/2016,ANAES : Accessories & Equipment,Whitchurch Hospital Minor Injuries Unit,NHS SUPPLY CHAIN,1017150409,0.84,654 4347 29
Department of Health,CT Revenue Funds,09/11/2016,ANAES : Accessories & Equipment,Whitchurch Hospital Minor Injuries Unit,NHS SUPPLY CHAIN,1017150409,0.71,654 4347 29
Department of Health,CT Revenue Funds,09/11/2016,ANAES : Accessories & Equipment,Special Care and Access,NHS SUPPLY CHAIN,1017150409,35,654 4347 29
Department of Health,CT Revenue Funds,09/11/2016,ANAES : Accessories & Equipment,Community Childrens Nurses,NHS SUPPLY CHAIN,1017150409,0.4,654 4347 29
Department of Health,CT Revenue Funds,09/11/2016,ANAES : Accessories & Equipment,Community Childrens Nurses,NHS SUPPLY CHAIN,1017150409,0.01,654 4347 29
Department of Health,CT Revenue Funds,09/11/2016,ANAES : Accessories & Equipment,Community Childrens Nurses,NHS SUPPLY CHAIN,1017150409,13.36,654 4347 29
Department of Health,CT Revenue Funds,09/11/2016,ANAES : Accessories & Equipment,Community Childrens Nurses,NHS SUPPLY CHAIN,1017150409,17.95,654 4347 29
Department of Health,CT Revenue Funds,09/11/2016,ANAES : Accessories & Equipment,Community Childrens Nurses,NHS SUPPLY CHAIN,1017150409,0.01,654 4347 29
Department of Health,CT Revenue Funds,09/11/2016,ANAES : Accessories & Equipment,Community Childrens Nurses,NHS SUPPLY CHAIN,1017150409,0.08,654 4347 29
Department of Health,CT Revenue Funds,09/11/2016,ANAES : Accessories & Equipment,Community Childrens Nurses,NHS SUPPLY CHAIN,1017150409,0.01,654 4347 29
Department of Health,CT Revenue Funds,09/11/2016,ANAES : Accessories & Equipment,APCS Respiratory,NHS SUPPLY CHAIN,1017150409,0.62,654 4347 29
Department of Health,CT Revenue Funds,09/11/2016,ANAES : Accessories & Equipment,Special Care and Access,NHS SUPPLY CHAIN,1017150409,7,654 4347 29
Department of Health,CT Revenue Funds,09/11/2016,ANAES : Accessories & Equipment,APCS Respiratory,NHS SUPPLY CHAIN,1017150409,3.1,654 4347 29
Department of Health,CT Revenue Funds,09/11/2016,Analysers,Telford North Community Nursing,NHS SUPPLY CHAIN,1017150409,6.33,654 4347 29
Department of Health,CT Revenue Funds,09/11/2016,Analysers,Telford North Community Nursing,NHS SUPPLY CHAIN,1017150409,1.27,654 4347 29
Department of Health,CT Revenue Funds,09/11/2016,Analysers,Shrewsbury and Atcham DAART,NHS SUPPLY CHAIN,1017150409,0.87,654 4347 29
Department of Health,CT Revenue Funds,09/11/2016,Analysers,Shrewsbury and Atcham DAART,NHS SUPPLY CHAIN,1017150409,4.33,654 4347 29
Department of Health,CT Revenue Funds,09/11/2016,Audiology From Other NHS Bodies,Child Audiology,SHREWSBURY AND TELFORD HOSPITAL NHS TRUST,10113187,8261.13,
Department of Health,CT Revenue Funds,09/11/2016,Audiology From Other NHS Bodies,APCS ENT,SHREWSBURY AND TELFORD HOSPITAL NHS TRUST,10113214,522.84,
Department of Health,CT Revenue Funds,09/11/2016,Baby Texture Modified Foods,Whitchurch Hospital Inpatient Ward,NHS SUPPLY CHAIN,1017150409,7.53,654 4347 29
Department of Health,CT Revenue Funds,09/11/2016,Baby Texture Modified Foods,Bridgnorth Hospital Inpatient Ward,NHS SUPPLY CHAIN,1017150409,15.06,654 4347 29
Department of Health,CT Revenue Funds,09/11/2016,Bags Sacks,Stoke Heath Prison Healthcare,NHS SUPPLY CHAIN,1017150409,1.58,654 4347 29
Department of Health,CT Revenue Funds,09/11/2016,Bags Sacks,Bishops Castle Hospital Inpatient Ward,NHS SUPPLY CHAIN,1017150409,2.06,654 4347 29
Department of Health,CT Revenue Funds,09/11/2016,Bags Sacks,Bishops Castle Hospital Inpatient Ward,NHS SUPPLY CHAIN,1017150409,8.58,654 4347 29
Department of Health,CT Revenue Funds,09/11/2016,Bags Sacks,Whitchurch Hospital Inpatient Ward,NHS SUPPLY CHAIN,1017150409,0.01,654 4347 29
Department of Health,CT Revenue Funds,09/11/2016,Bags Sacks,Bridgnorth Hospital Hotel Services,NHS SUPPLY CHAIN,1017150409,33,654 4347 29
Department of Health,CT Revenue Funds,09/11/2016,Bags Sacks,Bridgnorth Hospital Hotel Services,NHS SUPPLY CHAIN,1017150409,0.42,654 4347 29
Department of Health,CT Revenue Funds,09/11/2016,Bags Sacks,Whitchurch Hospital Catering,NHS SUPPLY CHAIN,1017150409,0.01,654 4347 29
Department of Health,CT Revenue Funds,09/11/2016,Bags Sacks,Bridgnorth Hospital Hotel Services,NHS SUPPLY CHAIN,1017150409,2.92,654 4347 29
Department of Health,CT Revenue Funds,09/11/2016,Bags Sacks,Bridgnorth Hospital Hotel Services,NHS SUPPLY CHAIN,1017150409,0.05,654 4347 29
Department of Health,CT Revenue Funds,09/11/2016,Bags Sacks,Whitchurch Hospital Hotel Services,NHS SUPPLY CHAIN,1017150409,2.92,654 4347 29
Department of Health,CT Revenue Funds,09/11/2016,Bags Sacks,Whitchurch Hospital Hotel Services,NHS SUPPLY CHAIN,1017150409,-0.01,654 4347 29
Department of Health,CT Revenue Funds,09/11/2016,Bags Sacks,Ludlow Hospital Hotel Services,NHS SUPPLY CHAIN,1017150409,4.32,654 4347 29
Department of Health,CT Revenue Funds,09/11/2016,Bags Sacks,Ludlow Hospital Hotel Services,NHS SUPPLY CHAIN,1017150409,2.74,654 4347 29
Department of Health,CT Revenue Funds,09/11/2016,Bags Sacks,Ludlow Hospital Hotel Services,NHS SUPPLY CHAIN,1017150409,13.7,654 4347 29
Department of Health,CT Revenue Funds,09/11/2016,Bags Sacks,Ludlow Hospital Hotel Services,NHS SUPPLY CHAIN,1017150409,0.02,654 4347 29
Department of Health,CT Revenue Funds,09/11/2016,Bags Sacks,Ludlow Hospital Hotel Services,NHS SUPPLY CHAIN,1017150409,0.01,654 4347 29
Department of Health,CT Revenue Funds,09/11/2016,Bags Sacks,Community Childrens Nurses,NHS SUPPLY CHAIN,1017150409,0.35,654 4347 29
Department of Health,CT Revenue Funds,09/11/2016,Bags Sacks,Ludlow Hospital Hotel Services,NHS SUPPLY CHAIN,1017150409,-0.03,654 4347 29
Department of Health,CT Revenue Funds,09/11/2016,Bags Sacks,Ludlow Hospital Hotel Services,NHS SUPPLY CHAIN,1017150409,0.04,654 4347 29
Department of Health,CT Revenue Funds,09/11/2016,Bags Sacks,Bishops Castle Hospital Domestics,NHS SUPPLY CHAIN,1017150409,16.65,654 4347 29
Department of Health,CT Revenue Funds,09/11/2016,Bags Sacks,Bridgnorth Hospital Hotel Services,NHS SUPPLY CHAIN,1017150409,-0.03,654 4347 29
Department of Health,CT Revenue Funds,09/11/2016,Bags Sacks,Whitchurch Hospital Hotel Services,NHS SUPPLY CHAIN,1017150409,-0.01,654 4347 29
Department of Health,CT Revenue Funds,09/11/2016,Bags Sacks,Whitchurch Hospital Inpatient Ward,NHS SUPPLY CHAIN,1017150409,-0.01,654 4347 29
Department of Health,CT Revenue Funds,09/11/2016,Bags Sacks,Whitchurch Hospital Hotel Services,NHS SUPPLY CHAIN,1017150409,13.7,654 4347 29
Department of Health,CT Revenue Funds,09/11/2016,Bags Sacks,Ludlow Hospital Hotel Services,NHS SUPPLY CHAIN,1017150409,2.74,654 4347 29
Department of Health,CT Revenue Funds,09/11/2016,Bags Sacks,Ludlow Hospital Hotel Services,NHS SUPPLY CHAIN,1017150409,-0.01,654 4347 29
Department of Health,CT Revenue Funds,09/11/2016,Bags Sacks,Ludlow Hospital Hotel Services,NHS SUPPLY CHAIN,1017150409,0.11,654 4347 29
Department of Health,CT Revenue Funds,09/11/2016,Bags Sacks,Shrewsbury and Atcham DAART,NHS SUPPLY CHAIN,1017150409,1.68,654 4347 29
Department of Health,CT Revenue Funds,09/11/2016,Bags Sacks,Shrewsbury and Atcham DAART,NHS SUPPLY CHAIN,1017150409,4.41,654 4347 29
Department of Health,CT Revenue Funds,09/11/2016,Bags Sacks,Bridgnorth Hospital Hotel Services,NHS SUPPLY CHAIN,1017150409,2.23,654 4347 29
Department of Health,CT Revenue Funds,09/11/2016,Bags Sacks,Bridgnorth Hospital Hotel Services,NHS SUPPLY CHAIN,1017150409,1.32,654 4347 29
Department of Health,CT Revenue Funds,09/11/2016,Bags Sacks,Whitchurch Hospital Hotel Services,NHS SUPPLY CHAIN,1017150409,-0.03,654 4347 29
Department of Health,CT Revenue Funds,09/11/2016,Bags Sacks,Whitchurch Hospital Hotel Services,NHS SUPPLY CHAIN,1017150409,-0.03,654 4347 29
Department of Health,CT Revenue Funds,09/11/2016,Bags Sacks,Bishops Castle Hospital Inpatient Ward,NHS SUPPLY CHAIN,1017150409,-0.03,654 4347 29
Department of Health,CT Revenue Funds,09/11/2016,Bags Sacks,Whitchurch Hospital Hotel Services,NHS SUPPLY CHAIN,1017150409,-0.01,654 4347 29
Department of Health,CT Revenue Funds,09/11/2016,Bags Sacks,Whitchurch Hospital Hotel Services,NHS SUPPLY CHAIN,1017150409,14.56,654 4347 29
Department of Health,CT Revenue Funds,09/11/2016,Bags Sacks,Whitchurch Hospital Catering,NHS SUPPLY CHAIN,1017150409,1.67,654 4347 29
Department of Health,CT Revenue Funds,09/11/2016,Bags Sacks,Ludlow Hospital Inpatient Wards,NHS SUPPLY CHAIN,1017150409,3.99,654 4347 29
Department of Health,CT Revenue Funds,09/11/2016,Bags Sacks,South East Interdisciplinary Teams,NHS SUPPLY CHAIN,1017150409,3.03,654 4347 29
Department of Health,CT Revenue Funds,09/11/2016,Bags Sacks,Bishops Castle Hospital Inpatient Ward,NHS SUPPLY CHAIN,1017150409,-0.01,654 4347 29
Department of Health,CT Revenue Funds,09/11/2016,Bags Sacks,Ludlow Hospital Hotel Services,NHS SUPPLY CHAIN,1017150409,8.11,654 4347 29
Department of Health,CT Revenue Funds,09/11/2016,Bags Sacks,Bridgnorth Hospital Hotel Services,NHS SUPPLY CHAIN,1017150409,0.08,654 4347 29
Department of Health,CT Revenue Funds,09/11/2016,Bags Sacks,Bridgnorth Hospital Hotel Services,NHS SUPPLY CHAIN,1017150409,6.6,654 4347 29
Department of Health,CT Revenue Funds,09/11/2016,Bags Sacks,Whitchurch Hospital Inpatient Ward,NHS SUPPLY CHAIN,1017150409,2.74,654 4347 29
Department of Health,CT Revenue Funds,09/11/2016,Bags Sacks,Whitchurch Hospital Inpatient Ward,NHS SUPPLY CHAIN,1017150409,24.12,654 4347 29
Department of Health,CT Revenue Funds,09/11/2016,Bags Sacks,Whitchurch Hospital Inpatient Ward,NHS SUPPLY CHAIN,1017150409,4.83,654 4347 29
Department of Health,CT Revenue Funds,09/11/2016,Bags Sacks,Bridgnorth Hospital Hotel Services,NHS SUPPLY CHAIN,1017150409,6.6,654 4347 29
Department of Health,CT Revenue Funds,09/11/2016,Bags Sacks,Bridgnorth Hospital Hotel Services,NHS SUPPLY CHAIN,1017150409,-0.01,654 4347 29
Department of Health,CT Revenue Funds,09/11/2016,Bags Sacks,Bridgnorth Hospital Hotel Services,NHS SUPPLY CHAIN,1017150409,18.48,654 4347 29
Department of Health,CT Revenue Funds,09/11/2016,Bags Sacks,Bridgnorth Hospital Hotel Services,NHS SUPPLY CHAIN,1017150409,0.27,654 4347 29
Department of Health,CT Revenue Funds,09/11/2016,Bags Sacks,Community Childrens Nurses,NHS SUPPLY CHAIN,1017150409,1.75,654 4347 29
Department of Health,CT Revenue Funds,09/11/2016,Bags Sacks,Shrewsbury and Atcham DAART,NHS SUPPLY CHAIN,1017150409,0.88,654 4347 29
Department of Health,CT Revenue Funds,09/11/2016,Bags Sacks,Shrewsbury and Atcham DAART,NHS SUPPLY CHAIN,1017150409,8.38,654 4347 29
Department of Health,CT Revenue Funds,09/11/2016,Bags Sacks,Whitchurch Hospital Administration,NHS SUPPLY CHAIN,1017150409,0.97,654 4347 29
Department of Health,CT Revenue Funds,09/11/2016,Bags Sacks,Whitchurch Hospital Hotel Services,NHS SUPPLY CHAIN,1017150409,2.92,654 4347 29
Department of Health,CT Revenue Funds,09/11/2016,Bags Sacks,Whitchurch Hospital Hotel Services,NHS SUPPLY CHAIN,1017150409,14.56,654 4347 29
Department of Health,CT Revenue Funds,09/11/2016,Bags Sacks,Bishops Castle Hospital Inpatient Ward,NHS SUPPLY CHAIN,1017150409,1.72,654 4347 29
Department of Health,CT Revenue Funds,09/11/2016,Bags Sacks,Bishops Castle Hospital Inpatient Ward,NHS SUPPLY CHAIN,1017150409,-0.02,654 4347 29
Department of Health,CT Revenue Funds,09/11/2016,Bags Sacks,Ludlow Hospital Hotel Services,NHS SUPPLY CHAIN,1017150409,21.6,654 4347 29
Department of Health,CT Revenue Funds,09/11/2016,Bags Sacks,Ludlow Hospital Inpatient Wards,NHS SUPPLY CHAIN,1017150409,0.8,654 4347 29
Department of Health,CT Revenue Funds,09/11/2016,Bags Sacks,Bridgnorth Hospital Hotel Services,NHS SUPPLY CHAIN,1017150409,3.7,654 4347 29
Department of Health,CT Revenue Funds,09/11/2016,Bags Sacks,Bridgnorth Hospital Hotel Services,NHS SUPPLY CHAIN,1017150409,11.16,654 4347 29
Department of Health,CT Revenue Funds,09/11/2016,Bags Sacks,Bridgnorth Hospital Hotel Services,NHS SUPPLY CHAIN,1017150409,0.01,654 4347 29
Department of Health,CT Revenue Funds,09/11/2016,Bags Sacks,Bishops Castle Hospital Domestics,NHS SUPPLY CHAIN,1017150409,3.33,654 4347 29
Department of Health,CT Revenue Funds,09/11/2016,Bags Sacks,Bishops Castle Hospital Domestics,NHS SUPPLY CHAIN,1017150409,0.02,654 4347 29
Department of Health,CT Revenue Funds,09/11/2016,Bags Sacks,Whitchurch Hospital Administration,NHS SUPPLY CHAIN,1017150409,4.83,654 4347 29
Department of Health,CT Revenue Funds,09/11/2016,Bags Sacks,Whitchurch Hospital Inpatient Ward,NHS SUPPLY CHAIN,1017150409,13.7,654 4347 29
Department of Health,CT Revenue Funds,09/11/2016,Bags Sacks,Stoke Heath Prison Healthcare,NHS SUPPLY CHAIN,1017150409,7.92,654 4347 29
Department of Health,CT Revenue Funds,09/11/2016,Bags Sacks,South East Interdisciplinary Teams,NHS SUPPLY CHAIN,1017150409,0.61,654 4347 29
Department of Health,CT Revenue Funds,09/11/2016,Bags Sacks,Bishops Castle Hospital Inpatient Ward,NHS SUPPLY CHAIN,1017150409,10.32,654 4347 29
Department of Health,CT Revenue Funds,09/11/2016,Bags Sacks,Ludlow Hospital Hotel Services,NHS SUPPLY CHAIN,1017150409,0.55,654 4347 29
Department of Health,CT Revenue Funds,09/11/2016,Bags Sacks,Ludlow Hospital Hotel Services,NHS SUPPLY CHAIN,1017150409,40.56,654 4347 29
Department of Health,CT Revenue Funds,09/11/2016,Bags Sacks,Whitchurch Hospital Catering,NHS SUPPLY CHAIN,1017150409,8.34,654 4347 29
Department of Health,CT Revenue Funds,09/11/2016,Bags Sacks,Whitchurch Hospital Hotel Services,NHS SUPPLY CHAIN,1017150409,2.74,654 4347 29
Department of Health,CT Revenue Funds,09/11/2016,Bags Sacks,Whitchurch Hospital Hotel Services,NHS SUPPLY CHAIN,1017150409,-0.03,654 4347 29
Department of Health,CT Revenue Funds,09/11/2016,Bags Sacks,Bridgnorth Hospital Hotel Services,NHS SUPPLY CHAIN,1017150409,1.46,654 4347 29
Department of Health,CT Revenue Funds,09/11/2016,Bags Sacks,Bridgnorth Hospital Hotel Services,NHS SUPPLY CHAIN,1017150409,7.28,654 4347 29
Department of Health,CT Revenue Funds,09/11/2016,Bags Sacks,Bridgnorth Hospital Hotel Services,NHS SUPPLY CHAIN,1017150409,14.56,654 4347 29
Department of Health,CT Revenue Funds,09/11/2016,Bags Sacks,Whitchurch Hospital Inpatient Ward,NHS SUPPLY CHAIN,1017150409,-0.03,654 4347 29
Department of Health,CT Revenue Funds,09/11/2016,Bed Accessories,Community Equipment Stores,NHS SUPPLY CHAIN,1017150409,745,654 4347 29
Department of Health,CT Revenue Funds,09/11/2016,Bed Accessories,Community Equipment Stores,NHS SUPPLY CHAIN,1017150409,149,654 4347 29
Department of Health,CT Revenue Funds,09/11/2016,Bedding & Linen : Disposable,MSK Therapy,NHS SUPPLY CHAIN,1017150409,12.82,654 4347 29
Department of Health,CT Revenue Funds,09/11/2016,Bedding & Linen : Disposable,MSK Therapy,NHS SUPPLY CHAIN,1017150409,2.56,654 4347 29
Department of Health,CT Revenue Funds,09/11/2016,Beverages,Ludlow Hospital Catering,NHS SUPPLY CHAIN,1017150409,9.82,654 4347 29
Department of Health,CT Revenue Funds,09/11/2016,Beverages,Ludlow Hospital Catering,NHS SUPPLY CHAIN,1017150409,16.66,654 4347 29
Department of Health,CT Revenue Funds,09/11/2016,Beverages,Organisational Development,NHS SUPPLY CHAIN,1017150409,8.66,654 4347 29
Department of Health,CT Revenue Funds,09/11/2016,Beverages,Ludlow Hospital Catering,NHS SUPPLY CHAIN,1017150409,5.14,654 4347 29
Department of Health,CT Revenue Funds,09/11/2016,Beverages,Whitchurch Hospital Catering,NHS SUPPLY CHAIN,1017150409,32.4,654 4347 29
Department of Health,CT Revenue Funds,09/11/2016,Beverages,Whitchurch Hospital Catering,NHS SUPPLY CHAIN,1017150409,21.06,654 4347 29
Department of Health,CT Revenue Funds,09/11/2016,Buffers Compound Solutions,Bridgnorth Hospital Inpatient Ward,NHS SUPPLY CHAIN,1017150409,1.8,654 4347 29
Department of Health,CT Revenue Funds,09/11/2016,Buffers Compound Solutions,Bridgnorth Hospital Inpatient Ward,NHS SUPPLY CHAIN,1017150409,8.99,654 4347 29
Department of Health,CT Revenue Funds,09/11/2016,Catering Equipment - Purchase,Ludlow Hospital Catering,NHS SUPPLY CHAIN,1017150409,7.28,654 4347 29
Department of Health,CT Revenue Funds,09/11/2016,Catering Equipment - Purchase,Whitchurch Hospital Inpatient Ward,NHS SUPPLY CHAIN,1017150409,1.01,654 4347 29
Department of Health,CT Revenue Funds,09/11/2016,Catering Equipment - Purchase,Whitchurch Hospital Inpatient Ward,NHS SUPPLY CHAIN,1017150409,-0.01,654 4347 29
Department of Health,CT Revenue Funds,09/11/2016,Catering Equipment - Purchase,Whitchurch Hospital Inpatient Ward,NHS SUPPLY CHAIN,1017150409,-0.04,654 4347 29
Department of Health,CT Revenue Funds,09/11/2016,Catering Equipment - Purchase,Whitchurch Hospital Physiotherapy,NHS SUPPLY CHAIN,1017150409,1.48,654 4347 29
Department of Health,CT Revenue Funds,09/11/2016,Catering Equipment - Purchase,Ludlow Hospital Inpatient Wards,NHS SUPPLY CHAIN,1017150409,1.22,654 4347 29
Department of Health,CT Revenue Funds,09/11/2016,Catering Equipment - Purchase,Whitchurch Hospital Physiotherapy,NHS SUPPLY CHAIN,1017150409,-0.01,654 4347 29
Department of Health,CT Revenue Funds,09/11/2016,Catering Equipment - Purchase,Whitchurch Hospital Inpatient Ward,NHS SUPPLY CHAIN,1017150409,13.8,654 4347 29
Department of Health,CT Revenue Funds,09/11/2016,Catering Equipment - Purchase,Whitchurch Hospital Physiotherapy,NHS SUPPLY CHAIN,1017150409,7.38,654 4347 29
Department of Health,CT Revenue Funds,09/11/2016,Catering Equipment - Purchase,Whitchurch Hospital Inpatient Ward,NHS SUPPLY CHAIN,1017150409,2.76,654 4347 29
Department of Health,CT Revenue Funds,09/11/2016,Catering Equipment - Purchase,Whitchurch Hospital Inpatient Ward,NHS SUPPLY CHAIN,1017150409,-0.01,654 4347 29
Department of Health,CT Revenue Funds,09/11/2016,Catering Equipment - Purchase,Stoke Heath Prison Healthcare,NHS SUPPLY CHAIN,1017150409,48,654 4347 29
Department of Health,CT Revenue Funds,09/11/2016,Catering Equipment - Purchase,Whitchurch Hospital Inpatient Ward,NHS SUPPLY CHAIN,1017150409,-0.05,654 4347 29
Department of Health,CT Revenue Funds,09/11/2016,Catering Equipment - Purchase,Ludlow Hospital Catering,NHS SUPPLY CHAIN,1017150409,1.46,654 4347 29
Department of Health,CT Revenue Funds,09/11/2016,Catering Equipment - Purchase,Stoke Heath Prison Healthcare,NHS SUPPLY CHAIN,1017150409,9.6,654 4347 29
Department of Health,CT Revenue Funds,09/11/2016,Catering Equipment - Purchase,Ludlow Hospital Inpatient Wards,NHS SUPPLY CHAIN,1017150409,0.24,654 4347 29
Department of Health,CT Revenue Funds,09/11/2016,Catering Equipment - Purchase,Whitchurch Hospital Physiotherapy,NHS SUPPLY CHAIN,1017150409,-0.03,654 4347 29
Department of Health,CT Revenue Funds,09/11/2016,Catering Equipment - Purchase,Whitchurch Hospital Inpatient Ward,NHS SUPPLY CHAIN,1017150409,5.04,654 4347 29
Department of Health,CT Revenue Funds,09/11/2016,Catering Provisions,Ludlow Hospital Catering,NHS SUPPLY CHAIN,1017150409,1.74,654 4347 29
Department of Health,CT Revenue Funds,09/11/2016,Catering Provisions,Ludlow Hospital Catering,NHS SUPPLY CHAIN,1017150409,5.22,654 4347 29
Department of Health,CT Revenue Funds,09/11/2016,Catering Provisions,Ludlow Hospital Catering,NHS SUPPLY CHAIN,1017150409,13.27,654 4347 29
Department of Health,CT Revenue Funds,09/11/2016,Catering Provisions,Ludlow Hospital Catering,NHS SUPPLY CHAIN,1017150409,4.08,654 4347 29
Department of Health,CT Revenue Funds,09/11/2016,Catering Provisions,Whitchurch Hospital Catering,NHS SUPPLY CHAIN,1017150409,10.52,654 4347 29
Department of Health,CT Revenue Funds,09/11/2016,Catering Provisions,Whitchurch Hospital Catering,NHS SUPPLY CHAIN,1017150409,64.58,654 4347 29
Department of Health,CT Revenue Funds,09/11/2016,Catering Provisions,Ludlow Hospital Catering,NHS SUPPLY CHAIN,1017150409,5.67,654 4347 29
Department of Health,CT Revenue Funds,09/11/2016,Catering Provisions,Ludlow Hospital Catering,NHS SUPPLY CHAIN,1017150409,9.2,654 4347 29
Department of Health,CT Revenue Funds,09/11/2016,Catering Provisions,Ludlow Hospital Catering,NHS SUPPLY CHAIN,1017150409,4.7,654 4347 29
Department of Health,CT Revenue Funds,09/11/2016,Catering Provisions,Ludlow Hospital Catering,NHS SUPPLY CHAIN,1017150409,7.2,654 4347 29
Department of Health,CT Revenue Funds,09/11/2016,Catering Provisions,Ludlow Hospital Catering,NHS SUPPLY CHAIN,1017150409,4.74,654 4347 29
Department of Health,CT Revenue Funds,09/11/2016,Catering Provisions,Ludlow Hospital Catering,NHS SUPPLY CHAIN,1017150409,6.36,654 4347 29
Department of Health,CT Revenue Funds,09/11/2016,Catering Provisions,Ludlow Hospital Catering,NHS SUPPLY CHAIN,1017150409,5.64,654 4347 29
Department of Health,CT Revenue Funds,09/11/2016,Catering Provisions,Ludlow Hospital Catering,NHS SUPPLY CHAIN,1017150409,0.16,654 4347 29
Department of Health,CT Revenue Funds,09/11/2016,Catering Provisions,Ludlow Hospital Catering,NHS SUPPLY CHAIN,1017150409,5.82,654 4347 29
Department of Health,CT Revenue Funds,09/11/2016,Catering Provisions,Whitchurch Hospital Catering,NHS SUPPLY CHAIN,1017150409,5.08,654 4347 29
Department of Health,CT Revenue Funds,09/11/2016,Catering Provisions,Whitchurch Hospital Catering,NHS SUPPLY CHAIN,1017150409,2,654 4347 29
Department of Health,CT Revenue Funds,09/11/2016,Catering Provisions,Whitchurch Hospital Catering,NHS SUPPLY CHAIN,1017150409,15.42,654 4347 29
Department of Health,CT Revenue Funds,09/11/2016,Catering Provisions,Whitchurch Hospital Catering,NHS SUPPLY CHAIN,1017150409,17.16,654 4347 29
Department of Health,CT Revenue Funds,09/11/2016,Catering Provisions,Whitchurch Hospital Catering,NHS SUPPLY CHAIN,1017150409,12.18,654 4347 29
Department of Health,CT Revenue Funds,09/11/2016,Catering Provisions,Whitchurch Hospital Catering,NHS SUPPLY CHAIN,1017150409,10.01,654 4347 29
Department of Health,CT Revenue Funds,09/11/2016,Catering Provisions,Whitchurch Hospital Catering,NHS SUPPLY CHAIN,1017150409,13.27,654 4347 29
Department of Health,CT Revenue Funds,09/11/2016,Catering Provisions,Whitchurch Hospital Inpatient Ward,NHS SUPPLY CHAIN,1017150409,1.02,654 4347 29
Department of Health,CT Revenue Funds,09/11/2016,Catering Provisions,Whitchurch Hospital Catering,NHS SUPPLY CHAIN,1017150409,9.84,654 4347 29
Department of Health,CT Revenue Funds,09/11/2016,Catering Provisions,Whitchurch Hospital Catering,NHS SUPPLY CHAIN,1017150409,15,654 4347 29
Department of Health,CT Revenue Funds,09/11/2016,Catering Provisions,Whitchurch Hospital Catering,NHS SUPPLY CHAIN,1017150409,24.48,654 4347 29
Department of Health,CT Revenue Funds,09/11/2016,Catering Provisions,Organisational Development,NHS SUPPLY CHAIN,1017150409,5.4,654 4347 29
Department of Health,CT Revenue Funds,09/11/2016,Catering Provisions,Ludlow Hospital Catering,NHS SUPPLY CHAIN,1017150409,10.28,654 4347 29
Department of Health,CT Revenue Funds,09/11/2016,Catering Provisions,Ludlow Hospital Catering,NHS SUPPLY CHAIN,1017150409,3.44,654 4347 29
Department of Health,CT Revenue Funds,09/11/2016,Catering Provisions,Ludlow Hospital Catering,NHS SUPPLY CHAIN,1017150409,8.12,654 4347 29
Department of Health,CT Revenue Funds,09/11/2016,Catering Provisions,Ludlow Hospital Catering,NHS SUPPLY CHAIN,1017150409,8.44,654 4347 29
Department of Health,CT Revenue Funds,09/11/2016,Catering Provisions,Whitchurch Hospital Catering,NHS SUPPLY CHAIN,1017150409,37.44,654 4347 29
Department of Health,CT Revenue Funds,09/11/2016,Catering Provisions,Whitchurch Hospital Catering,NHS SUPPLY CHAIN,1017150409,11.28,654 4347 29
Department of Health,CT Revenue Funds,09/11/2016,Catering Provisions,Whitchurch Hospital Catering,NHS SUPPLY CHAIN,1017150409,9.6,654 4347 29
Department of Health,CT Revenue Funds,09/11/2016,Catering Provisions,Stoke Heath Prison Healthcare,NHS SUPPLY CHAIN,1017150409,6.44,654 4347 29
Department of Health,CT Revenue Funds,09/11/2016,Catering Provisions,Ludlow Hospital Catering,NHS SUPPLY CHAIN,1017150409,5.26,654 4347 29
Department of Health,CT Revenue Funds,09/11/2016,Catering Provisions,Ludlow Hospital Catering,NHS SUPPLY CHAIN,1017150409,7,654 4347 29
Department of Health,CT Revenue Funds,09/11/2016,Catering Provisions,Ludlow Hospital Catering,NHS SUPPLY CHAIN,1017150409,3.7,654 4347 29
Department of Health,CT Revenue Funds,09/11/2016,Catering Provisions,Ludlow Hospital Catering,NHS SUPPLY CHAIN,1017150409,5.8,654 4347 29
Department of Health,CT Revenue Funds,09/11/2016,Catering Provisions,Ludlow Hospital Catering,NHS SUPPLY CHAIN,1017150409,4.96,654 4347 29
Department of Health,CT Revenue Funds,09/11/2016,Catering Provisions,Ludlow Hospital Catering,NHS SUPPLY CHAIN,1017150409,4.54,654 4347 29
Department of Health,CT Revenue Funds,09/11/2016,Catering Provisions,Ludlow Hospital Catering,NHS SUPPLY CHAIN,1017150409,19.02,654 4347 29
Department of Health,CT Revenue Funds,09/11/2016,Catering Provisions,Whitchurch Hospital Inpatient Ward,NHS SUPPLY CHAIN,1017150409,0.2,654 4347 29
Department of Health,CT Revenue Funds,09/11/2016,Catering Provisions,Whitchurch Hospital Catering,NHS SUPPLY CHAIN,1017150409,11.66,654 4347 29
Department of Health,CT Revenue Funds,09/11/2016,Catering Provisions,Whitchurch Hospital Catering,NHS SUPPLY CHAIN,1017150409,8.12,654 4347 29
Department of Health,CT Revenue Funds,09/11/2016,Catering Provisions,Ludlow Hospital Catering,NHS SUPPLY CHAIN,1017150409,3.78,654 4347 29
Department of Health,CT Revenue Funds,09/11/2016,Catering Provisions,Ludlow Hospital Catering,NHS SUPPLY CHAIN,1017150409,21.64,654 4347 29
Department of Health,CT Revenue Funds,09/11/2016,Catering Provisions,Ludlow Hospital Catering,NHS SUPPLY CHAIN,1017150409,8.94,654 4347 29
Department of Health,CT Revenue Funds,09/11/2016,Catering Provisions,Whitchurch Hospital Catering,NHS SUPPLY CHAIN,1017150409,16.26,654 4347 29
Department of Health,CT Revenue Funds,09/11/2016,Catering Provisions,Whitchurch Hospital Catering,NHS SUPPLY CHAIN,1017150409,11.7,654 4347 29
Department of Health,CT Revenue Funds,09/11/2016,Catering Provisions,Whitchurch Hospital Catering,NHS SUPPLY CHAIN,1017150409,2.4,654 4347 29
Department of Health,CT Revenue Funds,09/11/2016,Catering Provisions,Whitchurch Hospital Catering,NHS SUPPLY CHAIN,1017150409,6.19,654 4347 29
Department of Health,CT Revenue Funds,09/11/2016,Catering Provisions,Whitchurch Hospital Catering,NHS SUPPLY CHAIN,1017150409,4.56,654 4347 29
Department of Health,CT Revenue Funds,09/11/2016,Catering Provisions,Whitchurch Hospital Catering,NHS SUPPLY CHAIN,1017150409,8.04,654 4347 29
Department of Health,CT Revenue Funds,09/11/2016,Catering Provisions,Whitchurch Hospital Catering,NHS SUPPLY CHAIN,1017150409,0.12,654 4347 29
Department of Health,CT Revenue Funds,09/11/2016,Catering Provisions,Bridgnorth Hospital Inpatient Ward,NHS SUPPLY CHAIN,1017150409,2.65,654 4347 29
Department of Health,CT Revenue Funds,09/11/2016,Catering Provisions,Bridgnorth Hospital Inpatient Ward,NHS SUPPLY CHAIN,1017150409,13.25,654 4347 29
Department of Health,CT Revenue Funds,09/11/2016,Catering Provisions,Shrewsbury and Atcham DAART,NHS SUPPLY CHAIN,1017150409,15.2,654 4347 29
Department of Health,CT Revenue Funds,09/11/2016,Catheters,Whitchurch Hospital Inpatient Ward,NHS SUPPLY CHAIN,1017150409,21.46,654 4347 29
Department of Health,CT Revenue Funds,09/11/2016,Catheters,Bishops Castle Hospital Inpatient Ward,NHS SUPPLY CHAIN,1017150409,2.15,654 4347 29
Department of Health,CT Revenue Funds,09/11/2016,Catheters,Ludlow Hospital Inpatient Wards,NHS SUPPLY CHAIN,1017150409,21.46,654 4347 29
Department of Health,CT Revenue Funds,09/11/2016,Catheters,Bishops Castle Hospital Inpatient Ward,NHS SUPPLY CHAIN,1017150409,10.73,654 4347 29
Department of Health,CT Revenue Funds,09/11/2016,Catheters,Ludlow Hospital Inpatient Wards,NHS SUPPLY CHAIN,1017150409,4.29,654 4347 29
Department of Health,CT Revenue Funds,09/11/2016,Catheters,Whitchurch Hospital Inpatient Ward,NHS SUPPLY CHAIN,1017150409,4.29,654 4347 29
Department of Health,CT Revenue Funds,09/11/2016,Catheters,Ludlow Hospital Inpatient Wards,NHS SUPPLY CHAIN,1017150409,0.01,654 4347 29
Department of Health,CT Revenue Funds,09/11/2016,Catheters,Whitchurch Hospital Inpatient Ward,NHS SUPPLY CHAIN,1017150409,0.01,654 4347 29
Department of Health,CT Revenue Funds,09/11/2016,Cleaning Materials,Bridgnorth Hospital Hotel Services,NHS SUPPLY CHAIN,1017150409,-0.05,654 4347 29
Department of Health,CT Revenue Funds,09/11/2016,Cleaning Materials,Whitchurch Hospital Inpatient Ward,NHS SUPPLY CHAIN,1017150409,-0.01,654 4347 29
Department of Health,CT Revenue Funds,09/11/2016,Cleaning Materials,Shrewsbury and Atcham DAART,NHS SUPPLY CHAIN,1017150409,0.78,654 4347 29
Department of Health,CT Revenue Funds,09/11/2016,Cleaning Materials,Bridgnorth Hospital Hotel Services,NHS SUPPLY CHAIN,1017150409,3.53,654 4347 29
Department of Health,CT Revenue Funds,09/11/2016,Cleaning Materials,Bridgnorth Hospital Hotel Services,NHS SUPPLY CHAIN,1017150409,2.76,654 4347 29
Department of Health,CT Revenue Funds,09/11/2016,Cleaning Materials,Bridgnorth Hospital Hotel Services,NHS SUPPLY CHAIN,1017150409,0.38,654 4347 29
Department of Health,CT Revenue Funds,09/11/2016,Cleaning Materials,Bridgnorth Hospital Hotel Services,NHS SUPPLY CHAIN,1017150409,0.38,654 4347 29
Department of Health,CT Revenue Funds,09/11/2016,Cleaning Materials,Bridgnorth Hospital Hotel Services,NHS SUPPLY CHAIN,1017150409,-0.01,654 4347 29
Department of Health,CT Revenue Funds,09/11/2016,Cleaning Materials,Bridgnorth Hospital Hotel Services,NHS SUPPLY CHAIN,1017150409,17.64,654 4347 29
Department of Health,CT Revenue Funds,09/11/2016,Cleaning Materials,Whitchurch Hospital Hotel Services,NHS SUPPLY CHAIN,1017150409,2.4,654 4347 29
Department of Health,CT Revenue Funds,09/11/2016,Cleaning Materials,Whitchurch Hospital Hotel Services,NHS SUPPLY CHAIN,1017150409,1.88,654 4347 29
Department of Health,CT Revenue Funds,09/11/2016,Cleaning Materials,Whitchurch Hospital Hotel Services,NHS SUPPLY CHAIN,1017150409,6.16,654 4347 29
Department of Health,CT Revenue Funds,09/11/2016,Cleaning Materials,Whitchurch Hospital Hotel Services,NHS SUPPLY CHAIN,1017150409,1.88,654 4347 29
Department of Health,CT Revenue Funds,09/11/2016,Cleaning Materials,Whitchurch Hospital Hotel Services,NHS SUPPLY CHAIN,1017150409,0.04,654 4347 29
Department of Health,CT Revenue Funds,09/11/2016,Cleaning Materials,Whitchurch Hospital Catering,NHS SUPPLY CHAIN,1017150409,-0.02,654 4347 29
Department of Health,CT Revenue Funds,09/11/2016,Cleaning Materials,Ludlow Hospital Hotel Services,NHS SUPPLY CHAIN,1017150409,16,654 4347 29
Department of Health,CT Revenue Funds,09/11/2016,Cleaning Materials,Ludlow Hospital Hotel Services,NHS SUPPLY CHAIN,1017150409,-0.01,654 4347 29
Department of Health,CT Revenue Funds,09/11/2016,Cleaning Materials,Ludlow Hospital Hotel Services,NHS SUPPLY CHAIN,1017150409,12,654 4347 29
Department of Health,CT Revenue Funds,09/11/2016,Cleaning Materials,Whitchurch Hospital Hotel Services,NHS SUPPLY CHAIN,1017150409,1.75,654 4347 29
Department of Health,CT Revenue Funds,09/11/2016,Cleaning Materials,Whitchurch Hospital Hotel Services,NHS SUPPLY CHAIN,1017150409,3.38,654 4347 29
Department of Health,CT Revenue Funds,09/11/2016,Cleaning Materials,Whitchurch Hospital Hotel Services,NHS SUPPLY CHAIN,1017150409,12,654 4347 29
Department of Health,CT Revenue Funds,09/11/2016,Cleaning Materials,Whitchurch Hospital Hotel Services,NHS SUPPLY CHAIN,1017150409,9.4,654 4347 29
Department of Health,CT Revenue Funds,09/11/2016,Cleaning Materials,Whitchurch Hospital Hotel Services,NHS SUPPLY CHAIN,1017150409,-0.06,654 4347 29
Department of Health,CT Revenue Funds,09/11/2016,Cleaning Materials,Bridgnorth Hospital Hotel Services,NHS SUPPLY CHAIN,1017150409,1.88,654 4347 29
Department of Health,CT Revenue Funds,09/11/2016,Cleaning Materials,Bridgnorth Hospital Hotel Services,NHS SUPPLY CHAIN,1017150409,0.03,654 4347 29
Department of Health,CT Revenue Funds,09/11/2016,Cleaning Materials,Bridgnorth Hospital Hotel Services,NHS SUPPLY CHAIN,1017150409,13.8,654 4347 29
Department of Health,CT Revenue Funds,09/11/2016,Cleaning Materials,Whitchurch Hospital Catering,NHS SUPPLY CHAIN,1017150409,6.1,654 4347 29
Department of Health,CT Revenue Funds,09/11/2016,Cleaning Materials,Whitchurch Hospital Inpatient Ward,NHS SUPPLY CHAIN,1017150409,7.38,654 4347 29
Department of Health,CT Revenue Funds,09/11/2016,Cleaning Materials,Whitchurch Hospital Hotel Services,NHS SUPPLY CHAIN,1017150409,2.4,654 4347 29
Department of Health,CT Revenue Funds,09/11/2016,Cleaning Materials,Whitchurch Hospital Hotel Services,NHS SUPPLY CHAIN,1017150409,4.55,654 4347 29
Department of Health,CT Revenue Funds,09/11/2016,Cleaning Materials,Whitchurch Hospital Hotel Services,NHS SUPPLY CHAIN,1017150409,0.04,654 4347 29
Department of Health,CT Revenue Funds,09/11/2016,Cleaning Materials,Whitchurch Hospital Hotel Services,NHS SUPPLY CHAIN,1017150409,0.49,654 4347 29
Department of Health,CT Revenue Funds,09/11/2016,Cleaning Materials,Whitchurch Hospital Hotel Services,NHS SUPPLY CHAIN,1017150409,6.18,654 4347 29
Department of Health,CT Revenue Funds,09/11/2016,Cleaning Materials,Whitchurch Hospital Hotel Services,NHS SUPPLY CHAIN,1017150409,9.4,654 4347 29
Department of Health,CT Revenue Funds,09/11/2016,Cleaning Materials,Whitchurch Hospital Hotel Services,NHS SUPPLY CHAIN,1017150409,18.8,654 4347 29
Department of Health,CT Revenue Funds,09/11/2016,Cleaning Materials,Whitchurch Hospital Hotel Services,NHS SUPPLY CHAIN,1017150409,-0.03,654 4347 29
Department of Health,CT Revenue Funds,09/11/2016,Cleaning Materials,Ludlow Hospital Hotel Services,NHS SUPPLY CHAIN,1017150409,2.4,654 4347 29
Department of Health,CT Revenue Funds,09/11/2016,Cleaning Materials,Ludlow Hospital Hotel Services,NHS SUPPLY CHAIN,1017150409,-0.03,654 4347 29
Department of Health,CT Revenue Funds,09/11/2016,Cleaning Materials,Bridgnorth Hospital Hotel Services,NHS SUPPLY CHAIN,1017150409,-0.01,654 4347 29
Department of Health,CT Revenue Funds,09/11/2016,Cleaning Materials,Bridgnorth Hospital Hotel Services,NHS SUPPLY CHAIN,1017150409,0.01,654 4347 29
Department of Health,CT Revenue Funds,09/11/2016,Cleaning Materials,Bridgnorth Hospital Hotel Services,NHS SUPPLY CHAIN,1017150409,1.88,654 4347 29
Department of Health,CT Revenue Funds,09/11/2016,Cleaning Materials,Shrewsbury and Atcham DAART,NHS SUPPLY CHAIN,1017150409,3.9,654 4347 29
Department of Health,CT Revenue Funds,09/11/2016,Cleaning Materials,Whitchurch Hospital Hotel Services,NHS SUPPLY CHAIN,1017150409,4.39,654 4347 29
Department of Health,CT Revenue Funds,09/11/2016,Cleaning Materials,Whitchurch Hospital Hotel Services,NHS SUPPLY CHAIN,1017150409,0.61,654 4347 29
Department of Health,CT Revenue Funds,09/11/2016,Cleaning Materials,Whitchurch Hospital Hotel Services,NHS SUPPLY CHAIN,1017150409,1.75,654 4347 29
Department of Health,CT Revenue Funds,09/11/2016,Cleaning Materials,Whitchurch Hospital Hotel Services,NHS SUPPLY CHAIN,1017150409,1.88,654 4347 29
Department of Health,CT Revenue Funds,09/11/2016,Cleaning Materials,Whitchurch Hospital Hotel Services,NHS SUPPLY CHAIN,1017150409,9.27,654 4347 29
Department of Health,CT Revenue Funds,09/11/2016,Cleaning Materials,Whitchurch Hospital Hotel Services,NHS SUPPLY CHAIN,1017150409,-0.06,654 4347 29
Department of Health,CT Revenue Funds,09/11/2016,Cleaning Materials,Whitchurch Hospital Hotel Services,NHS SUPPLY CHAIN,1017150409,0.02,654 4347 29
Department of Health,CT Revenue Funds,09/11/2016,Cleaning Materials,Whitchurch Hospital Hotel Services,NHS SUPPLY CHAIN,1017150409,2.43,654 4347 29
Department of Health,CT Revenue Funds,09/11/2016,Cleaning Materials,Bridgnorth Hospital Hotel Services,NHS SUPPLY CHAIN,1017150409,9.4,654 4347 29
Department of Health,CT Revenue Funds,09/11/2016,Cleaning Materials,Bridgnorth Hospital Hotel Services,NHS SUPPLY CHAIN,1017150409,2.76,654 4347 29
Department of Health,CT Revenue Funds,09/11/2016,Cleaning Materials,Bridgnorth Hospital Hotel Services,NHS SUPPLY CHAIN,1017150409,-0.06,654 4347 29
Department of Health,CT Revenue Funds,09/11/2016,Cleaning Materials,Whitchurch Hospital Hotel Services,NHS SUPPLY CHAIN,1017150409,0.01,654 4347 29
Department of Health,CT Revenue Funds,09/11/2016,Cleaning Materials,Whitchurch Hospital Hotel Services,NHS SUPPLY CHAIN,1017150409,12,654 4347 29
Department of Health,CT Revenue Funds,09/11/2016,Cleaning Materials,Whitchurch Hospital Hotel Services,NHS SUPPLY CHAIN,1017150409,3.08,654 4347 29
Department of Health,CT Revenue Funds,09/11/2016,Cleaning Materials,Podiatry Services,NHS SUPPLY CHAIN,1017150409,0.01,654 4347 29
Department of Health,CT Revenue Funds,09/11/2016,Cleaning Materials,Podiatry Services,NHS SUPPLY CHAIN,1017150409,0.74,654 4347 29
Department of Health,CT Revenue Funds,09/11/2016,Cleaning Materials,Ludlow Hospital Hotel Services,NHS SUPPLY CHAIN,1017150409,79.98,654 4347 29
Department of Health,CT Revenue Funds,09/11/2016,Cleaning Materials,Bridgnorth Hospital Hotel Services,NHS SUPPLY CHAIN,1017150409,1.15,654 4347 29
Department of Health,CT Revenue Funds,09/11/2016,Cleaning Materials,Bridgnorth Hospital Hotel Services,NHS SUPPLY CHAIN,1017150409,9.4,654 4347 29
Department of Health,CT Revenue Funds,09/11/2016,Cleaning Materials,Whitchurch Hospital Inpatient Ward,NHS SUPPLY CHAIN,1017150409,-0.03,654 4347 29
Department of Health,CT Revenue Funds,09/11/2016,Cleaning Materials,Whitchurch Hospital Catering,NHS SUPPLY CHAIN,1017150409,1.22,654 4347 29
Department of Health,CT Revenue Funds,09/11/2016,Cleaning Materials,Bridgnorth Hospital Hotel Services,NHS SUPPLY CHAIN,1017150409,1.88,654 4347 29
Department of Health,CT Revenue Funds,09/11/2016,Cleaning Materials,Bridgnorth Hospital Hotel Services,NHS SUPPLY CHAIN,1017150409,0.02,654 4347 29
Department of Health,CT Revenue Funds,09/11/2016,Cleaning Materials,Whitchurch Hospital Hotel Services,NHS SUPPLY CHAIN,1017150409,0.38,654 4347 29
Department of Health,CT Revenue Funds,09/11/2016,Cleaning Materials,Whitchurch Hospital Hotel Services,NHS SUPPLY CHAIN,1017150409,3.76,654 4347 29
Department of Health,CT Revenue Funds,09/11/2016,Cleaning Materials,Whitchurch Hospital Hotel Services,NHS SUPPLY CHAIN,1017150409,-0.01,654 4347 29
Department of Health,CT Revenue Funds,09/11/2016,Cleaning Materials,Whitchurch Hospital Hotel Services,NHS SUPPLY CHAIN,1017150409,22.73,654 4347 29
Department of Health,CT Revenue Funds,09/11/2016,Cleaning Materials,Bridgnorth Hospital Hotel Services,NHS SUPPLY CHAIN,1017150409,0.01,654 4347 29
Department of Health,CT Revenue Funds,09/11/2016,Cleaning Materials,Bridgnorth Hospital Hotel Services,NHS SUPPLY CHAIN,1017150409,0.05,654 4347 29
Department of Health,CT Revenue Funds,09/11/2016,Cleaning Materials,Bridgnorth Hospital Hotel Services,NHS SUPPLY CHAIN,1017150409,0.02,654 4347 29
Department of Health,CT Revenue Funds,09/11/2016,Cleaning Materials,Ludlow Hospital Hotel Services,NHS SUPPLY CHAIN,1017150409,1.15,654 4347 29
Department of Health,CT Revenue Funds,09/11/2016,Cleaning Materials,Bridgnorth Hospital Hotel Services,NHS SUPPLY CHAIN,1017150409,0.55,654 4347 29
Department of Health,CT Revenue Funds,09/11/2016,Cleaning Materials,Bridgnorth Hospital Hotel Services,NHS SUPPLY CHAIN,1017150409,1.88,654 4347 29
Department of Health,CT Revenue Funds,09/11/2016,Cleaning Materials,Bridgnorth Hospital Hotel Services,NHS SUPPLY CHAIN,1017150409,5.76,654 4347 29
Department of Health,CT Revenue Funds,09/11/2016,Cleaning Materials,Bridgnorth Hospital Hotel Services,NHS SUPPLY CHAIN,1017150409,0.05,654 4347 29
Department of Health,CT Revenue Funds,09/11/2016,Cleaning Materials,Whitchurch Hospital Hotel Services,NHS SUPPLY CHAIN,1017150409,1.24,654 4347 29
Department of Health,CT Revenue Funds,09/11/2016,Cleaning Materials,Whitchurch Hospital Hotel Services,NHS SUPPLY CHAIN,1017150409,1.24,654 4347 29
Department of Health,CT Revenue Funds,09/11/2016,Cleaning Materials,Whitchurch Hospital Hotel Services,NHS SUPPLY CHAIN,1017150409,-0.01,654 4347 29
Department of Health,CT Revenue Funds,09/11/2016,Cleaning Materials,Whitchurch Hospital Hotel Services,NHS SUPPLY CHAIN,1017150409,-0.01,654 4347 29
Department of Health,CT Revenue Funds,09/11/2016,Cleaning Materials,Whitchurch Hospital Hotel Services,NHS SUPPLY CHAIN,1017150409,8.76,654 4347 29
Department of Health,CT Revenue Funds,09/11/2016,Cleaning Materials,Whitchurch Hospital Hotel Services,NHS SUPPLY CHAIN,1017150409,16.92,654 4347 29
Department of Health,CT Revenue Funds,09/11/2016,Cleaning Materials,Podiatry Services,NHS SUPPLY CHAIN,1017150409,3.7,654 4347 29
Department of Health,CT Revenue Funds,09/11/2016,Cleaning Materials,Whitchurch Hospital Hotel Services,NHS SUPPLY CHAIN,1017150409,0.02,654 4347 29
Department of Health,CT Revenue Funds,09/11/2016,Cleaning Materials,Whitchurch Hospital Hotel Services,NHS SUPPLY CHAIN,1017150409,2.7,654 4347 29
Department of Health,CT Revenue Funds,09/11/2016,Cleaning Materials,Whitchurch Hospital Inpatient Ward,NHS SUPPLY CHAIN,1017150409,1.48,654 4347 29
Department of Health,CT Revenue Funds,09/11/2016,Cleaning Materials,Ludlow Hospital Hotel Services,NHS SUPPLY CHAIN,1017150409,5.74,654 4347 29
Department of Health,CT Revenue Funds,09/11/2016,Cleaning Materials,Whitchurch Hospital Hotel Services,NHS SUPPLY CHAIN,1017150409,0.54,654 4347 29
Department of Health,CT Revenue Funds,09/11/2016,Cleaning Materials,Whitchurch Hospital Hotel Services,NHS SUPPLY CHAIN,1017150409,21.96,654 4347 29
Department of Health,CT Revenue Funds,09/11/2016,Cleaning Materials,Whitchurch Hospital Hotel Services,NHS SUPPLY CHAIN,1017150409,8.76,654 4347 29
Department of Health,CT Revenue Funds,09/11/2016,Cleaning Materials,Whitchurch Hospital Hotel Services,NHS SUPPLY CHAIN,1017150409,46.35,654 4347 29
Department of Health,CT Revenue Funds,09/11/2016,Cleaning Materials,Whitchurch Hospital Hotel Services,NHS SUPPLY CHAIN,1017150409,0.19,654 4347 29
Department of Health,CT Revenue Funds,09/11/2016,Cleaning Materials,Bridgnorth Hospital Hotel Services,NHS SUPPLY CHAIN,1017150409,0.16,654 4347 29
Department of Health,CT Revenue Funds,09/11/2016,"Colostomy, Ileostomy, Urostomy & Incontinence Products",Ludlow Hospital Inpatient Wards,NHS SUPPLY CHAIN,1017150409,0.64,654 4347 29
Department of Health,CT Revenue Funds,09/11/2016,"Colostomy, Ileostomy, Urostomy & Incontinence Products",Ludlow Hospital Inpatient Wards,NHS SUPPLY CHAIN,1017150409,0.76,654 4347 29
Department of Health,CT Revenue Funds,09/11/2016,"Colostomy, Ileostomy, Urostomy & Incontinence Products",Ludlow Hospital Inpatient Wards,NHS SUPPLY CHAIN,1017150409,4.39,654 4347 29
Department of Health,CT Revenue Funds,09/11/2016,"Colostomy, Ileostomy, Urostomy & Incontinence Products",Whitchurch Hospital Inpatient Ward,NHS SUPPLY CHAIN,1017150409,1.96,654 4347 29
Department of Health,CT Revenue Funds,09/11/2016,"Colostomy, Ileostomy, Urostomy & Incontinence Products",Bridgnorth Hospital Inpatient Ward,NHS SUPPLY CHAIN,1017150409,1.27,654 4347 29
Department of Health,CT Revenue Funds,09/11/2016,"Colostomy, Ileostomy, Urostomy & Incontinence Products",Whitchurch Hospital Inpatient Ward,NHS SUPPLY CHAIN,1017150409,9.78,654 4347 29
Department of Health,CT Revenue Funds,09/11/2016,"Colostomy, Ileostomy, Urostomy & Incontinence Products",Whitchurch Hospital Inpatient Ward,NHS SUPPLY CHAIN,1017150409,0.02,654 4347 29
Department of Health,CT Revenue Funds,09/11/2016,"Colostomy, Ileostomy, Urostomy & Incontinence Products",Ludlow Hospital Inpatient Wards,NHS SUPPLY CHAIN,1017150409,2.28,654 4347 29
Department of Health,CT Revenue Funds,09/11/2016,"Colostomy, Ileostomy, Urostomy & Incontinence Products",Ludlow Hospital Inpatient Wards,NHS SUPPLY CHAIN,1017150409,0.66,654 4347 29
Department of Health,CT Revenue Funds,09/11/2016,"Colostomy, Ileostomy, Urostomy & Incontinence Products",Ludlow Hospital Inpatient Wards,NHS SUPPLY CHAIN,1017150409,3.32,654 4347 29
Department of Health,CT Revenue Funds,09/11/2016,"Colostomy, Ileostomy, Urostomy & Incontinence Products",Ludlow Hospital Inpatient Wards,NHS SUPPLY CHAIN,1017150409,-0.02,654 4347 29
Department of Health,CT Revenue Funds,09/11/2016,"Colostomy, Ileostomy, Urostomy & Incontinence Products",Ludlow Hospital Inpatient Wards,NHS SUPPLY CHAIN,1017150409,3.35,654 4347 29
Department of Health,CT Revenue Funds,09/11/2016,"Colostomy, Ileostomy, Urostomy & Incontinence Products",Ludlow Hospital Inpatient Wards,NHS SUPPLY CHAIN,1017150409,0.67,654 4347 29
Department of Health,CT Revenue Funds,09/11/2016,"Colostomy, Ileostomy, Urostomy & Incontinence Products",Bridgnorth Hospital Inpatient Ward,NHS SUPPLY CHAIN,1017150409,-0.01,654 4347 29
Department of Health,CT Revenue Funds,09/11/2016,"Colostomy, Ileostomy, Urostomy & Incontinence Products",Ludlow Hospital Inpatient Wards,NHS SUPPLY CHAIN,1017150409,0.46,654 4347 29
Department of Health,CT Revenue Funds,09/11/2016,"Colostomy, Ileostomy, Urostomy & Incontinence Products",Ludlow Hospital Inpatient Wards,NHS SUPPLY CHAIN,1017150409,0.88,654 4347 29
Department of Health,CT Revenue Funds,09/11/2016,"Colostomy, Ileostomy, Urostomy & Incontinence Products",Ludlow Hospital Inpatient Wards,NHS SUPPLY CHAIN,1017150409,3.18,654 4347 29
Department of Health,CT Revenue Funds,09/11/2016,"Colostomy, Ileostomy, Urostomy & Incontinence Products",Ludlow Hospital Inpatient Wards,NHS SUPPLY CHAIN,1017150409,3.78,654 4347 29
Department of Health,CT Revenue Funds,09/11/2016,"Colostomy, Ileostomy, Urostomy & Incontinence Products",Bridgnorth Hospital Inpatient Ward,NHS SUPPLY CHAIN,1017150409,6.36,654 4347 29
Department of Health,CT Revenue Funds,09/11/2016,Computer Consumables,Special Care and Access,NHS SUPPLY CHAIN,1017150409,67.9,654 4347 29
Department of Health,CT Revenue Funds,09/11/2016,Computer Consumables,Ludlow & Bishop Castle Admin,NHS SUPPLY CHAIN,1017150409,28.88,654 4347 29
Department of Health,CT Revenue Funds,09/11/2016,Computer Consumables,Ludlow & Bishop Castle Admin,NHS SUPPLY CHAIN,1017150409,21.57,654 4347 29
Department of Health,CT Revenue Funds,09/11/2016,Computer Consumables,Ludlow & Bishop Castle Admin,NHS SUPPLY CHAIN,1017150409,144.38,654 4347 29
Department of Health,CT Revenue Funds,09/11/2016,Computer Consumables,Shropshire School Nurses,NHS SUPPLY CHAIN,1017150409,19.94,654 4347 29
Department of Health,CT Revenue Funds,09/11/2016,Computer Consumables,Shropshire School Nurses,NHS SUPPLY CHAIN,1017150409,0.01,654 4347 29
Department of Health,CT Revenue Funds,09/11/2016,Computer Consumables,Coral House,NHS SUPPLY CHAIN,1017150409,30.94,654 4347 29
Department of Health,CT Revenue Funds,09/11/2016,Computer Consumables,Coral House,NHS SUPPLY CHAIN,1017150409,39.01,654 4347 29
Department of Health,CT Revenue Funds,09/11/2016,Computer Consumables,Coral House,NHS SUPPLY CHAIN,1017150409,0.01,654 4347 29
Department of Health,CT Revenue Funds,09/11/2016,Computer Consumables,Bridgnorth Hospital Inpatient Ward,NHS SUPPLY CHAIN,1017150409,24.03,654 4347 29
Department of Health,CT Revenue Funds,09/11/2016,Computer Consumables,Ludlow & Bishop Castle Admin,NHS SUPPLY CHAIN,1017150409,144.38,654 4347 29
Department of Health,CT Revenue Funds,09/11/2016,Computer Consumables,Ludlow & Bishop Castle Admin,NHS SUPPLY CHAIN,1017150409,107.85,654 4347 29
Department of Health,CT Revenue Funds,09/11/2016,Computer Consumables,Bishops Castle Hospital Management - DO NOT USE,NHS SUPPLY CHAIN,1017150409,9.97,654 4347 29
Department of Health,CT Revenue Funds,09/11/2016,Computer Consumables,Telford North Community Nursing,NHS SUPPLY CHAIN,1017150409,8.26,654 4347 29
Department of Health,CT Revenue Funds,09/11/2016,Computer Consumables,Whitchurch Hospital Administration,NHS SUPPLY CHAIN,1017150409,38.76,654 4347 29
Department of Health,CT Revenue Funds,09/11/2016,Computer Consumables,Coral House,NHS SUPPLY CHAIN,1017150409,79.56,654 4347 29
Department of Health,CT Revenue Funds,09/11/2016,Computer Consumables,Coral House,NHS SUPPLY CHAIN,1017150409,74.61,654 4347 29
Department of Health,CT Revenue Funds,09/11/2016,Computer Consumables,North Shropshire Health Visitors,NHS SUPPLY CHAIN,1017150409,17.95,654 4347 29
Department of Health,CT Revenue Funds,09/11/2016,Computer Consumables,ICS South West,NHS SUPPLY CHAIN,1017150409,9.97,654 4347 29
Department of Health,CT Revenue Funds,09/11/2016,Computer Consumables,Special Care and Access,NHS SUPPLY CHAIN,1017150409,0.01,654 4347 29
Department of Health,CT Revenue Funds,09/11/2016,Computer Consumables,Shropshire School Nurses,NHS SUPPLY CHAIN,1017150409,19.94,654 4347 29
Department of Health,CT Revenue Funds,09/11/2016,Computer Consumables,Shropshire School Nurses,NHS SUPPLY CHAIN,1017150409,99.7,654 4347 29
Department of Health,CT Revenue Funds,09/11/2016,Computer Consumables,Ludlow & Bishop Castle Admin,NHS SUPPLY CHAIN,1017150409,28.88,654 4347 29
Department of Health,CT Revenue Funds,09/11/2016,Computer Consumables,Whitchurch Hospital Administration,NHS SUPPLY CHAIN,1017150409,37.01,654 4347 29
Department of Health,CT Revenue Funds,09/11/2016,Computer Consumables,Whitchurch Hospital Administration,NHS SUPPLY CHAIN,1017150409,8.36,654 4347 29
Department of Health,CT Revenue Funds,09/11/2016,Computer Consumables,Whitchurch Hospital Administration,NHS SUPPLY CHAIN,1017150409,32.26,654 4347 29
Department of Health,CT Revenue Funds,09/11/2016,Computer Consumables,Whitchurch Hospital Administration,NHS SUPPLY CHAIN,1017150409,47.02,654 4347 29
Department of Health,CT Revenue Funds,09/11/2016,Computer Consumables,Whitchurch Hospital Administration,NHS SUPPLY CHAIN,1017150409,22.85,654 4347 29
Department of Health,CT Revenue Funds,09/11/2016,Computer Consumables,Bishops Castle Hospital Management - DO NOT USE,NHS SUPPLY CHAIN,1017150409,3.38,654 4347 29
Department of Health,CT Revenue Funds,09/11/2016,Computer Consumables,Bishops Castle Hospital Management - DO NOT USE,NHS SUPPLY CHAIN,1017150409,16.88,654 4347 29
Department of Health,CT Revenue Funds,09/11/2016,Computer Consumables,Bishops Castle Hospital Management - DO NOT USE,NHS SUPPLY CHAIN,1017150409,49.85,654 4347 29
Department of Health,CT Revenue Funds,09/11/2016,Computer Consumables,Shropshire School Nurses,NHS SUPPLY CHAIN,1017150409,100.56,654 4347 29
Department of Health,CT Revenue Funds,09/11/2016,Computer Consumables,Coral House,NHS SUPPLY CHAIN,1017150409,15.91,654 4347 29
Department of Health,CT Revenue Funds,09/11/2016,Computer Consumables,Coral House,NHS SUPPLY CHAIN,1017150409,14.92,654 4347 29
Department of Health,CT Revenue Funds,09/11/2016,Computer Consumables,Coral House,NHS SUPPLY CHAIN,1017150409,8.51,654 4347 29
Department of Health,CT Revenue Funds,09/11/2016,Computer Consumables,Coral House,NHS SUPPLY CHAIN,1017150409,42.54,654 4347 29
Department of Health,CT Revenue Funds,09/11/2016,Computer Consumables,Coral House,NHS SUPPLY CHAIN,1017150409,76.46,654 4347 29
Department of Health,CT Revenue Funds,09/11/2016,Computer Consumables,Coral House,NHS SUPPLY CHAIN,1017150409,154.72,654 4347 29
Department of Health,CT Revenue Funds,09/11/2016,Computer Consumables,ICS South West,NHS SUPPLY CHAIN,1017150409,49.85,654 4347 29
Department of Health,CT Revenue Funds,09/11/2016,Computer Consumables,Whitchurch Hospital Administration,NHS SUPPLY CHAIN,1017150409,7.75,654 4347 29
Department of Health,CT Revenue Funds,09/11/2016,Computer Consumables,Whitchurch Hospital Administration,NHS SUPPLY CHAIN,1017150409,4.57,654 4347 29
Department of Health,CT Revenue Funds,09/11/2016,Computer Consumables,Falls Prevention,NHS SUPPLY CHAIN,1017150409,4.75,654 4347 29
Department of Health,CT Revenue Funds,09/11/2016,Computer Consumables,Special Care and Access,NHS SUPPLY CHAIN,1017150409,13.58,654 4347 29
Department of Health,CT Revenue Funds,09/11/2016,Computer Consumables,Special Care and Access,NHS SUPPLY CHAIN,1017150409,64.06,654 4347 29
Department of Health,CT Revenue Funds,09/11/2016,Computer Consumables,ICS South West,NHS SUPPLY CHAIN,1017150409,49.85,654 4347 29
Department of Health,CT Revenue Funds,09/11/2016,Computer Consumables,Diabetes Specialist Nursing,NHS SUPPLY CHAIN,1017150409,7.17,654 4347 29
Department of Health,CT Revenue Funds,09/11/2016,Computer Consumables,Diabetes Specialist Nursing,NHS SUPPLY CHAIN,1017150409,35.86,654 4347 29
Department of Health,CT Revenue Funds,09/11/2016,Computer Consumables,Shropshire School Nurses,NHS SUPPLY CHAIN,1017150409,99.7,654 4347 29
Department of Health,CT Revenue Funds,09/11/2016,Computer Consumables,Quality,NHS SUPPLY CHAIN,1017150409,10.03,654 4347 29
Department of Health,CT Revenue Funds,09/11/2016,Computer Consumables,Quality,NHS SUPPLY CHAIN,1017150409,50.15,654 4347 29
Department of Health,CT Revenue Funds,09/11/2016,Computer Consumables,Quality,NHS SUPPLY CHAIN,1017150409,50.15,654 4347 29
Department of Health,CT Revenue Funds,09/11/2016,Computer Consumables,Coral House,NHS SUPPLY CHAIN,1017150409,23.31,654 4347 29
Department of Health,CT Revenue Funds,09/11/2016,Computer Consumables,Coral House,NHS SUPPLY CHAIN,1017150409,307.13,654 4347 29
Department of Health,CT Revenue Funds,09/11/2016,Computer Consumables,Finance Directorate Management,NHS SUPPLY CHAIN,1017150409,14.82,654 4347 29
Department of Health,CT Revenue Funds,09/11/2016,Computer Consumables,Whitchurch Hospital Administration,NHS SUPPLY CHAIN,1017150409,4.2,654 4347 29
Department of Health,CT Revenue Funds,09/11/2016,Computer Consumables,Whitchurch Hospital Administration,NHS SUPPLY CHAIN,1017150409,7.4,654 4347 29
Department of Health,CT Revenue Funds,09/11/2016,Computer Consumables,Whitchurch Hospital Administration,NHS SUPPLY CHAIN,1017150409,7.4,654 4347 29
Department of Health,CT Revenue Funds,09/11/2016,Computer Consumables,Whitchurch Hospital Administration,NHS SUPPLY CHAIN,1017150409,6.45,654 4347 29
Department of Health,CT Revenue Funds,09/11/2016,Computer Consumables,Whitchurch Hospital Administration,NHS SUPPLY CHAIN,1017150409,32.26,654 4347 29
Department of Health,CT Revenue Funds,09/11/2016,Computer Consumables,Whitchurch Hospital Administration,NHS SUPPLY CHAIN,1017150409,33.84,654 4347 29
Department of Health,CT Revenue Funds,09/11/2016,Computer Consumables,Whitchurch Hospital Administration,NHS SUPPLY CHAIN,1017150409,9.4,654 4347 29
Department of Health,CT Revenue Funds,09/11/2016,Computer Consumables,Whitchurch Hospital Administration,NHS SUPPLY CHAIN,1017150409,7.4,654 4347 29
Department of Health,CT Revenue Funds,09/11/2016,Computer Consumables,Whitchurch Hospital Administration,NHS SUPPLY CHAIN,1017150409,4.36,654 4347 29
Department of Health,CT Revenue Funds,09/11/2016,Computer Consumables,Whitchurch Hospital Administration,NHS SUPPLY CHAIN,1017150409,37.01,654 4347 29
Department of Health,CT Revenue Funds,09/11/2016,Computer Consumables,Whitchurch Hospital Administration,NHS SUPPLY CHAIN,1017150409,27.58,654 4347 29
Department of Health,CT Revenue Funds,09/11/2016,Computer Consumables,Falls Prevention,NHS SUPPLY CHAIN,1017150409,0.95,654 4347 29
Department of Health,CT Revenue Funds,09/11/2016,Computer Consumables,Finance Directorate Management,NHS SUPPLY CHAIN,1017150409,-0.72,654 4347 29
Department of Health,CT Revenue Funds,09/11/2016,Computer Consumables,Ludlow Hospital Outpatients,NHS SUPPLY CHAIN,1017150409,4.55,654 4347 29
Department of Health,CT Revenue Funds,09/11/2016,Computer Consumables,Special Care and Access,NHS SUPPLY CHAIN,1017150409,67.9,654 4347 29
Department of Health,CT Revenue Funds,09/11/2016,Computer Consumables,Telford North Community Nursing,NHS SUPPLY CHAIN,1017150409,41.32,654 4347 29
Department of Health,CT Revenue Funds,09/11/2016,Computer Consumables,ICS South West,NHS SUPPLY CHAIN,1017150409,9.97,654 4347 29
Department of Health,CT Revenue Funds,09/11/2016,Computer Consumables,ICS South West,NHS SUPPLY CHAIN,1017150409,50.28,654 4347 29
Department of Health,CT Revenue Funds,09/11/2016,Computer Consumables,North Shropshire Health Visitors,NHS SUPPLY CHAIN,1017150409,3.59,654 4347 29
Department of Health,CT Revenue Funds,09/11/2016,Computer Consumables,Coral House,NHS SUPPLY CHAIN,1017150409,7.8,654 4347 29
Department of Health,CT Revenue Funds,09/11/2016,Computer Consumables,Coral House,NHS SUPPLY CHAIN,1017150409,15.29,654 4347 29
Department of Health,CT Revenue Funds,09/11/2016,Computer Consumables,Special Care and Access,NHS SUPPLY CHAIN,1017150409,13.58,654 4347 29
Department of Health,CT Revenue Funds,09/11/2016,Computer Consumables,Special Care and Access,NHS SUPPLY CHAIN,1017150409,12.81,654 4347 29
Department of Health,CT Revenue Funds,09/11/2016,Computer Consumables,HR and Workforce,NHS SUPPLY CHAIN,1017150409,65.68,654 4347 29
Department of Health,CT Revenue Funds,09/11/2016,Computer Consumables,Ludlow & Bishop Castle Admin,NHS SUPPLY CHAIN,1017150409,144.38,654 4347 29
Department of Health,CT Revenue Funds,09/11/2016,Computer Consumables,Shropshire School Nurses,NHS SUPPLY CHAIN,1017150409,20.11,654 4347 29
Department of Health,CT Revenue Funds,09/11/2016,Computer Consumables,Shropshire School Nurses,NHS SUPPLY CHAIN,1017150409,99.7,654 4347 29
Department of Health,CT Revenue Funds,09/11/2016,Computer Consumables,ICS South West,NHS SUPPLY CHAIN,1017150409,9.97,654 4347 29
Department of Health,CT Revenue Funds,09/11/2016,Computer Consumables,ICS South West,NHS SUPPLY CHAIN,1017150409,10.06,654 4347 29
Department of Health,CT Revenue Funds,09/11/2016,Computer Consumables,ICS South West,NHS SUPPLY CHAIN,1017150409,49.85,654 4347 29
Department of Health,CT Revenue Funds,09/11/2016,Computer Consumables,Special Care and Access,NHS SUPPLY CHAIN,1017150409,13.58,654 4347 29
Department of Health,CT Revenue Funds,09/11/2016,Computer Consumables,Special Care and Access,NHS SUPPLY CHAIN,1017150409,67.9,654 4347 29
Department of Health,CT Revenue Funds,09/11/2016,Computer Consumables,Whitchurch Hospital Administration,NHS SUPPLY CHAIN,1017150409,6.45,654 4347 29
Department of Health,CT Revenue Funds,09/11/2016,Computer Consumables,Whitchurch Hospital Administration,NHS SUPPLY CHAIN,1017150409,32.26,654 4347 29
Department of Health,CT Revenue Funds,09/11/2016,Computer Consumables,Whitchurch Hospital Administration,NHS SUPPLY CHAIN,1017150409,41.82,654 4347 29
Department of Health,CT Revenue Funds,09/11/2016,Computer Consumables,Whitchurch Hospital Administration,NHS SUPPLY CHAIN,1017150409,37.01,654 4347 29
Department of Health,CT Revenue Funds,09/11/2016,Computer Consumables,Whitchurch Hospital Administration,NHS SUPPLY CHAIN,1017150409,21.82,654 4347 29
Department of Health,CT Revenue Funds,09/11/2016,Computer Consumables,Ludlow Hospital Outpatients,NHS SUPPLY CHAIN,1017150409,-0.01,654 4347 29
Department of Health,CT Revenue Funds,09/11/2016,Computer Consumables,Coral House,NHS SUPPLY CHAIN,1017150409,61.43,654 4347 29
Department of Health,CT Revenue Funds,09/11/2016,Computer Consumables,Whitchurch Hospital Administration,NHS SUPPLY CHAIN,1017150409,7.75,654 4347 29
Department of Health,CT Revenue Funds,09/11/2016,Computer Consumables,Whitchurch Hospital Administration,NHS SUPPLY CHAIN,1017150409,6.77,654 4347 29
Department of Health,CT Revenue Funds,09/11/2016,Computer Consumables,Whitchurch Hospital Administration,NHS SUPPLY CHAIN,1017150409,5.52,654 4347 29
Department of Health,CT Revenue Funds,09/11/2016,Computer Consumables,Whitchurch Hospital Administration,NHS SUPPLY CHAIN,1017150409,37.01,654 4347 29
Department of Health,CT Revenue Funds,09/11/2016,Computer Consumables,Ludlow & Bishop Castle Admin,NHS SUPPLY CHAIN,1017150409,28.88,654 4347 29
